﻿Body Name,Service Area,Expenses Type,Invoice Payment Date,Transaction Number,Supplier Name,Net Amount
Manchester City Council,Childrens & Education Services,Payments for services,03-Apr-23,5105865114,The Together Trust,"£60,572.43"
Manchester City Council,Childrens & Education Services,Payments for services,03-Apr-23,5105865115,The Together Trust,"£45,383.41"
Manchester City Council,Childrens & Education Services,Payments for services,03-Apr-23,5105865116,The Together Trust,"£11,824.19"
Manchester City Council,Childrens & Education Services,Personal needs of client,03-Apr-23,5105865136,Caci Ltd,"£19,934.35"
Manchester City Council,Adult Social Care,Equipment,03-Apr-23,5105865210,Safe Partnership Ltd,"£7,275.00"
Manchester City Council,Manchester Leisure,Works and associated costs for Land and Buildings,03-Apr-23,5105865315,Kompan Ltd,"£7,648.00"
Manchester City Council,Regeneration Finance,Refuse Collection,03-Apr-23,1908063374,Shred-It Ltd,"£1,383.88"
Manchester City Council,Hospitality + Trading Services,Hire of Machinery,03-Apr-23,5105865285,R & M Developments Ltd,£541.67
Manchester City Council,Housing Revenue Account,Council Dwelling Adaptations,03-Apr-23,5105865148,Rexel UK Ltd,"£13,478.61"
Manchester City Council,Housing Revenue Account,Council Dwelling Adaptations,03-Apr-23,5105865140,Rexel UK Ltd,"£12,260.52"
Manchester City Council,Housing Revenue Account,Council Dwelling Adaptations,03-Apr-23,5105865158,Rexel UK Ltd,"£7,659.02"
Manchester City Council,Housing Revenue Account,Council Dwelling Adaptations,03-Apr-23,5105865159,Rexel UK Ltd,"£2,268.84"
Manchester City Council,Housing Revenue Account,Council Dwelling Adaptations,03-Apr-23,5105865151,Rexel UK Ltd,"£1,134.42"
Manchester City Council,Housing Revenue Account,Council Dwelling Adaptations,03-Apr-23,5105865157,Rexel UK Ltd,"£1,016.30"
Manchester City Council,Housing Revenue Account,Council Dwelling Adaptations,03-Apr-23,5105865150,Rexel UK Ltd,£677.91
Manchester City Council,Manchester Leisure,Equipment,03-Apr-23,5105865226,Eagle Containers Ltd,£507.00
Manchester City Council,Regeneration Finance,Grounds Maintenance,03-Apr-23,5105865279,Arboricultural Services Treework,£600.00
Manchester City Council,Manchester Leisure,Grant and subscriptions awarded,03-Apr-23,5105865284,Big Life Centres,"£3,120.00"
Manchester City Council,Chief Executives,Training and Development,03-Apr-23,5105865316,Civica UK Ltd,£940.00
Manchester City Council,Childrens & Education Services,Payments for services,03-Apr-23,5105865253,42nd Street,"£10,500.00"
Manchester City Council,Childrens & Education Services,Payments for services,03-Apr-23,5105865111,Rossendale School Priory,"£6,367.40"
Manchester City Council,Childrens & Education Services,Payments for services,03-Apr-23,5105865113,Rossendale School Priory,"£5,772.55"
Manchester City Council,Childrens & Education Services,Payments for services,03-Apr-23,5105865112,Rossendale School Priory,"£5,767.37"
Manchester City Council,Manchester Leisure,Subsistence and Conference Expenses,03-Apr-23,1907826998,Lancashire County Council,"£2,528.00"
Manchester City Council,Childrens & Education Services,Transport Taxis,03-Apr-23,5105865121,Lancashire County Council,"£2,877.00"
Manchester City Council,Chief Executives,Printing,03-Apr-23,5105865264,Browns CTP Ltd,"£3,275.00"
Manchester City Council,Chief Executives,Telecoms Equip,03-Apr-23,5105865232,Insight Direct (Uk) Ltd,£682.50
Manchester City Council,Chief Executives,Equipment,03-Apr-23,5105865228,Bennett Workplace Solutions Ltd,£875.00
Manchester City Council,Environment and Operations,Construction Works,03-Apr-23,5105865130,GMCA,"£17,394.72"
Manchester City Council,Childrens & Education Services,Payments for services,03-Apr-23,5105865128,Teaching Personnel Ltd,£600.00
Manchester City Council,Regeneration Finance,Third party payments relating to Voluntary Organisations,03-Apr-23,5105865247,Proper Job Theatre company,"£3,520.00"
Manchester City Council,Adult Social Care,Equipment,03-Apr-23,5105865314,Drive Devilbiss Healthcare Ltd,"£1,770.00"
Manchester City Council,Childrens & Education Services,Furniture,03-Apr-23,5105865236,The Windmill Special Need Co Ltd,£580.00
Manchester City Council,Chief Executives,Legal Fees,03-Apr-23,5105865225,Weightmans LLP Solicitors,"£48,979.00"
Manchester City Council,Chief Executives,Legal Fees,03-Apr-23,5105865188,Weightmans LLP Solicitors,"£29,947.50"
Manchester City Council,Chief Executives,Legal Fees,03-Apr-23,5105865237,Weightmans LLP Solicitors,"£5,744.90"
Manchester City Council,Chief Executives,Legal Fees,03-Apr-23,5105865206,Weightmans LLP Solicitors,"£4,120.00"
Manchester City Council,Chief Executives,Legal Fees,03-Apr-23,5105865234,Weightmans LLP Solicitors,"£1,646.00"
Manchester City Council,Chief Executives,Legal Fees,03-Apr-23,5105865187,Weightmans LLP Solicitors,£757.50
Manchester City Council,Chief Executives,Legal Fees,03-Apr-23,5105865224,Weightmans LLP Solicitors,£517.50
Manchester City Council,Chief Executives,Legal Fees,03-Apr-23,5105865189,Weightmans LLP Solicitors,£511.50
Manchester City Council,Childrens & Education Services,Professional fees,03-Apr-23,5105865251,Graeme Hollinshead Consultancy,"£4,275.00"
Manchester City Council,Regeneration Finance,Professional fees,03-Apr-23,5105865243,AA Projects Ltd,"£1,062.90"
Manchester City Council,Adult Social Care,Personal needs of client,03-Apr-23,5105865282,Supra UK Ltd,"£5,771.00"
Manchester City Council,Adult Social Care,Legal Fees,03-Apr-23,5105865175,Cornerstone Barristers,£500.00
Manchester City Council,Childrens & Education Services,Payments for services,03-Apr-23,5105865335,Time Specialist Support Ltd,"£14,950.00"
Manchester City Council,Childrens & Education Services,Payments for services,03-Apr-23,5105865290,Time Specialist Support Ltd,"£2,990.00"
Manchester City Council,Regeneration Finance,Storage Costs,03-Apr-23,5105865174,Oasis UK formerly Box-It (NW),£534.16
Manchester City Council,Regeneration Finance,Third party payments relating to Voluntary Organisations,03-Apr-23,5105865313,Impact For All,"£6,285.00"
Manchester City Council,Manchester Leisure,Professional fees,03-Apr-23,5105865327,Creative Tourist Limited,"£4,170.00"
Manchester City Council,Manchester Leisure,Grant and subscriptions awarded,03-Apr-23,5105865201,Chorlton Traders Association,"£1,510.00"
Manchester City Council,Childrens & Education Services,Contract Cleaning External,03-Apr-23,5105865244,Superkids Levenshulme Ltd,"£1,170.00"
Manchester City Council,Manchester Leisure,Building Materials for direct delivery,03-Apr-23,5105865246,Gorton Horticultural Society,"£1,777.75"
Manchester City Council,Childrens & Education Services,Third party payments to other Local Authorities,03-Apr-23,5105865292,New Bridge School,"£72,946.20"
Manchester City Council,Manchester Leisure,Grant and subscriptions awarded,03-Apr-23,5105865324,Fallowfield Library & Comm Centre,£520.00
Manchester City Council,Manchester Leisure,Building Materials for direct delivery,03-Apr-23,5105865191,One Green World,£800.00
Manchester City Council,Environment and Operations,Construction Works,03-Apr-23,5105865328,Kiely Bros Ltd,"£8,456.21"
Manchester City Council,Environment and Operations,Construction Works,03-Apr-23,5105865330,Kiely Bros Ltd,"£199,828.40"
Manchester City Council,Regeneration Finance,Rents,03-Apr-23,1907374118,Wellington Properties Ltd,"£1,440.19"
Manchester City Council,Adult Social Care,Third party payments relating to Voluntary Organisations,03-Apr-23,5105865146,Centrepoint-YPSF,"£16,250.00"
Manchester City Council,Adult Social Care,Third party payments relating to Voluntary Organisations,03-Apr-23,5105865195,Centrepoint-YPSF,"£14,747.08"
Manchester City Council,Housing Revenue Account,Council Dwelling Adaptations,03-Apr-23,5105865192,Nova Group Ltd,"£3,470.45"
Manchester City Council,Adult Social Care,Rents,03-Apr-23,5105865190,Eeven Homes Ltd.,"£18,231.43"
Manchester City Council,Adult Social Care,Rents,03-Apr-23,5105865301,Eeven Homes Ltd.,"£17,916.00"
Manchester City Council,Manchester Leisure,Professional fees,03-Apr-23,5105865296,Walsh Business & Media Ltd,£650.00
Manchester City Council,Childrens & Education Services,Payments for services,03-Apr-23,5105865147,National Offender Mgt Services,"£23,870.00"
Manchester City Council,Childrens & Education Services,Payments for services,03-Apr-23,5105865171,National Offender Mgt Services,"£23,870.00"
Manchester City Council,Childrens & Education Services,Payments for services,03-Apr-23,5105865179,National Offender Mgt Services,"£23,870.00"
Manchester City Council,Childrens & Education Services,Payments for services,03-Apr-23,5105865155,National Offender Mgt Services,"£22,723.00"
Manchester City Council,Childrens & Education Services,Payments for services,03-Apr-23,5105865138,National Offender Mgt Services,"£9,517.00"
Manchester City Council,Childrens & Education Services,Payments for services,03-Apr-23,5105865143,National Offender Mgt Services,"£9,517.00"
Manchester City Council,Childrens & Education Services,Payments for services,03-Apr-23,5105865145,National Offender Mgt Services,"£9,517.00"
Manchester City Council,Childrens & Education Services,Payments for services,03-Apr-23,5105865149,National Offender Mgt Services,"£9,517.00"
Manchester City Council,Childrens & Education Services,Payments for services,03-Apr-23,5105865160,National Offender Mgt Services,"£9,517.00"
Manchester City Council,Childrens & Education Services,Payments for services,03-Apr-23,5105865163,National Offender Mgt Services,"£9,517.00"
Manchester City Council,Childrens & Education Services,Payments for services,03-Apr-23,5105865170,National Offender Mgt Services,"£9,517.00"
Manchester City Council,Childrens & Education Services,Payments for services,03-Apr-23,5105865173,National Offender Mgt Services,"£7,982.00"
Manchester City Council,Childrens & Education Services,Payments for services,03-Apr-23,5105865177,National Offender Mgt Services,"£7,982.00"
Manchester City Council,Childrens & Education Services,Payments for services,03-Apr-23,5105865178,National Offender Mgt Services,"£7,982.00"
Manchester City Council,Childrens & Education Services,Payments for services,03-Apr-23,5105865166,National Offender Mgt Services,"£4,605.00"
Manchester City Council,Manchester Leisure,Grant and subscriptions awarded,03-Apr-23,5105865202,Freshrb CIC,"£3,150.00"
Manchester City Council,Manchester Leisure,Goods purchased for resale in Council outlets,03-Apr-23,5105865161,Hachette UK Distribution,"£2,953.65"
Manchester City Council,Adult Social Care,Licences Purchase,03-Apr-23,5105865323,Access UK Ltd,"£5,878.10"
Manchester City Council,Chief Executives,Payments to Sub-Contractors,03-Apr-23,5105865223,GAMACHU GUTTO,£731.50
Manchester City Council,Adult Social Care,Professional fees,03-Apr-23,5105865270,UNIQUE SPECIALIST SERVICES,"£1,377.00"
Manchester City Council,Adult Social Care,Security,03-Apr-23,5105865221,UNIQUE SPECIALIST SERVICES,£612.00
Manchester City Council,Childrens & Education Services,Transport Coach Hire,03-Apr-23,5105865299,East Sussex County Council,"£4,286.03"
Manchester City Council,Manchester Leisure,Grant and subscriptions awarded,03-Apr-23,5105865283,Levenshulme Inspire Foundation,£500.00
Manchester City Council,Regeneration Finance,External repairs and maintenance for buildings,03-Apr-23,5105865197,SMS Solar Maintenance Services,"£1,521.27"
Manchester City Council,Manchester Leisure,Other Allowances,03-Apr-23,1908070703,Tusker Direct,"£5,800.14"
Manchester City Council,Manchester Leisure,Compensation Payments,03-Apr-23,1908070853,Bond Turner Solicitors,£750.00
Manchester City Council,Adult Social Care,Bed & Breakfast Acc,03-Apr-23,1908070879,Fairways Lodge,"£10,680.00"
Manchester City Council,Adult Social Care,Bed & Breakfast Acc,03-Apr-23,1908070878,Fairways Lodge,"£10,550.00"
Manchester City Council,Adult Social Care,Bed & Breakfast Acc,03-Apr-23,1700147487,Fairways Lodge,"-£10,550.00"
Manchester City Council,Adult Social Care,Bed & Breakfast Acc,03-Apr-23,1700147488,Fairways Lodge,"-£10,680.00"
Manchester City Council,Manchester Leisure,Grant and subscriptions awarded,03-Apr-23,5105865258,Birch Calm Roads Association,"£2,000.00"
Manchester City Council,Manchester Leisure,Grant and subscriptions awarded,03-Apr-23,5105865293,Ceebee Gold Foundation Intl,£500.00
Manchester City Council,Manchester Leisure,Legal Fees,03-Apr-23,1908070699,Pinnacle Building and Surveying,£550.00
Manchester City Council,Manchester Leisure,Grant and subscriptions awarded,03-Apr-23,5105865257,Drawing Board Productions,£833.00
Manchester City Council,Environment and Operations,Construction Works,03-Apr-23,5105865351,Solaris Technologies Ltd,"£19,535.00"
Manchester City Council,Childrens & Education Services,Payments for services,03-Apr-23,5105865211,Care Solutions Recruitment,"£1,038.40"
Manchester City Council,Childrens & Education Services,Payments for services,03-Apr-23,5105865196,Care Solutions Recruitment,£807.65
Manchester City Council,Childrens & Education Services,Payments for services,03-Apr-23,5105865212,Care Solutions Recruitment,£507.60
Manchester City Council,Childrens & Education Services,Payments for services,03-Apr-23,5105865194,Care Solutions Recruitment,£504.80
Manchester City Council,Adult Social Care,Rents,03-Apr-23,5105865256,Rtech Group Limited,"£2,195.84"
Manchester City Council,Regeneration Finance,Stationery,03-Apr-23,5105865222,Gifts2Impress Limited,"£1,550.00"
Manchester City Council,Manchester Leisure,Professional fees,03-Apr-23,5105865321,The Zebra Partnership,"£1,200.00"
Manchester City Council,Manchester Leisure,Grant and subscriptions awarded,03-Apr-23,5105865260,Walking Mum's Club,"£3,810.00"
Manchester City Council,Hospitality + Trading Services,Funeral and coroner related services,03-Apr-23,1908070435,McGarry Memorials (Manchester) Ltd,"£1,245.83"
Manchester City Council,Adult Social Care,General Office expenses,03-Apr-23,1908070601,Personal Care Consultants,"£2,529.50"
Manchester City Council,Childrens & Education Services,Electricity,03-Apr-23,1908070306,Opus Energy Ltd,£752.43
Manchester City Council,Adult Social Care,Rents,03-Apr-23,1908070855,Rennsolution Ltd,"£4,072.36"
Manchester City Council,Adult Social Care,Rents,03-Apr-23,1908070855,Rennsolution Ltd,"£3,375.00"
Manchester City Council,Adult Social Care,Legal Fees,03-Apr-23,1907522694,No5 Barristers Chambers,"£1,500.00"
Manchester City Council,Adult Social Care,Legal Fees,03-Apr-23,1907522762,No5 Barristers Chambers,£750.00
Manchester City Council,Childrens & Education Services,Licences Purchase,03-Apr-23,1908060346,The Essential Parent Company Ltd,"£25,000.00"
Manchester City Council,Adult Social Care,Professional fees,03-Apr-23,1908069970,GTD Healthcare,"£3,964.00"
Manchester City Council,Manchester Leisure,Training and Development,03-Apr-23,1908070857,Council of Europe - Secreteriat Gen,"£4,462.29"
Manchester City Council,Manchester Leisure,Training and Development,03-Apr-23,1908070121,Goal Centred Development,£690.00
Manchester City Council,Chief Executives,Payments to Sub-Contractors,03-Apr-23,5105865135,Redacted Personal Information,"£2,391.26"
Manchester City Council,Manchester Leisure,Professional fees,03-Apr-23,5105865132,Redacted Personal Information,"£2,250.00"
Manchester City Council,Chief Executives,Payments to Sub-Contractors,03-Apr-23,5105865167,Redacted Personal Information,£535.58
Manchester City Council,Chief Executives,Payments to Sub-Contractors,03-Apr-23,5105865142,Redacted Personal Information,£690.15
Manchester City Council,Chief Executives,Payments to Sub-Contractors,03-Apr-23,5105865235,Redacted Personal Information,£828.85
Manchester City Council,Chief Executives,Payments to Sub-Contractors,03-Apr-23,5105865127,Redacted Personal Information,"£2,334.17"
Manchester City Council,Chief Executives,Payments to Sub-Contractors,03-Apr-23,5105865139,Redacted Personal Information,£654.95
Manchester City Council,Manchester Leisure,Professional fees,03-Apr-23,5105865289,Redacted Personal Information,"£1,612.49"
Manchester City Council,Corporate Services,Tracing fees,04-Apr-23,1908070124,Redacted Personal Information,"£3,100.00"
Manchester City Council,Adult Social Care,Rents,04-Apr-23,1908073791,Redacted Personal Information,"£1,821.36"
Manchester City Council,Adult Social Care,Personal needs of client,04-Apr-23,5105865340,James Leckey Design Ltd,"£1,061.30"
Manchester City Council,Housing General Fund,Building Works,04-Apr-23,1908073737,Pollock Lifts Ltd,"£16,926.00"
Manchester City Council,Adult Social Care,Personal needs of client,04-Apr-23,5105865488,Tunstall Healthcare (UK) Ltd,"£4,481.00"
Manchester City Council,Adult Social Care,Personal needs of client,04-Apr-23,5105865486,Tunstall Healthcare (UK) Ltd,"£3,850.00"
Manchester City Council,Adult Social Care,Personal needs of client,04-Apr-23,5105865487,Tunstall Healthcare (UK) Ltd,"£3,350.60"
Manchester City Council,Adult Social Care,Personal needs of client,04-Apr-23,5105865490,Tunstall Healthcare (UK) Ltd,"£2,250.00"
Manchester City Council,Adult Social Care,Personal needs of client,04-Apr-23,5105865489,Tunstall Healthcare (UK) Ltd,"£2,121.50"
Manchester City Council,Adult Social Care,Personal needs of client,04-Apr-23,5105865491,Tunstall Healthcare (UK) Ltd,"£1,029.60"
Manchester City Council,Adult Social Care,Personal needs of client,04-Apr-23,5105865494,Tunstall Healthcare (UK) Ltd,£779.40
Manchester City Council,Manchester Leisure,Gas,04-Apr-23,1908070883,Total Gas & Power,"£26,457.97"
Manchester City Council,Adult Social Care,Payments for services,04-Apr-23,5105865444,ADFERIAD RECOVERY,"£4,725.00"
Manchester City Council,Adult Social Care,Payments for services,04-Apr-23,5105865441,ADFERIAD RECOVERY,"£3,375.00"
Manchester City Council,Adult Social Care,Payments for services,04-Apr-23,5105865447,ADFERIAD RECOVERY,"£3,375.00"
Manchester City Council,Corporate Services,Agency staff provision,04-Apr-23,5105865544,Michael Page International,"£1,400.00"
Manchester City Council,Corporate Services,Agency staff provision,04-Apr-23,5105865545,Michael Page International,"£1,400.00"
Manchester City Council,Corporate Services,Agency staff provision,04-Apr-23,5105865542,Michael Page International,"£1,120.00"
Manchester City Council,Corporate Services,Agency staff provision,04-Apr-23,5105865543,Michael Page International,"£1,120.00"
Manchester City Council,Corporate Services,Agency staff provision,04-Apr-23,5105865551,Michael Page International,"£1,120.00"
Manchester City Council,Regeneration Finance,Gas,04-Apr-23,5105865398,Calor Gas Ltd,£619.50
Manchester City Council,Manchester Leisure,Security,04-Apr-23,5105865457,Showsec International Ltd,"£12,427.48"
Manchester City Council,Childrens & Education Services,Payments for services,04-Apr-23,5105865393,Reed Employment Plc,"£12,546.39"
Manchester City Council,Childrens & Education Services,Professional fees,04-Apr-23,5105865415,Barnardo Services Ltd (Essex),"£11,670.80"
Manchester City Council,Chief Executives,Agency staff provision,04-Apr-23,5105865461,Search Consultancy Ltd,"£8,422.16"
Manchester City Council,Manchester Leisure,Professional fees,04-Apr-23,5105865732,Daly Drains Ltd,"£2,367.00"
Manchester City Council,Adult Social Care,Home Care ,04-Apr-23,5105865524,Standwalk Ltd,"£3,697.35"
Manchester City Council,Adult Social Care,Home Care ,04-Apr-23,5105865527,Standwalk Ltd,"£3,613.68"
Manchester City Council,Adult Social Care,Home Care ,04-Apr-23,5105865529,Standwalk Ltd,"£3,334.05"
Manchester City Council,Adult Social Care,Home Care ,04-Apr-23,5105865526,Standwalk Ltd,"£3,226.50"
Manchester City Council,Adult Social Care,Home Care ,04-Apr-23,5105865528,Standwalk Ltd,"£3,226.50"
Manchester City Council,Adult Social Care,Home Care ,04-Apr-23,5105865522,Standwalk Ltd,"£3,177.60"
Manchester City Council,Adult Social Care,Home Care ,04-Apr-23,5105865525,Standwalk Ltd,"£3,118.95"
Manchester City Council,Adult Social Care,Home Care ,04-Apr-23,5105865523,Standwalk Ltd,"£3,078.30"
Manchester City Council,Adult Social Care,Home Care ,04-Apr-23,5105865104,Standwalk Ltd,"£2,683.37"
Manchester City Council,Adult Social Care,Home Care ,04-Apr-23,5105865367,Standwalk Ltd,"£1,291.28"
Manchester City Council,Adult Social Care,Home Care ,04-Apr-23,5105865369,Standwalk Ltd,"£1,267.36"
Manchester City Council,Adult Social Care,Home Care ,04-Apr-23,5105865539,Standwalk Ltd,£603.30
Manchester City Council,Manchester Leisure,Equipment,04-Apr-23,5105865552,Eagle Containers Ltd,£507.00
Manchester City Council,Regeneration Finance,Professional fees,04-Apr-23,5105865560,Deloitte & Touche Llp,"£15,000.00"
Manchester City Council,Regeneration Finance,Professional fees,04-Apr-23,5105865277,Arboricultural Services Treework,£500.00
Manchester City Council,Corporate Services,I T Provision,04-Apr-23,5105865387,Acutest,£624.96
Manchester City Council,Adult Social Care,Rents,04-Apr-23,5105865565,Mosscare St Vincent's Housing,"£5,630.71"
Manchester City Council,Adult Social Care,Grant and subscriptions awarded,04-Apr-23,5105865591,Caritas Diocese of Salford,"£8,687.00"
Manchester City Council,Adult Social Care,Payments for services,04-Apr-23,5105865345,Creative Support Ltd,"£46,830.16"
Manchester City Council,Adult Social Care,Equipment,04-Apr-23,5105865530,Morris & Alexander Ltd,"£2,474.00"
Manchester City Council,Adult Social Care,Supported Accommodation,04-Apr-23,5105865346,Independent Living Alliance,"£10,025.40"
Manchester City Council,Housing General Fund,Building Works,04-Apr-23,1908073740,Stannah Lift Services Ltd,"£3,866.00"
Manchester City Council,Housing General Fund,Building Works,04-Apr-23,1908073736,Stannah Lift Services Ltd,"£2,909.00"
Manchester City Council,Manchester Leisure,External repairs and maintenance for buildings,04-Apr-23,5105865350,Ashlea Ltd,"£2,224.50"
Manchester City Council,Adult Social Care,External repairs and maintenance for buildings,04-Apr-23,5105865371,Ashbury Meadow Primary School,£783.75
Manchester City Council,Adult Social Care,Supporting People Payments,04-Apr-23,5105865428,Richmond Fellowship,"£11,088.03"
Manchester City Council,Adult Social Care,Supporting People Payments,04-Apr-23,5105865429,Richmond Fellowship,"£11,088.03"
Manchester City Council,Adult Social Care,Supporting People Payments,04-Apr-23,5105865430,Richmond Fellowship,"£11,088.03"
Manchester City Council,Chief Executives,Grant and subscriptions awarded,04-Apr-23,5105865389,Manchester Camerata,"£5,000.00"
Manchester City Council,Chief Executives,Printing,04-Apr-23,5105865385,Browns CTP Ltd,"£3,985.00"
Manchester City Council,Chief Executives,Printing,04-Apr-23,5105865386,Browns CTP Ltd,£590.00
Manchester City Council,Housing Revenue Account,Vehicle Plant Furniture and Equipment,04-Apr-23,5105865452,Insight Direct (Uk) Ltd,"£14,165.66"
Manchester City Council,Adult Social Care,Furniture,04-Apr-23,5105865439,Bennett Workplace Solutions Ltd,£748.00
Manchester City Council,Housing General Fund,Building Works,04-Apr-23,1908073738,Hoist & Shower Chair Company,"£2,763.00"
Manchester City Council,Manchester Leisure,Professional fees,04-Apr-23,5105865476,Sensormatic Solutions,£766.77
Manchester City Council,Chief Executives,Counsel Costs,04-Apr-23,1908070496,18 St John Street Chambers,"£2,310.00"
Manchester City Council,Highways Services,Payments to Sub-Contractors,04-Apr-23,5105865519,Northern Marking Limited,"£1,116.64"
Manchester City Council,Adult Social Care,Equipment,04-Apr-23,5105865382,Aidapt Bathrooms Ltd,"£10,141.00"
Manchester City Council,Adult Social Care,Equipment,04-Apr-23,5105865383,Aidapt Bathrooms Ltd,"£2,940.00"
Manchester City Council,Environment and Operations,Construction Works,04-Apr-23,5105865453,Wilde Consultants Ltd,"£5,801.20"
Manchester City Council,Environment and Operations,Construction Works,04-Apr-23,5105865454,Wilde Consultants Ltd,£770.40
Manchester City Council,Environment and Operations,Construction Works,04-Apr-23,5105865455,Wilde Consultants Ltd,£729.00
Manchester City Council,Highways Services,Professional fees,04-Apr-23,5105865281,Wilde Consultants Ltd,"£8,532.00"
Manchester City Council,Chief Executives,Agency staff provision,04-Apr-23,5105865417,Ashberry Recruitment Ltd,"£3,449.50"
Manchester City Council,Chief Executives,Agency staff provision,04-Apr-23,5105865419,Ashberry Recruitment Ltd,"£1,968.30"
Manchester City Council,Chief Executives,Expenditure re Internal Trading Ordered Externally,04-Apr-23,5105865368,King's House Conference (Gtr Mcr),"£2,090.00"
Manchester City Council,Chief Executives,COVID - 19,04-Apr-23,1908070430,39 Essex Street Chambers,"£2,282.50"
Manchester City Council,Chief Executives,Works and associated costs for Land and Buildings,04-Apr-23,5105865422,Buro Happold Limited,"£3,600.00"
Manchester City Council,Childrens & Education Services,Professional fees,04-Apr-23,5105865378,Max Turton Education,£950.00
Manchester City Council,Adult Social Care,Grant and subscriptions awarded,04-Apr-23,5105865595,Migrant Support,"£10,000.00"
Manchester City Council,Adult Social Care,Third party payments to Health Authority,04-Apr-23,1907796064,HCRG Care Services Ltd,£917.00
Manchester City Council,Libraries and Theatres,Vehicle Plant Furniture and Equipment,04-Apr-23,1908073793,Vocera Communications UK Ltd,"£17,536.46"
Manchester City Council,Environment and Operations,Construction Works,04-Apr-23,5105865343,Kiely Bros Ltd,"£24,332.94"
Manchester City Council,Hospitality + Trading Services,Rents,04-Apr-23,1908069867,Booker Ltd,"£1,368.75"
Manchester City Council,Adult Social Care,Rents,04-Apr-23,5105865478,K L Properties,"£15,527.64"
Manchester City Council,Adult Social Care,Rents,04-Apr-23,5105865381,Housing Social Ltd,"£4,530.96"
Manchester City Council,Adult Social Care,Funeral and coroner related services,04-Apr-23,5105865433,Greater Manchester Funeral Service,"£1,489.00"
Manchester City Council,Adult Social Care,Rents,04-Apr-23,5105865302,AJD Property Limited,"£3,055.71"
Manchester City Council,Chief Executives,Licences Purchase,04-Apr-23,1908073788,DigiCert Inc,"£15,301.00"
Manchester City Council,Manchester Leisure,Grant and subscriptions awarded,04-Apr-23,5105865366,Creative City England CIC,£500.00
Manchester City Council,Childrens & Education Services,I T Provision,04-Apr-23,5105865391,Valtech Limited,£810.46
Manchester City Council,Manchester Leisure,Building Materials for direct delivery,04-Apr-23,5105865575,Monowa Operable Wall Systems Ltd,£595.00
Manchester City Council,Corporate Services,WPS Awards,04-Apr-23,5105865438,Furniture Resource Centre Ltd,£638.69
Manchester City Council,Childrens & Education Services,Professional fees,04-Apr-23,5105865517,Bridging the Gap,"£10,000.00"
Manchester City Council,Adult Social Care,Bed & Breakfast Acc,04-Apr-23,5105865388,Medlock House Ltd,"£9,947.00"
Manchester City Council,Chief Executives,Payments to Sub-Contractors,04-Apr-23,5105865411,GAMACHU GUTTO,£601.62
Manchester City Council,Adult Social Care,Professional fees,04-Apr-23,5105865574,IMPOWER Consulting Limited,"£122,000.00"
Manchester City Council,Adult Social Care,Professional fees,04-Apr-23,5105865577,IMPOWER Consulting Limited,"£8,675.19"
Manchester City Council,Regeneration Finance,Security,04-Apr-23,5105865475,NE1 Procurement Services Limited,"£1,026.45"
Manchester City Council,Highways Services,Professional fees,04-Apr-23,5105865185,Waterman Infrastructure and,"£34,500.00"
Manchester City Council,Manchester Leisure,Grant and subscriptions awarded,04-Apr-23,5105865414,Inspired Taskforce CIC,£500.00
Manchester City Council,Chief Executives,Licences Purchase,04-Apr-23,5105865402,Matobo Ltd,"£9,999.00"
Manchester City Council,Childrens & Education Services,Professional fees,04-Apr-23,5105865408,Headcounts Consultancy Limited,"£1,425.00"
Manchester City Council,Adult Social Care,Bed & Breakfast Acc,04-Apr-23,5105865500,VSP BEAUCLIFFE LTD,"£141,637.00"
Manchester City Council,Adult Social Care,Bed & Breakfast Acc,04-Apr-23,5105865500,VSP BEAUCLIFFE LTD,"£6,875.00"
Manchester City Council,Environment and Operations,Furniture,04-Apr-23,5105865353,Lighthouse Security Limited,"£3,712.75"
Manchester City Council,Adult Social Care,Third party payments to Health Authority,04-Apr-23,5105865392,NHS GREATER MANCHESTER ICB,"£30,912.00"
Manchester City Council,Adult Social Care,Bed & Breakfast Acc,04-Apr-23,5105865423,Manchester Stay Hotel,"£23,190.00"
Manchester City Council,Manchester Leisure,Payments to Sub-Contractors,04-Apr-23,5105865576,Sants Fabrications Ltd,"£5,000.00"
Manchester City Council,Adult Social Care,Rents,04-Apr-23,5105865580,NWA Housing Ltd,"£4,624.62"
Manchester City Council,Adult Social Care,Rents,04-Apr-23,5105865592,NWA Housing Ltd,"£4,268.88"
Manchester City Council,Manchester Leisure,Professional fees,04-Apr-23,5105865365,AV Resilience Ltd,"£1,927.50"
Manchester City Council,Manchester Leisure,Grant and subscriptions awarded,04-Apr-23,1908069800,olutions Not Sides,"£8,000.00"
Manchester City Council,Adult Social Care,Rents,04-Apr-23,1908073791,Redacted Personal Information,"£3,544.66"
Manchester City Council,Corporate Services,Equipment,04-Apr-23,1908070027,St Marks United Reformed Church,"£8,528.68"
Manchester City Council,Regeneration Finance,Surveyors Fees,04-Apr-23,1908073790,Price Waterhouse Coopers LLP,"£5,500.00"
Manchester City Council,Housing General Fund,Surplus property Acquisitions,04-Apr-23,1908073780,RAIMS MAHMOOD ZAEEM,"£40,743.29"
Manchester City Council,Housing General Fund,Surplus property Fees,04-Apr-23,1908073780,RAIMS MAHMOOD ZAEEM,£904.44
Manchester City Council,Hospitality + Trading Services,Legal Fees,04-Apr-23,5105865532,Redacted Personal Information,"£1,500.00"
Manchester City Council,Manchester Leisure,Professional fees,04-Apr-23,5105865547,Redacted Personal Information,£700.00
Manchester City Council,Chief Executives,Payments to Sub-Contractors,04-Apr-23,5105865465,Redacted Personal Information,"£1,845.98"
Manchester City Council,Chief Executives,Payments to Sub-Contractors,04-Apr-23,5105865462,Redacted Personal Information,"£1,076.25"
Manchester City Council,Chief Executives,Payments to Sub-Contractors,04-Apr-23,5105865505,Redacted Personal Information,"£1,841.63"
Manchester City Council,Chief Executives,Payments to Sub-Contractors,04-Apr-23,5105865472,Redacted Personal Information,£669.75
Manchester City Council,Chief Executives,Payments to Sub-Contractors,04-Apr-23,5105865342,Redacted Personal Information,£738.90
Manchester City Council,Chief Executives,Payments to Sub-Contractors,04-Apr-23,5105865426,Redacted Personal Information,£661.50
Manchester City Council,Chief Executives,Payments to Sub-Contractors,04-Apr-23,5105865361,Redacted Personal Information,£643.16
Manchester City Council,Chief Executives,Payments to Sub-Contractors,04-Apr-23,5105865506,Redacted Personal Information,£701.05
Manchester City Council,Chief Executives,Payments to Sub-Contractors,04-Apr-23,5105865570,Redacted Personal Information,"£1,772.78"
Manchester City Council,Chief Executives,Payments to Sub-Contractors,04-Apr-23,5105865449,Redacted Personal Information,£975.86
Manchester City Council,Chief Executives,Payments to Sub-Contractors,04-Apr-23,5105865471,Redacted Personal Information,"£1,460.23"
Manchester City Council,Adult Social Care,Bed & Breakfast Acc,04-Apr-23,5105865360,Redacted Personal Information,"£6,060.00"
Manchester City Council,Chief Executives,Counsel Costs,04-Apr-23,1908070494,Redacted Personal Information,£700.00
Manchester City Council,Chief Executives,Counsel Costs,04-Apr-23,1908070498,Redacted Personal Information,£650.00
Manchester City Council,Chief Executives,Payments to Sub-Contractors,04-Apr-23,5105865499,Redacted Personal Information,£603.55
Manchester City Council,Childrens & Education Services,Professional fees,04-Apr-23,5105865518,Redacted Personal Information,"£1,900.00"
Manchester City Council,Chief Executives,Payments to Sub-Contractors,04-Apr-23,5105865348,Redacted Personal Information,£603.75
Manchester City Council,Chief Executives,Payments to Sub-Contractors,04-Apr-23,5105865347,Redacted Personal Information,£600.00
Manchester City Council,Chief Executives,Counsel Costs,05-Apr-23,1908073830,Redacted Personal Information,£650.00
Manchester City Council,Childrens & Education Services,Training and Development,05-Apr-23,1908073828,Redacted Personal Information,"£1,100.00"
Manchester City Council,Adult Social Care,Third party payments relating to Voluntary Organisations,05-Apr-23,5105865652,The Shaw Centre,"£15,638.12"
Manchester City Council,Childrens & Education Services,Furniture,05-Apr-23,5105866005,Eps Supplies Ltd,£681.89
Manchester City Council,Childrens & Education Services,Furniture,05-Apr-23,5105866011,Eps Supplies Ltd,£629.88
Manchester City Council,Highways Services,Payments to Sub-Contractors,05-Apr-23,5105865878,Clearway Drainage Systems Ltd,"£73,833.50"
Manchester City Council,Highways Services,Payments to Sub-Contractors,05-Apr-23,5105865982,Clearway Drainage Systems Ltd,"£26,960.00"
Manchester City Council,Highways Services,Payments to Sub-Contractors,05-Apr-23,5105865989,Clearway Drainage Systems Ltd,"£14,820.00"
Manchester City Council,Highways Services,Payments to Sub-Contractors,05-Apr-23,5105865985,Clearway Drainage Systems Ltd,"£13,100.00"
Manchester City Council,Highways Services,Payments to Sub-Contractors,05-Apr-23,5105865879,Clearway Drainage Systems Ltd,"£12,103.00"
Manchester City Council,Highways Services,Payments to Sub-Contractors,05-Apr-23,5105865984,Clearway Drainage Systems Ltd,"£10,740.00"
Manchester City Council,Highways Services,Payments to Sub-Contractors,05-Apr-23,5105865880,Clearway Drainage Systems Ltd,"£10,230.00"
Manchester City Council,Highways Services,Payments to Sub-Contractors,05-Apr-23,5105865987,Clearway Drainage Systems Ltd,"£8,040.00"
Manchester City Council,Highways Services,Payments to Sub-Contractors,05-Apr-23,5105865988,Clearway Drainage Systems Ltd,"£1,915.00"
Manchester City Council,Highways Services,Payments to Sub-Contractors,05-Apr-23,5105865981,Clearway Drainage Systems Ltd,"£1,705.00"
Manchester City Council,Regeneration Finance,Electricity,05-Apr-23,1908066628,Scottish & Southern Energy Plc,"£5,533.38"
Manchester City Council,Regeneration Finance,Electricity,05-Apr-23,1908065226,Scottish & Southern Energy Plc,"£2,500.27"
Manchester City Council,Regeneration Finance,Electricity,05-Apr-23,1908065238,Scottish & Southern Energy Plc,"£1,391.41"
Manchester City Council,Regeneration Finance,Electricity,05-Apr-23,1908065236,Scottish & Southern Energy Plc,£719.61
Manchester City Council,Hospitality + Trading Services,ClothsUniformLaundry,05-Apr-23,5105866035,Arco Group Ltd,£851.62
Manchester City Council,Regeneration Finance,Stationery,05-Apr-23,5105865893,Digital ID Ltd,"£8,970.00"
Manchester City Council,Regeneration Finance,Stationery,05-Apr-23,5105865896,Digital ID Ltd,"-£8,970.00"
Manchester City Council,Manchester Leisure,Transport and Driver Hire,05-Apr-23,5105865660,M&G Transport & Technical Services,£987.00
Manchester City Council,Highways Services,Professional fees,05-Apr-23,5105865573,Ove Arup & Partners Ltd,"£14,698.57"
Manchester City Council,Chief Executives,Advertising,05-Apr-23,5105865106,Moonscape Media Ltd,£950.00
Manchester City Council,Manchester Leisure,Grant and subscriptions awarded,05-Apr-23,5105865724,St John Ambulance Supplies,"£3,900.00"
Manchester City Council,Chief Executives,Paper & Envelopes,05-Apr-23,5105865664,Premier Paper Group Ltd,£568.12
Manchester City Council,Chief Executives,Licences Purchase,05-Apr-23,5105865750,Ncc Services Limited,"£4,970.00"
Manchester City Council,Manchester Leisure,Building Materials for direct delivery,05-Apr-23,5105865803,Rigby Taylor Ltd,"£1,488.00"
Manchester City Council,Manchester Leisure,Equipment,05-Apr-23,5105865754,Groundwork Landscapes Ltd,£576.00
Manchester City Council,Environment and Operations,Construction Works,05-Apr-23,5105865643,J.Hopkins (Contractors) Ltd.,"£38,225.29"
Manchester City Council,Highways Services,Payments to Sub-Contractors,05-Apr-23,5105865607,J.Hopkins (Contractors) Ltd.,"£11,000.00"
Manchester City Council,Highways Services,Payments to Sub-Contractors,05-Apr-23,5105865606,J.Hopkins (Contractors) Ltd.,"£8,800.00"
Manchester City Council,Childrens Services,Works and associated costs for Land and Buildings,05-Apr-23,5105865726,F Parkinson Limited,"£4,637.13"
Manchester City Council,Manchester Leisure,Legal Fees,05-Apr-23,1908074850,Peasegoods,"£5,250.00"
Manchester City Council,Highways Services,Building Materials for direct delivery,05-Apr-23,5105865789,Glasdon U.K. Limited,"£2,790.60"
Manchester City Council,Chief Executives,Printing,05-Apr-23,5105865997,Astra Signs,"£50,540.00"
Manchester City Council,Chief Executives,Printing,05-Apr-23,5105866002,Astra Signs,£950.00
Manchester City Council,Chief Executives,Printing,05-Apr-23,5105865996,Astra Signs,£628.20
Manchester City Council,Chief Executives,Printing,05-Apr-23,5105866000,Astra Signs,£585.00
Manchester City Council,Chief Executives,Printing,05-Apr-23,5105865992,Astra Signs,£550.00
Manchester City Council,Corporate Services,Signers/Interpreters,05-Apr-23,5105865110,Language Line Ltd,£742.86
Manchester City Council,Environment and Operations,Construction Works,05-Apr-23,5105865675,Amey Highways Lighting (Manchester),"£16,230.16"
Manchester City Council,Regeneration Finance,I T Provision,05-Apr-23,5105865795,Tribal Education,"£3,279.96"
Manchester City Council,Regeneration Finance,Subsistence and Conference Expenses,05-Apr-23,5105865796,Tribal Education,"£10,700.00"
Manchester City Council,Regeneration Finance,Subsistence and Conference Expenses,05-Apr-23,5105865797,Tribal Education,"£1,605.00"
Manchester City Council,Adult Social Care,Third party payments to Health Authority,05-Apr-23,5105865553,Greater Manchester Mental Health,"£115,324.00"
Manchester City Council,Adult Social Care,Third party payments to Health Authority,05-Apr-23,5105865554,Greater Manchester Mental Health,"£115,324.00"
Manchester City Council,Adult Social Care,Third party payments to Health Authority,05-Apr-23,5105865553,Greater Manchester Mental Health,"£32,918.00"
Manchester City Council,Adult Social Care,Third party payments to Health Authority,05-Apr-23,5105865554,Greater Manchester Mental Health,"£32,918.00"
Manchester City Council,Adult Social Care,Third party payments to Health Authority,05-Apr-23,5105865553,Greater Manchester Mental Health,"£9,961.76"
Manchester City Council,Adult Social Care,Third party payments to Health Authority,05-Apr-23,5105865554,Greater Manchester Mental Health,"£9,961.76"
Manchester City Council,Adult Social Care,Third party payments to Health Authority,05-Apr-23,5105865555,Greater Manchester Mental Health,"-£65,836.00"
Manchester City Council,Adult Social Care,Third party payments to Health Authority,05-Apr-23,5105865555,Greater Manchester Mental Health,"-£115,324.00"
Manchester City Council,Adult Social Care,Cleaning Equipment and Materials,05-Apr-23,5105865770,Concept Care,"£1,544.50"
Manchester City Council,Corporate Services,Works and associated costs for Land and Buildings,05-Apr-23,5105865634,Tep-The Environment Partnership,"£2,984.00"
Manchester City Council,Chief Executives,Advertising,05-Apr-23,5105865733,TES Global Ltd,"£1,471.55"
Manchester City Council,Chief Executives,Legal Fees,05-Apr-23,5105865651,Russell & Russell Solicitors LLP,"£3,123.11"
Manchester City Council,Chief Executives,Legal Fees,05-Apr-23,5105865622,Russell & Russell Solicitors LLP,"£2,832.99"
Manchester City Council,Chief Executives,Legal Fees,05-Apr-23,5105865629,Russell & Russell Solicitors LLP,"£2,554.50"
Manchester City Council,Chief Executives,Legal Fees,05-Apr-23,5105865658,Russell & Russell Solicitors LLP,"£2,501.25"
Manchester City Council,Chief Executives,Legal Fees,05-Apr-23,5105865655,Russell & Russell Solicitors LLP,"£2,162.50"
Manchester City Council,Chief Executives,Legal Fees,05-Apr-23,5105865624,Russell & Russell Solicitors LLP,"£2,110.75"
Manchester City Council,Chief Executives,Legal Fees,05-Apr-23,5105865623,Russell & Russell Solicitors LLP,"£2,043.75"
Manchester City Council,Chief Executives,Legal Fees,05-Apr-23,5105865625,Russell & Russell Solicitors LLP,"£1,440.75"
Manchester City Council,Chief Executives,Legal Fees,05-Apr-23,5105865626,Russell & Russell Solicitors LLP,"£1,243.75"
Manchester City Council,Chief Executives,Legal Fees,05-Apr-23,5105865600,Weightmans LLP Solicitors,£795.00
Manchester City Council,Chief Executives,Legal Fees,05-Apr-23,5105865598,Weightmans LLP Solicitors,£754.00
Manchester City Council,Chief Executives,I T Provision,05-Apr-23,5105865674,Trustmarque Solutions Ltd,"£10,100.00"
Manchester City Council,Adult Social Care,Third party payments relating to Voluntary Organisations,05-Apr-23,5105865774,DISC Ltd,"£18,099.50"
Manchester City Council,Adult Social Care,Third party payments relating to Voluntary Organisations,05-Apr-23,5105865772,DISC Ltd,"£14,495.83"
Manchester City Council,Adult Social Care,Third party payments relating to Voluntary Organisations,05-Apr-23,5105865776,DISC Ltd,"£14,033.16"
Manchester City Council,Adult Social Care,Third party payments relating to Voluntary Organisations,05-Apr-23,5105865780,DISC Ltd,"£6,666.00"
Manchester City Council,Adult Social Care,Third party payments relating to Voluntary Organisations,05-Apr-23,5105865779,DISC Ltd,"£5,545.00"
Manchester City Council,Adult Social Care,Personal needs of client,05-Apr-23,5105865764,Care & Independence Ltd,"£1,875.00"
Manchester City Council,Adult Social Care,Personal needs of client,05-Apr-23,5105865737,Care & Independence Ltd,£697.00
Manchester City Council,Adult Social Care,Personal needs of client,05-Apr-23,5105865736,Care & Independence Ltd,-£697.00
Manchester City Council,Adult Social Care,Personal needs of client,05-Apr-23,5105865762,Care & Independence Ltd,"-£1,875.00"
Manchester City Council,Manchester Leisure,Professional fees,05-Apr-23,5105865765,Healthy Me Healthy Communities,"£2,425.00"
Manchester City Council,Housing Revenue Account,External repairs and maintenance for buildings,05-Apr-23,5105865791,Avro Hallows TMO Ltd,"£81,175.00"
Manchester City Council,Corporate Services,Fees,05-Apr-23,5105865107,Pannone Corporate LLP,"£2,150.00"
Manchester City Council,Adult Social Care,Rents,05-Apr-23,5105865642,Mack Residential Letting Ltd,"£1,850.00"
Manchester City Council,Manchester Leisure,Refuse Collection,05-Apr-23,5105865739,Biffa Municipal Limited,"-£78,536.87"
Manchester City Council,Manchester Leisure,Payments to Sub-Contractors,05-Apr-23,5105865792,One Green World,"£1,200.00"
Manchester City Council,Chief Executives,Payments to Sub-Contractors,05-Apr-23,5105865654,Cosmic Europe Ltd,£665.00
Manchester City Council,Manchester Leisure,Professional fees,05-Apr-23,5105865752,UPS Building & Maintenance Ltd,"£15,658.50"
Manchester City Council,Manchester Leisure,Professional fees,05-Apr-23,5105865751,UPS Building & Maintenance Ltd,"-£15,658.50"
Manchester City Council,Childrens & Education Services,Hire of Premises,05-Apr-23,5105865769,Irish Town Manchester Ltd,"£1,130.00"
Manchester City Council,Childrens & Education Services,Recruitment Expenses,05-Apr-23,5105865604,Tripod Partners,"£49,522.66"
Manchester City Council,Childrens & Education Services,Professional fees,05-Apr-23,5105865678,Prospero Teaching,£500.00
Manchester City Council,Childrens & Education Services,Professional fees,05-Apr-23,5105865694,Prospero Teaching,£500.00
Manchester City Council,Hospitality + Trading Services,Vehicle Fuel Costs,05-Apr-23,5105865793,Standard Fuels Oils,"£14,782.84"
Manchester City Council,Hospitality + Trading Services,Vehicle Fuel Costs,05-Apr-23,5105865710,Standard Fuels Oils,"£1,010.88"
Manchester City Council,Hospitality + Trading Services,Vehicle Fuel Costs,05-Apr-23,5105865709,Standard Fuels Oils,"-£1,010.88"
Manchester City Council,Adult Social Care,ClothsUniformLaundry,05-Apr-23,5105865771,Work In Style,"£1,730.30"
Manchester City Council,Adult Social Care,ClothsUniformLaundry,05-Apr-23,5105865775,Work In Style,"£1,298.28"
Manchester City Council,Housing Revenue Account,Council Dwelling Adaptations,05-Apr-23,5105865644,R Development Ltd,"£33,682.35"
Manchester City Council,Manchester Leisure,Equipment,05-Apr-23,5105865663,TGN Construction (Yorkshire) LTD,"£3,637.00"
Manchester City Council,Adult Social Care,Rents,05-Apr-23,5105865682,M&D Residential Ltd,"£2,000.00"
Manchester City Council,Adult Social Care,Subsistence and Conference Expenses,05-Apr-23,5105865671,Alcohol Research UK,"£1,710.00"
Manchester City Council,Childrens & Education Services,Counsel Costs,05-Apr-23,1908073883,DEANS COURT CHAMBERS,"£4,200.00"
Manchester City Council,Chief Executives,Counsel Costs,05-Apr-23,1908073801,DEANS COURT CHAMBERS,"£3,080.00"
Manchester City Council,Adult Social Care,Grant and subscriptions awarded,05-Apr-23,5105865785,Divrse Ltd,"£58,140.00"
Manchester City Council,Adult Social Care,Grant and subscriptions awarded,05-Apr-23,5105865784,Divrse Ltd,"-£58,590.00"
Manchester City Council,Corporate Services,Payments to Contractors,05-Apr-23,5105865806,Yunex Ltd,"£16,620.51"
Manchester City Council,Corporate Services,Payments to Contractors,05-Apr-23,5105865804,Yunex Ltd,"-£16,620.51"
Manchester City Council,Adult Social Care,Bed & Breakfast Acc,05-Apr-23,5105865603,VSP BEAUCLIFFE LTD,"£117,720.00"
Manchester City Council,Childrens & Education Services,Grant Payments,05-Apr-23,1908073946,Paypoint,"£7,363.22"
Manchester City Council,Chief Executives,Printing,05-Apr-23,5105865681,The Purple Company (UK) Ltd,£775.00
Manchester City Council,Chief Executives,Printing,05-Apr-23,5105865800,The Purple Company (UK) Ltd,-£775.00
Manchester City Council,Adult Social Care,Grant and subscriptions awarded,05-Apr-23,5105865627,LEAF Language Library,"£10,000.00"
Manchester City Council,Adult Social Care,Bed & Breakfast Acc,05-Apr-23,5105865650,Manchester Stay Hotel,"£25,260.00"
Manchester City Council,Chief Executives,Hire of Equipment,05-Apr-23,5105865778,AVM Create Ltd,£568.76
Manchester City Council,Adult Social Care,Rents,05-Apr-23,5105865628,Rtech Group Limited,"£2,891.66"
Manchester City Council,Adult Social Care,Rents,05-Apr-23,5105865630,Rtech Group Limited,"£1,258.33"
Manchester City Council,Regeneration Finance,Gas,05-Apr-23,1908065650,Crown Gas and Power,"£8,412.47"
Manchester City Council,Adult Social Care,Rents,05-Apr-23,1908074841,Redacted Personal Information,"£2,750.00"
Manchester City Council,Adult Social Care,Rents,05-Apr-23,1908074841,Redacted Personal Information,"£1,591.78"
Manchester City Council,Adult Social Care,Legal Fees,05-Apr-23,1908073885,M&S Law Limited’s – Client Account,"£7,630.00"
Manchester City Council,Adult Social Care,Supported Accommodation,05-Apr-23,1908061000,Cromwood Housing Ltd,"£19,835.50"
Manchester City Council,Adult Social Care,"Consumable items eg Toilet rolls, soap etc",05-Apr-23,5105865761,Redacted Personal Information,"£2,790.00"
Manchester City Council,Adult Social Care,Bed & Breakfast Acc,05-Apr-23,5105865647,Redacted Personal Information,"£12,274.00"
Manchester City Council,Adult Social Care,Bed & Breakfast Acc,05-Apr-23,5105865700,Redacted Personal Information,"£12,040.00"
Manchester City Council,Chief Executives,Professional fees,05-Apr-23,1908073819,Redacted Personal Information,"£1,309.60"
Manchester City Council,Adult Social Care,Bed & Breakfast Acc,05-Apr-23,5105865602,Redacted Personal Information,"£39,975.00"
Manchester City Council,Chief Executives,Payments to Sub-Contractors,05-Apr-23,5105865620,Redacted Personal Information,£648.07
Manchester City Council,Chief Executives,Payments to Sub-Contractors,05-Apr-23,5105865711,Redacted Personal Information,£637.03
Manchester City Council,Chief Executives,Payments to Sub-Contractors,05-Apr-23,5105865702,Redacted Personal Information,£830.32
Manchester City Council,Chief Executives,Payments to Sub-Contractors,05-Apr-23,5105865753,Redacted Personal Information,"£1,256.25"
Manchester City Council,Manchester Leisure,Professional fees,05-Apr-23,5105865748,Redacted Personal Information,£600.00
Manchester City Council,Manchester Leisure,Special Event,06-Apr-23,5105866032,Redacted Personal Information,£636.00
Manchester City Council,Manchester Leisure,Training and Development,06-Apr-23,1908074815,Redacted Personal Information,"£1,260.00"
Manchester City Council,Corporate Services,Compensation Payments,06-Apr-23,1908076845,Redacted Personal Information,"£2,500.00"
Manchester City Council,Chief Executives,Postage,06-Apr-23,5105865844,Royal Mail Group Plc,"£48,042.04"
Manchester City Council,Adult Social Care,Personal needs of client,06-Apr-23,5105865873,Tunstall Healthcare (UK) Ltd,"£3,900.00"
Manchester City Council,Adult Social Care,Personal needs of client,06-Apr-23,5105865950,Tunstall Healthcare (UK) Ltd,"£1,900.00"
Manchester City Council,Housing Revenue Account,Gas,06-Apr-23,1908076778,Scottish & Southern Energy Plc,"£2,931.07"
Manchester City Council,Housing Revenue Account,Gas,06-Apr-23,1908076774,Scottish & Southern Energy Plc,"£2,906.91"
Manchester City Council,Housing Revenue Account,Gas,06-Apr-23,1908076773,Scottish & Southern Energy Plc,"£2,496.15"
Manchester City Council,Housing Revenue Account,Gas,06-Apr-23,1908076771,Scottish & Southern Energy Plc,"£1,859.89"
Manchester City Council,Housing Revenue Account,Gas,06-Apr-23,1908076777,Scottish & Southern Energy Plc,"£1,476.74"
Manchester City Council,Adult Social Care,Gas,06-Apr-23,1908076772,Scottish & Southern Energy Plc,"£1,152.84"
Manchester City Council,Adult Social Care,Gas,06-Apr-23,1908076779,Scottish & Southern Energy Plc,"£1,026.30"
Manchester City Council,Adult Social Care,Gas,06-Apr-23,1908076769,Scottish & Southern Energy Plc,£977.82
Manchester City Council,Housing Revenue Account,Gas,06-Apr-23,1908076770,Scottish & Southern Energy Plc,£909.51
Manchester City Council,Adult Social Care,Gas,06-Apr-23,1908076776,Scottish & Southern Energy Plc,£623.59
Manchester City Council,Regeneration Finance,Stationery,06-Apr-23,5105865744,Digital ID Ltd,"£8,978.95"
Manchester City Council,Housing General Fund,Building Works,06-Apr-23,1908075807,Handicare Accessibility Ltd,"£4,875.00"
Manchester City Council,Housing General Fund,Building Works,06-Apr-23,1908075808,Handicare Accessibility Ltd,"£1,920.00"
Manchester City Council,Chief Executives,Special Event,06-Apr-23,5105865925,Utilities Design & Planning Ltd,"£1,220.00"
Manchester City Council,Highways Services,Payments to Sub-Contractors,06-Apr-23,5105865924,Utilities Design & Planning Ltd,"£2,000.00"
Manchester City Council,Highways Services,Payments to Sub-Contractors,06-Apr-23,5105865926,Utilities Design & Planning Ltd,"£2,000.00"
Manchester City Council,Highways Services,Payments to Sub-Contractors,06-Apr-23,5105865929,Utilities Design & Planning Ltd,"£2,000.00"
Manchester City Council,Highways Services,Professional fees,06-Apr-23,5105865720,Mace Ltd,"£10,897.44"
Manchester City Council,Highways Services,Professional fees,06-Apr-23,5105865723,Mace Ltd,"£8,511.90"
Manchester City Council,Highways Services,Professional fees,06-Apr-23,5105865716,Mace Ltd,"£8,011.20"
Manchester City Council,Highways Services,Professional fees,06-Apr-23,5105865712,Mace Ltd,"£7,269.00"
Manchester City Council,Highways Services,Professional fees,06-Apr-23,5105865714,Mace Ltd,"£5,633.48"
Manchester City Council,Highways Services,Professional fees,06-Apr-23,5105865718,Mace Ltd,"£4,724.85"
Manchester City Council,Highways Services,Professional fees,06-Apr-23,5105865715,Mace Ltd,"£4,361.40"
Manchester City Council,Highways Services,Professional fees,06-Apr-23,5105865721,Mace Ltd,£678.44
Manchester City Council,Corporate Services,Grant Payments,06-Apr-23,5105865899,University Of Salford,"£2,940.00"
Manchester City Council,Highways Services,Tipping - Tonnage,06-Apr-23,5105865608,J.Hopkins (Contractors) Ltd.,"£1,479.94"
Manchester City Council,Highways Services,Tipping - Tonnage,06-Apr-23,5105865610,J.Hopkins (Contractors) Ltd.,"£1,083.32"
Manchester City Council,Highways Services,Tipping - Tonnage,06-Apr-23,5105866107,J.Hopkins (Contractors) Ltd.,£533.68
Manchester City Council,Highways Services,Tipping - Tonnage,06-Apr-23,5105866118,J.Hopkins (Contractors) Ltd.,£533.68
Manchester City Council,Highways Services,Tipping - Tonnage,06-Apr-23,5105866106,J.Hopkins (Contractors) Ltd.,-£533.68
Manchester City Council,Highways Services,Tipping - Tonnage,06-Apr-23,5105866119,J.Hopkins (Contractors) Ltd.,-£533.68
Manchester City Council,Highways Services,Payments to Sub-Contractors,06-Apr-23,5105866058,J.Hopkins (Contractors) Ltd.,"£11,000.00"
Manchester City Council,Highways Services,Payments to Sub-Contractors,06-Apr-23,5105866116,J.Hopkins (Contractors) Ltd.,"£11,000.00"
Manchester City Council,Highways Services,Payments to Sub-Contractors,06-Apr-23,5105866057,J.Hopkins (Contractors) Ltd.,"-£11,000.00"
Manchester City Council,Highways Services,Payments to Sub-Contractors,06-Apr-23,5105866115,J.Hopkins (Contractors) Ltd.,"-£11,000.00"
Manchester City Council,Adult Social Care,Equipment,06-Apr-23,5105865953,NRS Healthcare,"£2,824.50"
Manchester City Council,Adult Social Care,Equipment,06-Apr-23,5105865947,NRS Healthcare,"£1,119.00"
Manchester City Council,Hospitality + Trading Services,Hire of Equipment,06-Apr-23,1908076847,Mastacab LLP,£533.60
Manchester City Council,Regeneration Finance,Grounds Maintenance,06-Apr-23,5105865840,Arboricultural Services Treework,£940.00
Manchester City Council,Adult Social Care,Payments for services,06-Apr-23,5105866076,Mosscare St Vincent's Housing,"£3,169.20"
Manchester City Council,Adult Social Care,Payments for services,06-Apr-23,5105866077,Mosscare St Vincent's Housing,£517.36
Manchester City Council,Adult Social Care,Payments for services,06-Apr-23,5105866078,Mosscare St Vincent's Housing,£517.36
Manchester City Council,Adult Social Care,Payments for services,06-Apr-23,5105866079,Mosscare St Vincent's Housing,£517.36
Manchester City Council,Adult Social Care,Payments for services,06-Apr-23,5105866080,Mosscare St Vincent's Housing,£517.36
Manchester City Council,Childrens & Education Services,Professional fees,06-Apr-23,5105865887,Uni Hospital of South Mcr,"£3,000.00"
Manchester City Council,Adult Social Care,Payments for services,06-Apr-23,5105865882,Creative Support Ltd,"£19,915.75"
Manchester City Council,Adult Social Care,Payments for services,06-Apr-23,5105866071,Creative Support Ltd,"£19,915.75"
Manchester City Council,Adult Social Care,Payments for services,06-Apr-23,5105866072,Creative Support Ltd,"£2,964.80"
Manchester City Council,Adult Social Care,Security,06-Apr-23,5105865959,Creative Support Ltd,"£16,020.00"
Manchester City Council,Housing General Fund,Building Works,06-Apr-23,1908075806,Stannah Lift Services Ltd,"£6,454.65"
Manchester City Council,Childrens & Education Services,Payments for services,06-Apr-23,5105865788,Central Mcr Uni Hospital t/a,"-£7,652.40"
Manchester City Council,Adult Social Care,Third party payments relating to Voluntary Organisations,06-Apr-23,5105865960,Pure Innovations Ltd,"£16,415.61"
Manchester City Council,Manchester Leisure,Hire of Premises,06-Apr-23,5105866064,Quaker Trading Ltd,£800.00
Manchester City Council,Childrens & Education Services,Hire of Premises,06-Apr-23,5105865946,Quaker Trading Ltd,£781.26
Manchester City Council,Childrens & Education Services,Hire of Premises,06-Apr-23,5105866199,Quaker Trading Ltd,-£659.33
Manchester City Council,Environment and Operations,Construction Works,06-Apr-23,5105865819,4CT Limited,"£8,224.37"
Manchester City Council,Adult Social Care,Third party payments relating to Voluntary Organisations,06-Apr-23,5105865972,Albert Kennedy Trust,£758.33
Manchester City Council,Manchester Leisure,Equipment,06-Apr-23,5105866156,Massey & Harris (Engrg) Ltd,"£4,225.00"
Manchester City Council,Manchester Leisure,Equipment,06-Apr-23,5105866157,Massey & Harris (Engrg) Ltd,"£4,225.00"
Manchester City Council,Manchester Leisure,Works and associated costs for Land and Buildings,06-Apr-23,5105866159,Massey & Harris (Engrg) Ltd,"£5,435.00"
Manchester City Council,Regeneration Finance,Subsistence and Conference Expenses,06-Apr-23,5105865952,Marketing Manchester,"£5,126.22"
Manchester City Council,Highways Services,Payments to Sub-Contractors,06-Apr-23,5105866113,Rosgal Ltd,"£4,599.86"
Manchester City Council,Highways Services,Payments to Sub-Contractors,06-Apr-23,5105866162,Rosgal Ltd,"£3,455.00"
Manchester City Council,Hospitality + Trading Services,Electricity,06-Apr-23,1908076788,Npower,"£46,190.28"
Manchester City Council,Manchester Leisure,Electricity,06-Apr-23,1908076786,Npower,"£37,894.04"
Manchester City Council,Regeneration Finance,Electricity,06-Apr-23,1908076797,Npower,"£28,420.13"
Manchester City Council,Manchester Leisure,Electricity,06-Apr-23,1908076783,Npower,"£27,234.58"
Manchester City Council,Regeneration Finance,Electricity,06-Apr-23,1908076782,Npower,"£21,496.97"
Manchester City Council,Regeneration Finance,Electricity,06-Apr-23,1908076794,Npower,"£21,160.56"
Manchester City Council,Manchester Leisure,Electricity,06-Apr-23,1908076796,Npower,"£21,071.26"
Manchester City Council,Regeneration Finance,Electricity,06-Apr-23,1908076792,Npower,"£15,591.93"
Manchester City Council,Regeneration Finance,Electricity,06-Apr-23,1908076801,Npower,"£13,391.54"
Manchester City Council,Regeneration Finance,Electricity,06-Apr-23,1908076787,Npower,"£12,979.20"
Manchester City Council,Regeneration Finance,Electricity,06-Apr-23,1908076790,Npower,"£12,166.96"
Manchester City Council,Manchester Leisure,Electricity,06-Apr-23,1908076791,Npower,"£10,475.27"
Manchester City Council,Regeneration Finance,Electricity,06-Apr-23,1908076793,Npower,"£10,010.98"
Manchester City Council,Highways Services,Electricity,06-Apr-23,1908076798,Npower,"£6,334.92"
Manchester City Council,Manchester Leisure,Electricity,06-Apr-23,1908076804,Npower,"£6,053.33"
Manchester City Council,Highways Services,Electricity,06-Apr-23,1908076799,Npower,"£5,932.08"
Manchester City Council,Manchester Leisure,Electricity,06-Apr-23,1908076781,Npower,"£5,893.56"
Manchester City Council,Regeneration Finance,Electricity,06-Apr-23,1908076789,Npower,"£5,828.41"
Manchester City Council,Regeneration Finance,Electricity,06-Apr-23,1908076785,Npower,"£4,937.80"
Manchester City Council,Childrens & Education Services,Electricity,06-Apr-23,1908076800,Npower,"£4,647.89"
Manchester City Council,Regeneration Finance,Electricity,06-Apr-23,1908076795,Npower,"£3,761.64"
Manchester City Council,Regeneration Finance,Electricity,06-Apr-23,1908076802,Npower,"£1,771.19"
Manchester City Council,Manchester Leisure,Electricity,06-Apr-23,1908076784,Npower,"£1,435.99"
Manchester City Council,Chief Executives,Printing,06-Apr-23,5105865888,Browns CTP Ltd,"£8,250.00"
Manchester City Council,Chief Executives,Printing,06-Apr-23,5105865758,Browns CTP Ltd,"£1,837.00"
Manchester City Council,Manchester Leisure,I T Provision,06-Apr-23,5105865699,Covergold Ltd,"£3,050.00"
Manchester City Council,Manchester Leisure,I T Provision,06-Apr-23,5105865698,Covergold Ltd,"£1,390.00"
Manchester City Council,Chief Executives,Subsistence and Conference Expenses,06-Apr-23,5105866089,Local Government Association,"£1,000.00"
Manchester City Council,Adult Social Care,Furniture,06-Apr-23,5105865829,Bennett Workplace Solutions Ltd,£734.95
Manchester City Council,Housing Revenue Account,Gas,06-Apr-23,1908076734,Corona Energy Ltd,"£50,192.19"
Manchester City Council,Housing Revenue Account,Gas,06-Apr-23,1908076736,Corona Energy Ltd,"£36,189.77"
Manchester City Council,Manchester Leisure,Gas,06-Apr-23,1908076455,Corona Energy Ltd,"£23,479.59"
Manchester City Council,Regeneration Finance,Gas,06-Apr-23,1908076560,Corona Energy Ltd,"£19,003.15"
Manchester City Council,Manchester Leisure,Gas,06-Apr-23,1908076527,Corona Energy Ltd,"£15,532.61"
Manchester City Council,Manchester Leisure,Gas,06-Apr-23,1908076655,Corona Energy Ltd,"£15,513.77"
Manchester City Council,Manchester Leisure,Gas,06-Apr-23,1908076669,Corona Energy Ltd,"£14,737.50"
Manchester City Council,Regeneration Finance,Gas,06-Apr-23,1908076436,Corona Energy Ltd,"£14,490.30"
Manchester City Council,Regeneration Finance,Gas,06-Apr-23,1908076676,Corona Energy Ltd,"£13,148.30"
Manchester City Council,Hospitality + Trading Services,Gas,06-Apr-23,1908076486,Corona Energy Ltd,"£12,964.49"
Manchester City Council,Manchester Leisure,Gas,06-Apr-23,1908076606,Corona Energy Ltd,"£9,674.21"
Manchester City Council,Regeneration Finance,Gas,06-Apr-23,1908076601,Corona Energy Ltd,"£8,738.84"
Manchester City Council,Regeneration Finance,Gas,06-Apr-23,1908076762,Corona Energy Ltd,"£8,731.46"
Manchester City Council,Manchester Leisure,Gas,06-Apr-23,1908076628,Corona Energy Ltd,"£8,672.23"
Manchester City Council,Manchester Leisure,Gas,06-Apr-23,1908076631,Corona Energy Ltd,"£8,623.50"
Manchester City Council,Regeneration Finance,Gas,06-Apr-23,1908076763,Corona Energy Ltd,"£8,228.32"
Manchester City Council,Manchester Leisure,Gas,06-Apr-23,1908076644,Corona Energy Ltd,"£7,664.48"
Manchester City Council,Manchester Leisure,Gas,06-Apr-23,1908076526,Corona Energy Ltd,"£6,662.07"
Manchester City Council,Manchester Leisure,Gas,06-Apr-23,1908076605,Corona Energy Ltd,"£6,520.05"
Manchester City Council,Regeneration Finance,Gas,06-Apr-23,1908076604,Corona Energy Ltd,"£6,264.41"
Manchester City Council,Housing Revenue Account,Gas,06-Apr-23,1908076582,Corona Energy Ltd,"£6,261.87"
Manchester City Council,Housing Revenue Account,Gas,06-Apr-23,1908076585,Corona Energy Ltd,"£6,243.35"
Manchester City Council,Manchester Leisure,Gas,06-Apr-23,1908076480,Corona Energy Ltd,"£6,220.52"
Manchester City Council,Regeneration Finance,Gas,06-Apr-23,1908076573,Corona Energy Ltd,"£6,059.42"
Manchester City Council,Regeneration Finance,Gas,06-Apr-23,1908076733,Corona Energy Ltd,"£6,056.43"
Manchester City Council,Housing Revenue Account,Gas,06-Apr-23,1908076697,Corona Energy Ltd,"£5,912.26"
Manchester City Council,Manchester Leisure,Gas,06-Apr-23,1908076649,Corona Energy Ltd,"£5,890.17"
Manchester City Council,Regeneration Finance,Gas,06-Apr-23,1908076766,Corona Energy Ltd,"£5,837.89"
Manchester City Council,Hospitality + Trading Services,Gas,06-Apr-23,1908076458,Corona Energy Ltd,"£5,804.28"
Manchester City Council,Housing Revenue Account,Gas,06-Apr-23,1908076453,Corona Energy Ltd,"£5,803.89"
Manchester City Council,Regeneration Finance,Gas,06-Apr-23,1908076561,Corona Energy Ltd,"£5,789.56"
Manchester City Council,Housing Revenue Account,Gas,06-Apr-23,1908076608,Corona Energy Ltd,"£5,777.03"
Manchester City Council,Housing Revenue Account,Gas,06-Apr-23,1908076705,Corona Energy Ltd,"£5,750.34"
Manchester City Council,Regeneration Finance,Gas,06-Apr-23,1908076761,Corona Energy Ltd,"£5,654.01"
Manchester City Council,Regeneration Finance,Gas,06-Apr-23,1908076675,Corona Energy Ltd,"£5,608.92"
Manchester City Council,Manchester Leisure,Gas,06-Apr-23,1908076607,Corona Energy Ltd,"£5,456.06"
Manchester City Council,Adult Social Care,Gas,06-Apr-23,1908076538,Corona Energy Ltd,"£5,377.02"
Manchester City Council,Regeneration Finance,Gas,06-Apr-23,1908076581,Corona Energy Ltd,"£5,271.32"
Manchester City Council,Regeneration Finance,Gas,06-Apr-23,1908076567,Corona Energy Ltd,"£5,183.85"
Manchester City Council,Housing Revenue Account,Gas,06-Apr-23,1908076707,Corona Energy Ltd,"£4,894.49"
Manchester City Council,Housing Revenue Account,Gas,06-Apr-23,1908076530,Corona Energy Ltd,"£4,551.44"
Manchester City Council,Childrens & Education Services,Gas,06-Apr-23,1908076756,Corona Energy Ltd,"£4,510.69"
Manchester City Council,Manchester Leisure,Gas,06-Apr-23,1908076440,Corona Energy Ltd,"£4,490.83"
Manchester City Council,Manchester Leisure,Gas,06-Apr-23,1908076650,Corona Energy Ltd,"£4,443.86"
Manchester City Council,Housing Revenue Account,Gas,06-Apr-23,1908076454,Corona Energy Ltd,"£4,408.74"
Manchester City Council,Manchester Leisure,Gas,06-Apr-23,1908076661,Corona Energy Ltd,"£4,287.68"
Manchester City Council,Regeneration Finance,Gas,06-Apr-23,1908076694,Corona Energy Ltd,"£4,192.09"
Manchester City Council,Regeneration Finance,Gas,06-Apr-23,1908076555,Corona Energy Ltd,"£4,008.98"
Manchester City Council,Housing Revenue Account,Gas,06-Apr-23,1908076490,Corona Energy Ltd,"£3,906.68"
Manchester City Council,Manchester Leisure,Gas,06-Apr-23,1908076645,Corona Energy Ltd,"£3,800.55"
Manchester City Council,Regeneration Finance,Gas,06-Apr-23,1908076521,Corona Energy Ltd,"£3,696.55"
Manchester City Council,Adult Social Care,Gas,06-Apr-23,1908076684,Corona Energy Ltd,"£3,675.33"
Manchester City Council,Adult Social Care,Gas,06-Apr-23,1908076616,Corona Energy Ltd,"£3,557.47"
Manchester City Council,Manchester Leisure,Gas,06-Apr-23,1908076477,Corona Energy Ltd,"£3,530.54"
Manchester City Council,Regeneration Finance,Gas,06-Apr-23,1908076562,Corona Energy Ltd,"£3,490.68"
Manchester City Council,Housing Revenue Account,Gas,06-Apr-23,1908076699,Corona Energy Ltd,"£3,410.91"
Manchester City Council,Regeneration Finance,Gas,06-Apr-23,1908076753,Corona Energy Ltd,"£3,368.96"
Manchester City Council,Regeneration Finance,Gas,06-Apr-23,1908076588,Corona Energy Ltd,"£3,343.06"
Manchester City Council,Manchester Leisure,Gas,06-Apr-23,1908076662,Corona Energy Ltd,"£3,304.97"
Manchester City Council,Regeneration Finance,Gas,06-Apr-23,1908076689,Corona Energy Ltd,"£3,263.40"
Manchester City Council,Adult Social Care,Gas,06-Apr-23,1908076750,Corona Energy Ltd,"£3,187.42"
Manchester City Council,Manchester Leisure,Gas,06-Apr-23,1908076745,Corona Energy Ltd,"£3,097.09"
Manchester City Council,Regeneration Finance,Gas,06-Apr-23,1908076504,Corona Energy Ltd,"£3,071.28"
Manchester City Council,Regeneration Finance,Gas,06-Apr-23,1908076765,Corona Energy Ltd,"£2,938.39"
Manchester City Council,Manchester Leisure,Gas,06-Apr-23,1908076731,Corona Energy Ltd,"£2,901.89"
Manchester City Council,Regeneration Finance,Gas,06-Apr-23,1908076586,Corona Energy Ltd,"£2,849.72"
Manchester City Council,Regeneration Finance,Gas,06-Apr-23,1908076646,Corona Energy Ltd,"£2,797.62"
Manchester City Council,Regeneration Finance,Gas,06-Apr-23,1908076575,Corona Energy Ltd,"£2,785.49"
Manchester City Council,Childrens & Education Services,Gas,06-Apr-23,1908076647,Corona Energy Ltd,"£2,770.83"
Manchester City Council,Regeneration Finance,Gas,06-Apr-23,1908076541,Corona Energy Ltd,"£2,741.89"
Manchester City Council,Childrens & Education Services,Gas,06-Apr-23,1908076685,Corona Energy Ltd,"£2,736.54"
Manchester City Council,Manchester Leisure,Gas,06-Apr-23,1908076648,Corona Energy Ltd,"£2,583.21"
Manchester City Council,Regeneration Finance,Gas,06-Apr-23,1908076681,Corona Energy Ltd,"£2,493.04"
Manchester City Council,Hospitality + Trading Services,Gas,06-Apr-23,1908076459,Corona Energy Ltd,"£2,379.62"
Manchester City Council,Regeneration Finance,Gas,06-Apr-23,1908076760,Corona Energy Ltd,"£2,361.56"
Manchester City Council,Regeneration Finance,Gas,06-Apr-23,1908076595,Corona Energy Ltd,"£2,310.85"
Manchester City Council,Manchester Leisure,Gas,06-Apr-23,1908076656,Corona Energy Ltd,"£2,279.27"
Manchester City Council,Adult Social Care,Gas,06-Apr-23,1908076537,Corona Energy Ltd,"£2,248.15"
Manchester City Council,Hospitality + Trading Services,Gas,06-Apr-23,1908076559,Corona Energy Ltd,"£2,176.78"
Manchester City Council,Regeneration Finance,Gas,06-Apr-23,1908076672,Corona Energy Ltd,"£2,117.68"
Manchester City Council,Regeneration Finance,Gas,06-Apr-23,1908076444,Corona Energy Ltd,"£2,116.70"
Manchester City Council,Regeneration Finance,Gas,06-Apr-23,1908076700,Corona Energy Ltd,"£2,081.95"
Manchester City Council,Manchester Leisure,Gas,06-Apr-23,1908076643,Corona Energy Ltd,"£2,081.00"
Manchester City Council,Manchester Leisure,Gas,06-Apr-23,1908076500,Corona Energy Ltd,"£2,067.07"
Manchester City Council,Housing Revenue Account,Gas,06-Apr-23,1908076556,Corona Energy Ltd,"£1,996.67"
Manchester City Council,Manchester Leisure,Gas,06-Apr-23,1908076481,Corona Energy Ltd,"£1,986.23"
Manchester City Council,Manchester Leisure,Gas,06-Apr-23,1908076657,Corona Energy Ltd,"£1,955.16"
Manchester City Council,Regeneration Finance,Gas,06-Apr-23,1908076732,Corona Energy Ltd,"£1,935.93"
Manchester City Council,Regeneration Finance,Gas,06-Apr-23,1908076703,Corona Energy Ltd,"£1,924.82"
Manchester City Council,Regeneration Finance,Gas,06-Apr-23,1908076568,Corona Energy Ltd,"£1,920.14"
Manchester City Council,Regeneration Finance,Gas,06-Apr-23,1908076719,Corona Energy Ltd,"£1,894.53"
Manchester City Council,Adult Social Care,Gas,06-Apr-23,1908076670,Corona Energy Ltd,"£1,892.86"
Manchester City Council,Hospitality + Trading Services,Gas,06-Apr-23,1908076712,Corona Energy Ltd,"£1,879.28"
Manchester City Council,Childrens & Education Services,Gas,06-Apr-23,1908076505,Corona Energy Ltd,"£1,843.43"
Manchester City Council,Regeneration Finance,Gas,06-Apr-23,1908076574,Corona Energy Ltd,"£1,830.64"
Manchester City Council,Regeneration Finance,Gas,06-Apr-23,1908076576,Corona Energy Ltd,"£1,800.76"
Manchester City Council,Regeneration Finance,Gas,06-Apr-23,1908076600,Corona Energy Ltd,"£1,736.53"
Manchester City Council,Regeneration Finance,Gas,06-Apr-23,1908076751,Corona Energy Ltd,"£1,715.89"
Manchester City Council,Housing Revenue Account,Gas,06-Apr-23,1908076489,Corona Energy Ltd,"£1,680.43"
Manchester City Council,Regeneration Finance,Gas,06-Apr-23,1908076621,Corona Energy Ltd,"£1,679.39"
Manchester City Council,Childrens & Education Services,Gas,06-Apr-23,1908076709,Corona Energy Ltd,"£1,650.10"
Manchester City Council,Childrens & Education Services,Gas,06-Apr-23,1908076483,Corona Energy Ltd,"£1,614.24"
Manchester City Council,Manchester Leisure,Gas,06-Apr-23,1908076479,Corona Energy Ltd,"£1,568.33"
Manchester City Council,Adult Social Care,Gas,06-Apr-23,1908076460,Corona Energy Ltd,"£1,557.81"
Manchester City Council,Manchester Leisure,Gas,06-Apr-23,1908076457,Corona Energy Ltd,"£1,530.07"
Manchester City Council,Adult Social Care,Gas,06-Apr-23,1908076615,Corona Energy Ltd,"£1,529.30"
Manchester City Council,Regeneration Finance,Gas,06-Apr-23,1908076429,Corona Energy Ltd,"£1,518.00"
Manchester City Council,Manchester Leisure,Gas,06-Apr-23,1908076476,Corona Energy Ltd,"£1,508.13"
Manchester City Council,Adult Social Care,Gas,06-Apr-23,1908076433,Corona Energy Ltd,"£1,484.07"
Manchester City Council,Housing Revenue Account,Gas,06-Apr-23,1908076698,Corona Energy Ltd,"£1,461.09"
Manchester City Council,Regeneration Finance,Gas,06-Apr-23,1908076502,Corona Energy Ltd,"£1,434.08"
Manchester City Council,Regeneration Finance,Gas,06-Apr-23,1908076730,Corona Energy Ltd,"£1,408.84"
Manchester City Council,Regeneration Finance,Gas,06-Apr-23,1908076587,Corona Energy Ltd,"£1,400.28"
Manchester City Council,Childrens & Education Services,Gas,06-Apr-23,1908076564,Corona Energy Ltd,"£1,394.48"
Manchester City Council,Manchester Leisure,Gas,06-Apr-23,1908076653,Corona Energy Ltd,"£1,389.32"
Manchester City Council,Regeneration Finance,Gas,06-Apr-23,1908076688,Corona Energy Ltd,"£1,385.62"
Manchester City Council,Regeneration Finance,Gas,06-Apr-23,1908076432,Corona Energy Ltd,"£1,375.96"
Manchester City Council,Regeneration Finance,Gas,06-Apr-23,1908076494,Corona Energy Ltd,"£1,331.42"
Manchester City Council,Regeneration Finance,Gas,06-Apr-23,1908076503,Corona Energy Ltd,"£1,318.26"
Manchester City Council,Childrens & Education Services,Gas,06-Apr-23,1908076603,Corona Energy Ltd,"£1,313.37"
Manchester City Council,Manchester Leisure,Gas,06-Apr-23,1908076641,Corona Energy Ltd,"£1,299.77"
Manchester City Council,Childrens & Education Services,Gas,06-Apr-23,1908076439,Corona Energy Ltd,"£1,296.53"
Manchester City Council,Regeneration Finance,Gas,06-Apr-23,1908076614,Corona Energy Ltd,"£1,295.74"
Manchester City Council,Regeneration Finance,Gas,06-Apr-23,1908076430,Corona Energy Ltd,"£1,260.66"
Manchester City Council,Adult Social Care,Gas,06-Apr-23,1908076422,Corona Energy Ltd,"£1,237.49"
Manchester City Council,Regeneration Finance,Gas,06-Apr-23,1908076749,Corona Energy Ltd,"£1,223.19"
Manchester City Council,Adult Social Care,Gas,06-Apr-23,1908076424,Corona Energy Ltd,"£1,215.75"
Manchester City Council,Adult Social Care,Gas,06-Apr-23,1908076492,Corona Energy Ltd,"£1,213.09"
Manchester City Council,Childrens & Education Services,Gas,06-Apr-23,1908076462,Corona Energy Ltd,"£1,204.66"
Manchester City Council,Regeneration Finance,Gas,06-Apr-23,1908076569,Corona Energy Ltd,"£1,183.64"
Manchester City Council,Childrens & Education Services,Gas,06-Apr-23,1908076755,Corona Energy Ltd,"£1,172.67"
Manchester City Council,Adult Social Care,Gas,06-Apr-23,1908076496,Corona Energy Ltd,"£1,147.01"
Manchester City Council,Regeneration Finance,Gas,06-Apr-23,1908076668,Corona Energy Ltd,"£1,125.43"
Manchester City Council,Manchester Leisure,Gas,06-Apr-23,1908076658,Corona Energy Ltd,"£1,079.48"
Manchester City Council,Housing Revenue Account,Gas,06-Apr-23,1908076691,Corona Energy Ltd,"£1,068.44"
Manchester City Council,Manchester Leisure,Gas,06-Apr-23,1908076448,Corona Energy Ltd,"£1,060.55"
Manchester City Council,Adult Social Care,Gas,06-Apr-23,1908076744,Corona Energy Ltd,"£1,058.20"
Manchester City Council,Adult Social Care,Gas,06-Apr-23,1908076426,Corona Energy Ltd,"£1,040.28"
Manchester City Council,Adult Social Care,Gas,06-Apr-23,1908076488,Corona Energy Ltd,"£1,032.21"
Manchester City Council,Adult Social Care,Gas,06-Apr-23,1908076702,Corona Energy Ltd,"£1,016.92"
Manchester City Council,Regeneration Finance,Gas,06-Apr-23,1908076666,Corona Energy Ltd,"£1,013.00"
Manchester City Council,Manchester Leisure,Gas,06-Apr-23,1908076654,Corona Energy Ltd,£970.91
Manchester City Council,Adult Social Care,Gas,06-Apr-23,1908076540,Corona Energy Ltd,£960.78
Manchester City Council,Manchester Leisure,Gas,06-Apr-23,1908076652,Corona Energy Ltd,£936.59
Manchester City Council,Housing Revenue Account,Gas,06-Apr-23,1908076525,Corona Energy Ltd,£934.63
Manchester City Council,Manchester Leisure,Gas,06-Apr-23,1908076651,Corona Energy Ltd,£923.88
Manchester City Council,Regeneration Finance,Gas,06-Apr-23,1908076627,Corona Energy Ltd,£906.19
Manchester City Council,Regeneration Finance,Gas,06-Apr-23,1908076443,Corona Energy Ltd,£890.65
Manchester City Council,Adult Social Care,Gas,06-Apr-23,1908076674,Corona Energy Ltd,£884.39
Manchester City Council,Manchester Leisure,Gas,06-Apr-23,1908076659,Corona Energy Ltd,£874.52
Manchester City Council,Regeneration Finance,Gas,06-Apr-23,1908076718,Corona Energy Ltd,£836.92
Manchester City Council,Childrens & Education Services,Gas,06-Apr-23,1908076639,Corona Energy Ltd,£818.49
Manchester City Council,Regeneration Finance,Gas,06-Apr-23,1908076446,Corona Energy Ltd,£789.87
Manchester City Council,Regeneration Finance,Gas,06-Apr-23,1908076618,Corona Energy Ltd,£783.34
Manchester City Council,Regeneration Finance,Gas,06-Apr-23,1908076752,Corona Energy Ltd,£726.47
Manchester City Council,Childrens & Education Services,Gas,06-Apr-23,1908076708,Corona Energy Ltd,£710.57
Manchester City Council,Regeneration Finance,Gas,06-Apr-23,1908076620,Corona Energy Ltd,£700.76
Manchester City Council,Adult Social Care,Gas,06-Apr-23,1908076725,Corona Energy Ltd,£698.70
Manchester City Council,Childrens & Education Services,Gas,06-Apr-23,1908076482,Corona Energy Ltd,£696.33
Manchester City Council,Manchester Leisure,Gas,06-Apr-23,1908076450,Corona Energy Ltd,£692.61
Manchester City Council,Hospitality + Trading Services,Gas,06-Apr-23,1908076532,Corona Energy Ltd,£691.07
Manchester City Council,Adult Social Care,Gas,06-Apr-23,1908076740,Corona Energy Ltd,£663.23
Manchester City Council,Regeneration Finance,Gas,06-Apr-23,1908076748,Corona Energy Ltd,£659.25
Manchester City Council,Manchester Leisure,Gas,06-Apr-23,1908076456,Corona Energy Ltd,£648.73
Manchester City Council,Childrens & Education Services,Gas,06-Apr-23,1908076499,Corona Energy Ltd,£646.23
Manchester City Council,Childrens & Education Services,Gas,06-Apr-23,1908076452,Corona Energy Ltd,£645.69
Manchester City Council,Adult Social Care,Gas,06-Apr-23,1908076435,Corona Energy Ltd,£645.62
Manchester City Council,Manchester Leisure,Gas,06-Apr-23,1908076664,Corona Energy Ltd,£641.72
Manchester City Council,Regeneration Finance,Gas,06-Apr-23,1908076518,Corona Energy Ltd,£628.35
Manchester City Council,Housing Revenue Account,Gas,06-Apr-23,1908076747,Corona Energy Ltd,£622.70
Manchester City Council,Regeneration Finance,Gas,06-Apr-23,1908076501,Corona Energy Ltd,£617.58
Manchester City Council,Regeneration Finance,Gas,06-Apr-23,1908076729,Corona Energy Ltd,£607.44
Manchester City Council,Regeneration Finance,Gas,06-Apr-23,1908076431,Corona Energy Ltd,£579.49
Manchester City Council,Manchester Leisure,Gas,06-Apr-23,1908076478,Corona Energy Ltd,£569.27
Manchester City Council,Childrens & Education Services,Gas,06-Apr-23,1908076602,Corona Energy Ltd,£563.84
Manchester City Council,Regeneration Finance,Gas,06-Apr-23,1908076493,Corona Energy Ltd,£559.92
Manchester City Council,Regeneration Finance,Gas,06-Apr-23,1908076613,Corona Energy Ltd,£557.42
Manchester City Council,Regeneration Finance,Gas,06-Apr-23,1908076498,Corona Energy Ltd,£543.54
Manchester City Council,Adult Social Care,Gas,06-Apr-23,1908076421,Corona Energy Ltd,£536.12
Manchester City Council,Regeneration Finance,Gas,06-Apr-23,1908076721,Corona Energy Ltd,£527.39
Manchester City Council,Adult Social Care,Gas,06-Apr-23,1908076423,Corona Energy Ltd,£527.07
Manchester City Council,Adult Social Care,Gas,06-Apr-23,1908076491,Corona Energy Ltd,£524.27
Manchester City Council,Childrens & Education Services,Gas,06-Apr-23,1908076461,Corona Energy Ltd,£522.63
Manchester City Council,Regeneration Finance,Gas,06-Apr-23,1908076570,Corona Energy Ltd,£516.85
Manchester City Council,Childrens & Education Services,Gas,06-Apr-23,1908076754,Corona Energy Ltd,£502.43
Manchester City Council,Regeneration Finance,Gas,06-Apr-23,1908076554,Corona Energy Ltd,£500.83
Manchester City Council,Regeneration Finance,Gas,06-Apr-23,1908076523,Corona Energy Ltd,£500.42
Manchester City Council,Childrens & Education Services,Gas,06-Apr-23,1700148232,Corona Energy Ltd,-£637.73
Manchester City Council,Manchester Leisure,Gas,06-Apr-23,1700148239,Corona Energy Ltd,"-£4,242.91"
Manchester City Council,Regeneration Finance,Gas,06-Apr-23,1700148245,Corona Energy Ltd,"-£5,113.81"
Manchester City Council,Regeneration Finance,Gas,06-Apr-23,1700148246,Corona Energy Ltd,"-£10,841.43"
Manchester City Council,Manchester Leisure,Gas,06-Apr-23,1700148238,Corona Energy Ltd,"-£13,729.27"
Manchester City Council,Regeneration Finance,Gas,06-Apr-23,1700148244,Corona Energy Ltd,"-£14,358.15"
Manchester City Council,Regeneration Finance,Gas,06-Apr-23,1700148247,Corona Energy Ltd,"-£14,442.96"
Manchester City Council,Manchester Leisure,Gas,06-Apr-23,1700148240,Corona Energy Ltd,"-£22,093.09"
Manchester City Council,Environment and Operations,Construction Works,06-Apr-23,5105865948,GMCA,"£5,175.81"
Manchester City Council,Chief Executives,Grant and subscriptions awarded,06-Apr-23,5105865883,Brighter Sound Ltd,"£5,000.00"
Manchester City Council,Regeneration Finance,Grant Payments,06-Apr-23,5105866074,Cityco,"£50,000.00"
Manchester City Council,Housing Revenue Account,Works and associated costs for Land and Buildings,06-Apr-23,5105865990,Faithful & Gould Ltd,"£12,400.00"
Manchester City Council,Housing Revenue Account,Works and associated costs for Land and Buildings,06-Apr-23,5105865986,Faithful & Gould Ltd,"£5,048.00"
Manchester City Council,Housing Revenue Account,Works and associated costs for Land and Buildings,06-Apr-23,5105865983,Faithful & Gould Ltd,"£1,012.00"
Manchester City Council,Adult Social Care,Cleaning Equipment and Materials,06-Apr-23,5105866263,Alliance Disposables Ltd,£718.82
Manchester City Council,Chief Executives,Legal Fees,06-Apr-23,5105865854,Weightmans LLP Solicitors,"£1,297.75"
Manchester City Council,Adult Social Care,Equipment,06-Apr-23,5105865875,Aidapt Bathrooms Ltd,£624.00
Manchester City Council,Manchester Leisure,Equipment,06-Apr-23,5105865759,B & S Chains (Midlands) Ltd,£576.00
Manchester City Council,Chief Executives,Hire of Equipment,06-Apr-23,5105865966,Mercury AV Ltd,£880.00
Manchester City Council,Manchester Leisure,Professional fees,06-Apr-23,5105866017,Framing Manchester Ltd,"£1,413.86"
Manchester City Council,Manchester Leisure,Grant and subscriptions awarded,06-Apr-23,5105866154,Youth on Solid Ground,"£10,000.00"
Manchester City Council,Childrens & Education Services,Professional fees,06-Apr-23,5105866065,Lucy Faithfull Foundation,"£5,408.00"
Manchester City Council,Corporate Services,Works and associated costs for Land and Buildings,06-Apr-23,5105866073,Conlon Construction Ltd,"£38,368.03"
Manchester City Council,Regeneration Finance,Home Care ,06-Apr-23,5105865835,Community Minded Ltd,£990.00
Manchester City Council,Corporate Services,Grant and subscriptions awarded,06-Apr-23,5105866161,Healthy Me Healthy Communities,"£5,558.00"
Manchester City Council,Adult Social Care,Third party payments to Health Authority,06-Apr-23,5105865951,Integrate (Preston & Chorley) Ltd,£860.52
Manchester City Council,Regeneration Finance,Transport Taxis,06-Apr-23,5105865760,MCR Blackcab Ltd,"£1,611.70"
Manchester City Council,Childrens & Education Services,Transport Coach Hire,06-Apr-23,5105865300,Alt Payee Acorn Care & Education,"£3,335.00"
Manchester City Council,Corporate Services,Fees,06-Apr-23,5105865825,Pannone Corporate LLP,"£10,449.00"
Manchester City Council,Corporate Services,Fees,06-Apr-23,5105865825,Pannone Corporate LLP,"£7,637.00"
Manchester City Council,Adult Social Care,Rents,06-Apr-23,5105865940,Mack Residential Letting Ltd,£750.00
Manchester City Council,Chief Executives,Payments to Sub-Contractors,06-Apr-23,5105866141,Cosmic Europe Ltd,"£2,225.00"
Manchester City Council,Manchester Leisure,Grant and subscriptions awarded,06-Apr-23,5105866045,Abraham Moss Community FC,"£1,000.00"
Manchester City Council,Manchester Leisure,Professional fees,06-Apr-23,5105865755,Aareon UK Ltd,"-£2,600.00"
Manchester City Council,Adult Social Care,Personal needs of client,06-Apr-23,5105866075,Doro Care Ltd,"£37,800.00"
Manchester City Council,Adult Social Care,Personal needs of client,06-Apr-23,5105866063,Doro Care Ltd,£628.00
Manchester City Council,Chief Executives,Works and associated costs for Land and Buildings,06-Apr-23,5105866056,ERAP Limited,£500.00
Manchester City Council,Adult Social Care,Rents,06-Apr-23,5105865745,Eeven Homes Ltd.,"£17,916.00"
Manchester City Council,Adult Social Care,Rents,06-Apr-23,5105865807,Eeven Homes Ltd.,"-£17,916.00"
Manchester City Council,Regeneration Finance,Water - Metered,06-Apr-23,1908076189,Water Plus Limited,"£5,643.48"
Manchester City Council,Regeneration Finance,Water - Metered,06-Apr-23,1908076242,Water Plus Limited,"£5,643.48"
Manchester City Council,Regeneration Finance,Water - Metered,06-Apr-23,1908076292,Water Plus Limited,"£4,594.56"
Manchester City Council,Regeneration Finance,Water - Metered,06-Apr-23,1908076280,Water Plus Limited,"£3,693.03"
Manchester City Council,Regeneration Finance,Water - Metered,06-Apr-23,1908076281,Water Plus Limited,"£3,574.30"
Manchester City Council,Regeneration Finance,Water - Metered,06-Apr-23,1908076288,Water Plus Limited,"£3,233.84"
Manchester City Council,Regeneration Finance,Water - Metered,06-Apr-23,1908076282,Water Plus Limited,"£3,165.73"
Manchester City Council,Regeneration Finance,Water - Metered,06-Apr-23,1908076283,Water Plus Limited,"£3,165.73"
Manchester City Council,Regeneration Finance,Water - Metered,06-Apr-23,1908076289,Water Plus Limited,"£3,128.60"
Manchester City Council,Regeneration Finance,Water - Metered,06-Apr-23,1908076287,Water Plus Limited,"£3,076.05"
Manchester City Council,Regeneration Finance,Water - Metered,06-Apr-23,1908076284,Water Plus Limited,"£2,962.60"
Manchester City Council,Regeneration Finance,Water - Metered,06-Apr-23,1908076290,Water Plus Limited,"£2,916.52"
Manchester City Council,Regeneration Finance,Water - Metered,06-Apr-23,1908076285,Water Plus Limited,"£2,348.76"
Manchester City Council,Regeneration Finance,Water - Metered,06-Apr-23,1908076267,Water Plus Limited,"£2,092.40"
Manchester City Council,Regeneration Finance,Water - Metered,06-Apr-23,1908076269,Water Plus Limited,"£2,092.40"
Manchester City Council,Regeneration Finance,Water - Metered,06-Apr-23,1908076270,Water Plus Limited,"£2,092.40"
Manchester City Council,Regeneration Finance,Water - Metered,06-Apr-23,1908076275,Water Plus Limited,"£2,090.98"
Manchester City Council,Regeneration Finance,Water - Metered,06-Apr-23,1908076277,Water Plus Limited,"£2,090.98"
Manchester City Council,Regeneration Finance,Water - Metered,06-Apr-23,1908076268,Water Plus Limited,"£2,024.91"
Manchester City Council,Regeneration Finance,Water - Metered,06-Apr-23,1908076274,Water Plus Limited,"£2,023.53"
Manchester City Council,Regeneration Finance,Water - Metered,06-Apr-23,1908076276,Water Plus Limited,"£2,023.53"
Manchester City Council,Regeneration Finance,Water - Metered,06-Apr-23,1908076271,Water Plus Limited,"£1,957.41"
Manchester City Council,Regeneration Finance,Water - Metered,06-Apr-23,1908076272,Water Plus Limited,"£1,552.43"
Manchester City Council,Regeneration Finance,Water - Metered,06-Apr-23,1908076302,Water Plus Limited,"£1,531.29"
Manchester City Council,Regeneration Finance,Water - Metered,06-Apr-23,1908076305,Water Plus Limited,"£1,124.56"
Manchester City Council,Regeneration Finance,Water - Metered,06-Apr-23,1908076295,Water Plus Limited,"£1,116.10"
Manchester City Council,Regeneration Finance,Water - Metered,06-Apr-23,1908076296,Water Plus Limited,"£1,090.62"
Manchester City Council,Regeneration Finance,Water - Metered,06-Apr-23,1908076294,Water Plus Limited,"£1,080.82"
Manchester City Council,Regeneration Finance,Water - Metered,06-Apr-23,1908076278,Water Plus Limited,"£1,079.21"
Manchester City Council,Regeneration Finance,Water - Metered,06-Apr-23,1908076293,Water Plus Limited,"£1,068.33"
Manchester City Council,Regeneration Finance,Water - Metered,06-Apr-23,1908076303,Water Plus Limited,"£1,065.47"
Manchester City Council,Regeneration Finance,Water - Metered,06-Apr-23,1908076301,Water Plus Limited,"£1,064.03"
Manchester City Council,Regeneration Finance,Water - Metered,06-Apr-23,1908076297,Water Plus Limited,"£1,007.32"
Manchester City Council,Regeneration Finance,Water - Metered,06-Apr-23,1908076300,Water Plus Limited,£976.03
Manchester City Council,Regeneration Finance,Water - Metered,06-Apr-23,1908076191,Water Plus Limited,£919.29
Manchester City Council,Regeneration Finance,Water - Metered,06-Apr-23,1908076244,Water Plus Limited,£919.29
Manchester City Council,Regeneration Finance,Water - Metered,06-Apr-23,1908076298,Water Plus Limited,£802.08
Manchester City Council,Regeneration Finance,Water - Metered,06-Apr-23,1908076286,Water Plus Limited,£776.12
Manchester City Council,Regeneration Finance,Water - Metered,06-Apr-23,1908076279,Water Plus Limited,£678.96
Manchester City Council,Regeneration Finance,Water - Metered,06-Apr-23,1908076273,Water Plus Limited,£539.61
Manchester City Council,Hospitality + Trading Services,Water - Metered,06-Apr-23,1908076357,Water Plus Limited,£519.21
Manchester City Council,Regeneration Finance,Water - Metered,06-Apr-23,1700148170,Water Plus Limited,-£539.61
Manchester City Council,Regeneration Finance,Water - Metered,06-Apr-23,1700148183,Water Plus Limited,-£776.12
Manchester City Council,Regeneration Finance,Water - Metered,06-Apr-23,1700148196,Water Plus Limited,-£802.08
Manchester City Council,Regeneration Finance,Water - Metered,06-Apr-23,1700148122,Water Plus Limited,-£917.84
Manchester City Council,Regeneration Finance,Water - Metered,06-Apr-23,1700148162,Water Plus Limited,-£917.84
Manchester City Council,Regeneration Finance,Water - Metered,06-Apr-23,1700148198,Water Plus Limited,-£976.03
Manchester City Council,Regeneration Finance,Water - Metered,06-Apr-23,1700148195,Water Plus Limited,"-£1,007.32"
Manchester City Council,Regeneration Finance,Water - Metered,06-Apr-23,1700148199,Water Plus Limited,"-£1,064.03"
Manchester City Council,Regeneration Finance,Water - Metered,06-Apr-23,1700148201,Water Plus Limited,"-£1,065.47"
Manchester City Council,Regeneration Finance,Water - Metered,06-Apr-23,1700148191,Water Plus Limited,"-£1,068.33"
Manchester City Council,Regeneration Finance,Water - Metered,06-Apr-23,1700148192,Water Plus Limited,"-£1,080.82"
Manchester City Council,Regeneration Finance,Water - Metered,06-Apr-23,1700148204,Water Plus Limited,"-£1,089.20"
Manchester City Council,Regeneration Finance,Water - Metered,06-Apr-23,1700148194,Water Plus Limited,"-£1,090.62"
Manchester City Council,Regeneration Finance,Water - Metered,06-Apr-23,1700148193,Water Plus Limited,"-£1,116.10"
Manchester City Council,Regeneration Finance,Water - Metered,06-Apr-23,1700148121,Water Plus Limited,"-£1,117.58"
Manchester City Council,Regeneration Finance,Water - Metered,06-Apr-23,1700148161,Water Plus Limited,"-£1,117.58"
Manchester City Council,Regeneration Finance,Water - Metered,06-Apr-23,1700148203,Water Plus Limited,"-£1,124.56"
Manchester City Council,Regeneration Finance,Water - Metered,06-Apr-23,1700148116,Water Plus Limited,"-£1,198.32"
Manchester City Council,Regeneration Finance,Water - Metered,06-Apr-23,1700148118,Water Plus Limited,"-£1,198.32"
Manchester City Council,Regeneration Finance,Water - Metered,06-Apr-23,1700148156,Water Plus Limited,"-£1,198.32"
Manchester City Council,Regeneration Finance,Water - Metered,06-Apr-23,1700148158,Water Plus Limited,"-£1,198.32"
Manchester City Council,Regeneration Finance,Water - Metered,06-Apr-23,1700148115,Water Plus Limited,"-£1,237.08"
Manchester City Council,Regeneration Finance,Water - Metered,06-Apr-23,1700148117,Water Plus Limited,"-£1,237.08"
Manchester City Council,Regeneration Finance,Water - Metered,06-Apr-23,1700148119,Water Plus Limited,"-£1,237.08"
Manchester City Council,Regeneration Finance,Water - Metered,06-Apr-23,1700148120,Water Plus Limited,"-£1,237.08"
Manchester City Council,Regeneration Finance,Water - Metered,06-Apr-23,1700148155,Water Plus Limited,"-£1,237.08"
Manchester City Council,Regeneration Finance,Water - Metered,06-Apr-23,1700148157,Water Plus Limited,"-£1,237.08"
Manchester City Council,Regeneration Finance,Water - Metered,06-Apr-23,1700148159,Water Plus Limited,"-£1,237.08"
Manchester City Council,Regeneration Finance,Water - Metered,06-Apr-23,1700148160,Water Plus Limited,"-£1,237.08"
Manchester City Council,Regeneration Finance,Water - Metered,06-Apr-23,1700148200,Water Plus Limited,"-£1,531.29"
Manchester City Council,Regeneration Finance,Water - Metered,06-Apr-23,1700148169,Water Plus Limited,"-£1,552.43"
Manchester City Council,Regeneration Finance,Water - Metered,06-Apr-23,1700148168,Water Plus Limited,"-£1,957.41"
Manchester City Council,Regeneration Finance,Water - Metered,06-Apr-23,1700148171,Water Plus Limited,"-£2,023.53"
Manchester City Council,Regeneration Finance,Water - Metered,06-Apr-23,1700148173,Water Plus Limited,"-£2,023.53"
Manchester City Council,Regeneration Finance,Water - Metered,06-Apr-23,1700148176,Water Plus Limited,"-£2,023.53"
Manchester City Council,Regeneration Finance,Water - Metered,06-Apr-23,1700148165,Water Plus Limited,"-£2,024.91"
Manchester City Council,Regeneration Finance,Water - Metered,06-Apr-23,1700148172,Water Plus Limited,"-£2,090.98"
Manchester City Council,Regeneration Finance,Water - Metered,06-Apr-23,1700148174,Water Plus Limited,"-£2,090.98"
Manchester City Council,Regeneration Finance,Water - Metered,06-Apr-23,1700148175,Water Plus Limited,"-£2,090.98"
Manchester City Council,Regeneration Finance,Water - Metered,06-Apr-23,1700148164,Water Plus Limited,"-£2,092.40"
Manchester City Council,Regeneration Finance,Water - Metered,06-Apr-23,1700148166,Water Plus Limited,"-£2,092.40"
Manchester City Council,Regeneration Finance,Water - Metered,06-Apr-23,1700148167,Water Plus Limited,"-£2,092.40"
Manchester City Council,Regeneration Finance,Water - Metered,06-Apr-23,1700148182,Water Plus Limited,"-£2,348.76"
Manchester City Council,Regeneration Finance,Water - Metered,06-Apr-23,1700148187,Water Plus Limited,"-£2,916.52"
Manchester City Council,Regeneration Finance,Water - Metered,06-Apr-23,1700148181,Water Plus Limited,"-£2,962.60"
Manchester City Council,Regeneration Finance,Water - Metered,06-Apr-23,1700148184,Water Plus Limited,"-£3,076.05"
Manchester City Council,Regeneration Finance,Water - Metered,06-Apr-23,1700148186,Water Plus Limited,"-£3,128.60"
Manchester City Council,Regeneration Finance,Water - Metered,06-Apr-23,1700148179,Water Plus Limited,"-£3,165.73"
Manchester City Council,Regeneration Finance,Water - Metered,06-Apr-23,1700148180,Water Plus Limited,"-£3,165.73"
Manchester City Council,Regeneration Finance,Water - Metered,06-Apr-23,1700148185,Water Plus Limited,"-£3,233.84"
Manchester City Council,Regeneration Finance,Water - Metered,06-Apr-23,1700148178,Water Plus Limited,"-£3,574.30"
Manchester City Council,Regeneration Finance,Water - Metered,06-Apr-23,1700148177,Water Plus Limited,"-£3,693.03"
Manchester City Council,Regeneration Finance,Water - Metered,06-Apr-23,1700148190,Water Plus Limited,"-£4,334.33"
Manchester City Council,Regeneration Finance,Water - Metered,06-Apr-23,1700148189,Water Plus Limited,"-£4,594.56"
Manchester City Council,Adult Social Care,Rents,06-Apr-23,5105865594,District Homes Cic,"£4,722.70"
Manchester City Council,Corporate Services,Works and associated costs for Land and Buildings,06-Apr-23,5105866167,BMS Software (Northern) Ltd,£650.00
Manchester City Council,Chief Executives,Professional fees,06-Apr-23,1908074819,Pickering Psychology Services Ltd,£567.26
Manchester City Council,Regeneration Finance,Cleaning Equipment and Materials,06-Apr-23,5105866083,Arrow County Supplies,£639.00
Manchester City Council,Chief Executives,Advertising,06-Apr-23,5105866069,Fonemedia Limited,"£10,000.00"
Manchester City Council,Hospitality + Trading Services,Vehicle Hire Costs,06-Apr-23,5105865967,TIP Trailer Services UK Ltd,"£2,851.56"
Manchester City Council,Manchester Leisure,Grant Payments,06-Apr-23,5105866067,The Cohesion & Integration Network,"£25,000.00"
Manchester City Council,Chief Executives,Legal Fees,06-Apr-23,5105866129,Waddington & Son Solicitors,"£5,385.42"
Manchester City Council,Chief Executives,Legal Fees,06-Apr-23,5105865832,Waddington & Son Solicitors,"£2,337.50"
Manchester City Council,Chief Executives,Legal Fees,06-Apr-23,5105866130,Waddington & Son Solicitors,"£1,404.55"
Manchester City Council,Chief Executives,Legal Fees,06-Apr-23,5105865269,Waddington & Son Solicitors,"£1,275.00"
Manchester City Council,Chief Executives,Legal Fees,06-Apr-23,5105865741,Waddington & Son Solicitors,"£1,268.75"
Manchester City Council,Chief Executives,Legal Fees,06-Apr-23,5105865833,Waddington & Son Solicitors,"£1,193.75"
Manchester City Council,Chief Executives,Legal Fees,06-Apr-23,5105865837,Waddington & Son Solicitors,"£1,131.25"
Manchester City Council,Chief Executives,Legal Fees,06-Apr-23,5105865738,Waddington & Son Solicitors,£881.25
Manchester City Council,Chief Executives,Legal Fees,06-Apr-23,5105865373,Waddington & Son Solicitors,£612.50
Manchester City Council,Corporate Services,Profit Recovered,06-Apr-23,1700147486,Waddington & Son Solicitors,"-£3,318.75"
Manchester City Council,Corporate Services,Profit Recovered,06-Apr-23,1700147485,Waddington & Son Solicitors,"-£4,375.00"
Manchester City Council,Corporate Services,Profit Recovered,06-Apr-23,1700147483,Waddington & Son Solicitors,"-£4,410.42"
Manchester City Council,Corporate Services,Profit Recovered,06-Apr-23,1700147484,Waddington & Son Solicitors,"-£5,033.28"
Manchester City Council,Childrens & Education Services,Contract Cleaning External,06-Apr-23,5105866121,WMB Born2reign Day Nursery,"£9,180.00"
Manchester City Council,Childrens & Education Services,Rates,06-Apr-23,5105866123,WMB Born2reign Day Nursery,£548.91
Manchester City Council,Regeneration Finance,Rents,06-Apr-23,1908073970,The Arch Company Properties Ltd,"£10,909.50"
Manchester City Council,Adult Social Care,Bed & Breakfast Acc,06-Apr-23,5105865942,Hala Guest House,"£6,020.00"
Manchester City Council,Childrens & Education Services,Payments for services,06-Apr-23,5105865958,Keys PCE Limited,"£8,740.00"
Manchester City Council,Adult Social Care,Payments for services,06-Apr-23,5105865885,Slimming World,"£8,010.00"
Manchester City Council,Adult Social Care,Rents,06-Apr-23,5105865909,Houses4Homes 4U Ltd,"£8,352.00"
Manchester City Council,Adult Social Care,Rents,06-Apr-23,5105865949,Houses4Homes 4U Ltd,"£8,352.00"
Manchester City Council,Childrens & Education Services,Training and Development,06-Apr-23,5105865908,National Deaf Childrens Society,£900.00
Manchester City Council,Chief Executives,Professional fees,06-Apr-23,5105865934,IMPOWER Consulting Limited,"£12,500.00"
Manchester City Council,Chief Executives,Agency staff provision,06-Apr-23,5105865980,The Oyster Partnership Limited,"£1,498.50"
Manchester City Council,Chief Executives,Agency staff provision,06-Apr-23,5105865979,The Oyster Partnership Limited,"£1,224.92"
Manchester City Council,Chief Executives,Agency staff provision,06-Apr-23,5105866062,The Oyster Partnership Limited,£999.00
Manchester City Council,Chief Executives,Agency staff provision,06-Apr-23,5105866061,The Oyster Partnership Limited,£832.14
Manchester City Council,Adult Social Care,Rents,06-Apr-23,5105865936,M&D Residential Ltd,"£8,309.58"
Manchester City Council,Manchester Leisure,Professional fees,06-Apr-23,5105866084,Response Team 247 Ltd,"-£2,382.38"
Manchester City Council,Manchester Leisure,Professional fees,06-Apr-23,5105866088,Windsor Telecom,"-£1,390.87"
Manchester City Council,Manchester Leisure,Contract Cleaning External,06-Apr-23,5105865845,CPD Property Services,£695.00
Manchester City Council,Childrens & Education Services,Professional fees,06-Apr-23,5105865809,Pennine School Improvement Ltd,"£1,425.00"
Manchester City Council,Corporate Services,Works and associated costs for Land and Buildings,06-Apr-23,5105865134,Tudor Environmental,"£1,572.00"
Manchester City Council,Adult Social Care,Bed & Breakfast Acc,06-Apr-23,5105865937,247Hotel.Com,"£10,576.67"
Manchester City Council,Adult Social Care,Bed & Breakfast Acc,06-Apr-23,5105865938,247Hotel.Com,"£9,599.17"
Manchester City Council,Regeneration Finance,Contract Cleaning External,06-Apr-23,5105865364,ProClean,£940.00
Manchester City Council,Adult Social Care,Grant and subscriptions awarded,06-Apr-23,5105865838,4Wings Northwest CIC,"£9,940.00"
Manchester City Council,Adult Social Care,Grant and subscriptions awarded,06-Apr-23,5105865846,Salford Hongkongers CIC,"£10,000.00"
Manchester City Council,Corporate Services,Agency staff provision,06-Apr-23,5105866099,North East Apprenticeship Co Ltd,"£1,593.86"
Manchester City Council,Corporate Services,Agency staff provision,06-Apr-23,5105866100,North East Apprenticeship Co Ltd,"£1,593.86"
Manchester City Council,Chief Executives,Hire of Equipment,06-Apr-23,5105865811,AVM Create Ltd,"£2,469.78"
Manchester City Council,Chief Executives,Hire of Equipment,06-Apr-23,5105865812,AVM Create Ltd,"£1,097.50"
Manchester City Council,Adult Social Care,Rents,06-Apr-23,5105865941,Rtech Group Limited,"£1,237.50"
Manchester City Council,Corporate Services,Compensation Payments,06-Apr-23,1908076849,Coupland Cavendish t/a Gowing Law S,"£3,000.00"
Manchester City Council,Adult Social Care,Rents,06-Apr-23,1908076850,Rennsolution Ltd,"£9,561.36"
Manchester City Council,Adult Social Care,Rents,06-Apr-23,1908076850,Rennsolution Ltd,"£4,326.00"
Manchester City Council,Corporate Services,Equipment,06-Apr-23,1908075162,Wythenshawe Community Initiative,"£1,899.00"
Manchester City Council,Chief Executives,Professional fees,06-Apr-23,1908074839,Expert Psychology Consultancy,£936.00
Manchester City Council,Childrens & Education Services,Training and Development,06-Apr-23,1908069971,Just for Kids Law,"£3,825.00"
Manchester City Council,Chief Executives,Legal Fees,06-Apr-23,5105865975,Redacted Personal Information,"£3,299.00"
Manchester City Council,Chief Executives,Legal Fees,06-Apr-23,5105866127,Redacted Personal Information,"£2,650.00"
Manchester City Council,Chief Executives,Legal Fees,06-Apr-23,5105865851,Redacted Personal Information,"£2,286.00"
Manchester City Council,Chief Executives,Legal Fees,06-Apr-23,5105865954,Redacted Personal Information,£606.20
Manchester City Council,Adult Social Care,Bed & Breakfast Acc,06-Apr-23,5105866164,Redacted Personal Information,"£32,426.73"
Manchester City Council,Adult Social Care,Bed & Breakfast Acc,06-Apr-23,5105866117,Redacted Personal Information,"£40,215.00"
Manchester City Council,Adult Social Care,Bed & Breakfast Acc,06-Apr-23,5105865943,Redacted Personal Information,"£10,535.00"
Manchester City Council,Adult Social Care,Bed & Breakfast Acc,06-Apr-23,5105865359,Redacted Personal Information,"£4,725.00"
Manchester City Council,Chief Executives,Payments to Sub-Contractors,06-Apr-23,5105865935,Redacted Personal Information,"£1,008.43"
Manchester City Council,Chief Executives,Payments to Sub-Contractors,06-Apr-23,5105866024,Redacted Personal Information,£689.17
Manchester City Council,Chief Executives,Payments to Sub-Contractors,06-Apr-23,5105865860,Redacted Personal Information,£632.25
Manchester City Council,Chief Executives,Payments to Sub-Contractors,06-Apr-23,5105866152,Redacted Personal Information,£934.21
Manchester City Council,Chief Executives,Payments to Sub-Contractors,06-Apr-23,5105865886,Redacted Personal Information,£559.75
Manchester City Council,Chief Executives,Payments to Sub-Contractors,06-Apr-23,5105866041,Redacted Personal Information,£652.50
Manchester City Council,Manchester Leisure,Professional fees,06-Apr-23,5105865964,Redacted Personal Information,£600.00
Manchester City Council,Childrens & Education Services,Payments for services,06-Apr-23,5105865957,Redacted Personal Information,"£8,308.98"
Manchester City Council,Manchester Leisure,Professional fees,06-Apr-23,5105865856,Redacted Personal Information,"£1,770.50"
Manchester City Council,Childrens & Education Services,Transport Coach Hire,06-Apr-23,5105865881,T/A Beresford Travel,"-£2,835.00"
Manchester City Council,Housing Revenue Account,Professional fees,11-Apr-23,1908070018,Redacted Personal Information,"£1,500.00"
Manchester City Council,Adult Social Care,Rents,11-Apr-23,1908077268,Redacted Personal Information,"£2,500.00"
Manchester City Council,Childrens & Education Services,General Payments not otherwise categorised,11-Apr-23,5105865688,Oldham Borough Council,"£34,691.49"
Manchester City Council,Adult Social Care,Supporting People Payments,11-Apr-23,5105866315,Housing 21,"£2,314.00"
Manchester City Council,Childrens & Education Services,Payments for services,11-Apr-23,5105866283,Sense,"£2,221.20"
Manchester City Council,Corporate Services,Works and associated costs for Land and Buildings,11-Apr-23,5105865828,GVA Grimley Ltd,£500.00
Manchester City Council,Corporate Services,Agency staff provision,11-Apr-23,5105866222,Michael Page International,£672.00
Manchester City Council,Manchester Leisure,Contract Cleaning External,11-Apr-23,5105866053,Clearview Event Services Limited,"£20,867.98"
Manchester City Council,Environment and Operations,Construction Works,11-Apr-23,5105866361,Bethell Construction Ltd,"£78,236.19"
Manchester City Council,Environment and Operations,Construction Works,11-Apr-23,5105866350,Bethell Construction Ltd,"£50,313.24"
Manchester City Council,Environment and Operations,Construction Works,11-Apr-23,5105866362,Bethell Construction Ltd,"£47,350.52"
Manchester City Council,Corporate Services,Storage Costs,11-Apr-23,5105866420,Apex Self Storage Ltd,-£709.16
Manchester City Council,Manchester Leisure,Security,11-Apr-23,5105866417,Showsec International Ltd,"-£2,183.70"
Manchester City Council,Highways Services,Professional fees,11-Apr-23,5105866170,Mace Ltd,"£12,875.40"
Manchester City Council,Highways Services,Professional fees,11-Apr-23,5105866191,Mace Ltd,"£9,012.60"
Manchester City Council,Highways Services,Professional fees,11-Apr-23,5105866169,Mace Ltd,"£3,634.50"
Manchester City Council,Childrens & Education Services,Catering,11-Apr-23,5105865558,Spie Limited,"£36,853.60"
Manchester City Council,Corporate Services,I T Provision,11-Apr-23,5105865932,Capita Business Services Ltd,"£1,750.00"
Manchester City Council,Adult Social Care,Professional fees,11-Apr-23,5105866178,Barnardo's,"£5,000.00"
Manchester City Council,Manchester Leisure,Professional fees,11-Apr-23,5105866204,Mosscare Housing Ltd,"£5,500.00"
Manchester City Council,Adult Social Care,Home Care ,11-Apr-23,5105866319,Standwalk Ltd,"£1,147.80"
Manchester City Council,Adult Social Care,Home Care ,11-Apr-23,5105866312,Standwalk Ltd,"£1,059.60"
Manchester City Council,Adult Social Care,Home Care ,11-Apr-23,5105866298,Standwalk Ltd,£860.85
Manchester City Council,Adult Social Care,Home Care ,11-Apr-23,5105866311,Standwalk Ltd,£860.85
Manchester City Council,Adult Social Care,Home Care ,11-Apr-23,5105866297,Standwalk Ltd,£765.20
Manchester City Council,Highways Services,Tipping - Tonnage,11-Apr-23,5105866131,J.Hopkins (Contractors) Ltd.,"£1,403.71"
Manchester City Council,Corporate Services,Works and associated costs for Land and Buildings,11-Apr-23,5105865320,F Parkinson Limited,"£84,990.94"
Manchester City Council,Manchester Leisure,Grounds Maintenance,11-Apr-23,5105866335,Arboricultural Services Treework,"£3,600.00"
Manchester City Council,Housing General Fund,Building Works,11-Apr-23,1908073739,Stannah Lift Services Ltd,"£3,799.00"
Manchester City Council,Regeneration Finance,Professional fees,11-Apr-23,5105866413,Wythenshawe Forum Trust Ltd,"-£1,500.00"
Manchester City Council,Childrens & Education Services,Hire of Premises,11-Apr-23,5105866201,Quaker Trading Ltd,£659.33
Manchester City Council,Adult Social Care,Equipment,11-Apr-23,5105866215,Manchester Care & Repair Ltd,"£11,700.00"
Manchester City Council,Regeneration Finance,Grant and subscriptions awarded,11-Apr-23,5105866219,Salford City Council,"£15,000.00"
Manchester City Council,Manchester Leisure,Professional fees,11-Apr-23,5105866172,Salford City Council,£500.00
Manchester City Council,Adult Social Care,Gas,11-Apr-23,5105866344,Ashbury Meadow Primary School,"£3,167.77"
Manchester City Council,Adult Social Care,Electricity,11-Apr-23,5105866345,Ashbury Meadow Primary School,"£5,378.93"
Manchester City Council,Environment and Operations,Construction Works,11-Apr-23,5105866299,Rosgal Ltd,"£150,000.00"
Manchester City Council,Environment and Operations,Construction Works,11-Apr-23,5105866300,Rosgal Ltd,"£150,000.00"
Manchester City Council,Highways Services,Payments to Sub-Contractors,11-Apr-23,5105865184,Rosgal Ltd,"£11,700.00"
Manchester City Council,Highways Services,Payments to Sub-Contractors,11-Apr-23,5105865183,Rosgal Ltd,"£7,800.00"
Manchester City Council,Highways Services,Payments to Sub-Contractors,11-Apr-23,5105865181,Rosgal Ltd,£500.00
Manchester City Council,Housing Revenue Account,Works and associated costs for Land and Buildings,11-Apr-23,5105865319,Rowlinson Constructions Ltd,"£610,679.12"
Manchester City Council,Insurance Fund,Insurance,11-Apr-23,1908074821,Department For Work & Pensions,"£9,604.21"
Manchester City Council,Highways Services,Legal Fees,11-Apr-23,1908074846,Department For Work & Pensions,£744.00
Manchester City Council,Regeneration Finance,Grant and subscriptions awarded,11-Apr-23,5105866273,Millenium Quarter Trust Admin Acct,"£47,577.00"
Manchester City Council,Environment and Operations,Construction Works,11-Apr-23,5105866112,GMCA,"£9,572.01"
Manchester City Council,Chief Executives,Grant and subscriptions awarded,11-Apr-23,5105865492,Brighter Sound Ltd,"£40,000.00"
Manchester City Council,Corporate Services,Fees,11-Apr-23,1908073822,Newlyn Plc,"£19,928.29"
Manchester City Council,Corporate Services,Fees,11-Apr-23,1908073822,Newlyn Plc,"-£19,928.29"
Manchester City Council,Housing General Fund,Building Works,11-Apr-23,1908075805,Hoist & Shower Chair Company,"£2,378.00"
Manchester City Council,Chief Executives,I T Provision,11-Apr-23,5105866321,QA Ltd,"£8,735.00"
Manchester City Council,Adult Social Care,Works and associated costs for Land and Buildings,11-Apr-23,5105866279,Morgan Sindall C & I Ltd,"£1,773,171.85"
Manchester City Council,Adult Social Care,Works and associated costs for Land and Buildings,11-Apr-23,5105866278,Morgan Sindall C & I Ltd,"-£1,773,171.88"
Manchester City Council,Chief Executives,Counsel Costs,11-Apr-23,1908070319,18 St John Street Chambers,"£12,190.00"
Manchester City Council,Chief Executives,Professional fees,11-Apr-23,1908070481,18 St John Street Chambers,"£1,075.00"
Manchester City Council,Highways Services,Payments to Sub-Contractors,11-Apr-23,5105865458,Northern Marking Limited,"£5,577.00"
Manchester City Council,Highways Services,Payments to Sub-Contractors,11-Apr-23,5105865747,Northern Marking Limited,"£3,913.54"
Manchester City Council,Highways Services,Payments to Sub-Contractors,11-Apr-23,5105865460,Northern Marking Limited,"£3,813.50"
Manchester City Council,Regeneration Finance,Agency staff provision,11-Apr-23,5105866055,Turner & Townsend Project,"£15,910.00"
Manchester City Council,Corporate Services,Works and associated costs for Land and Buildings,11-Apr-23,5105865649,Rider Levett Bucknall UK Ltd,"£17,710.00"
Manchester City Council,Corporate Services,Works and associated costs for Land and Buildings,11-Apr-23,5105865648,Rider Levett Bucknall UK Ltd,"£15,400.00"
Manchester City Council,Chief Executives,Landline Telephone,11-Apr-23,1908074866,Daisy Corporate Services Trading,"£1,033.80"
Manchester City Council,Chief Executives,Works and associated costs for Land and Buildings,11-Apr-23,5105866248,Ryder Architecture Ltd,"£105,000.00"
Manchester City Council,Manchester Leisure,Special Event,11-Apr-23,5105865220,MK Illuminations UK Ltd,"£62,373.50"
Manchester City Council,Manchester Leisure,Licences Purchase,11-Apr-23,1908069795,TV Licensing (Company Group,"£3,657.00"
Manchester City Council,Manchester Leisure,Works and associated costs for Land and Buildings,11-Apr-23,5105866242,ISG Construction Limited,"£561,899.02"
Manchester City Council,Regeneration Finance,Third party payments relating to Voluntary Organisations,11-Apr-23,5105866277,Impact For All,"£7,132.00"
Manchester City Council,Chief Executives,Printing,11-Apr-23,5105866264,Enventure Research Ltd,"£20,875.00"
Manchester City Council,Chief Executives,Professional fees,11-Apr-23,5105866160,Urban Village Medical Practice,"£1,503.12"
Manchester City Council,Corporate Services,Fees,11-Apr-23,5105866173,Pannone Corporate LLP,"£5,136.30"
Manchester City Council,Chief Executives,Hire of Equipment,11-Apr-23,5105866340,Universal Live,£820.00
Manchester City Council,Chief Executives,Hire of Equipment,11-Apr-23,5105866351,Universal Live,£690.00
Manchester City Council,Hospitality + Trading Services,Contract Cleaning External,11-Apr-23,5105866179,Biffa Municipal Limited,"£2,000.00"
Manchester City Council,Hospitality + Trading Services,Contract Cleaning External,11-Apr-23,5105866180,Biffa Municipal Limited,"£2,000.00"
Manchester City Council,Hospitality + Trading Services,Contract Cleaning External,11-Apr-23,5105866211,Biffa Municipal Limited,"£2,000.00"
Manchester City Council,Hospitality + Trading Services,Contract Cleaning External,11-Apr-23,5105866213,Biffa Municipal Limited,"£2,000.00"
Manchester City Council,Hospitality + Trading Services,Contract Cleaning External,11-Apr-23,5105866214,Biffa Municipal Limited,"£2,000.00"
Manchester City Council,Childrens & Education Services,Third party payments to other Local Authorities,11-Apr-23,5105866337,Marlborough Road Academy,"£4,480.00"
Manchester City Council,Manchester Leisure,Long Term Debtors,11-Apr-23,1908077267,Love Withington Baths,"£319,671.40"
Manchester City Council,Manchester Leisure,Professional fees,11-Apr-23,5105865218,Phar Partnership Limited,"£25,000.00"
Manchester City Council,Chief Executives,Works and associated costs for Land and Buildings,11-Apr-23,5105866295,Gardiner & Theobald LLP,"£12,000.00"
Manchester City Council,Chief Executives,I T Provision,11-Apr-23,5105866197,The Knowledge Academy Limited,"£2,690.00"
Manchester City Council,Manchester Leisure,Grant and subscriptions awarded,11-Apr-23,5105866276,Young Manchester,"£25,000.00"
Manchester City Council,Adult Social Care,Funeral and coroner related services,11-Apr-23,5105866174,Greater Manchester Funeral Service,£814.00
Manchester City Council,Corporate Services,Works and associated costs for Land and Buildings,11-Apr-23,5105865274,Stellar Network Solutions Ltd,"£2,235.00"
Manchester City Council,Corporate Services,Works and associated costs for Land and Buildings,11-Apr-23,5105866396,Stellar Network Solutions Ltd,"-£2,235.00"
Manchester City Council,Childrens & Education Services,Professional fees,11-Apr-23,5105866203,Angela Westington Consulting Ltd,"£3,325.00"
Manchester City Council,Chief Executives,Legal Fees,11-Apr-23,5105866198,Waddington & Son Solicitors,"£2,198.73"
Manchester City Council,Chief Executives,Legal Fees,11-Apr-23,5105866205,Waddington & Son Solicitors,"£1,105.95"
Manchester City Council,Chief Executives,Legal Fees,11-Apr-23,5105866210,Waddington & Son Solicitors,£660.00
Manchester City Council,Corporate Services,Professional fees,11-Apr-23,5105865687,Pick Everard,"£3,842.30"
Manchester City Council,Corporate Services,Works and associated costs for Land and Buildings,11-Apr-23,5105866275,Seddon Construction Ltd,"£69,773.95"
Manchester City Council,Corporate Services,Works and associated costs for Land and Buildings,11-Apr-23,5105866275,Seddon Construction Ltd,"£70,665.00"
Manchester City Council,Highways Services,Professional fees,11-Apr-23,5105866194,Mace Cost Consultancy Ltd,"£8,511.90"
Manchester City Council,Highways Services,Professional fees,11-Apr-23,5105866193,Mace Cost Consultancy Ltd,"£7,477.99"
Manchester City Council,Chief Executives,Licences Purchase,11-Apr-23,5105865559,Interact-Intranet,"£50,696.00"
Manchester City Council,Highways Services,Payments to Sub-Contractors,11-Apr-23,5105865240,The Social Value Portal Ltd,"£50,000.00"
Manchester City Council,Chief Executives,Grant Payments,11-Apr-23,5105866416,PRCA,"-£4,700.00"
Manchester City Council,Regeneration Finance,Security,11-Apr-23,5105866274,NE1 Procurement Services Limited,"£9,743.59"
Manchester City Council,Regeneration Finance,Training and Development,11-Apr-23,5105866352,GATEWAY QUALIFICATIONS,£580.50
Manchester City Council,Manchester Leisure,Professional fees,11-Apr-23,5105866220,Inforhousing,"£4,400.00"
Manchester City Council,Corporate Services,Counsel Costs,11-Apr-23,1908073977,DEANS COURT CHAMBERS,"£1,000.00"
Manchester City Council,Corporate Services,Counsel Costs,11-Apr-23,1908074824,DEANS COURT CHAMBERS,"£1,000.00"
Manchester City Council,Adult Social Care,Bed & Breakfast Acc,11-Apr-23,5105866327,Parkview Residence,"£49,280.00"
Manchester City Council,Adult Social Care,Third party payments to Health Authority,11-Apr-23,5105866316,NHS GREATER MANCHESTER ICB,"£28,955.34"
Manchester City Council,Adult Social Care,Third party payments to Health Authority,11-Apr-23,5105866313,NHS GREATER MANCHESTER ICB,"£7,058.95"
Manchester City Council,Adult Social Care,Third party payments to Health Authority,11-Apr-23,5105866314,NHS GREATER MANCHESTER ICB,"£7,058.95"
Manchester City Council,Manchester Leisure,Third party payments relating to Voluntary Organisations,11-Apr-23,5105866353,Regulus Safeguarding Limited,£500.00
Manchester City Council,Childrens & Education Services,Professional fees,11-Apr-23,5105866324,Childrens Therapy Solutions Ltd,£550.13
Manchester City Council,Insurance Fund,Insurance,11-Apr-23,1908073848,Thomason Partnership Limited,"£1,445.00"
Manchester City Council,Manchester Leisure,Electricity,11-Apr-23,1908074830,Eon  Next,£532.15
Manchester City Council,Adult Social Care,Personal needs of client,11-Apr-23,1908066703,Caritas Diocese of Shrewsbury,£550.00
Manchester City Council,Adult Social Care,Subsistence and Conference Expenses,11-Apr-23,1908070433,The Caxtlefield Rooms,£610.75
Manchester City Council,Chief Executives,Counsel Costs,11-Apr-23,1908070516,Redacted Personal Information,£700.00
Manchester City Council,Manchester Leisure,Legal Fees,11-Apr-23,1907984722,Redacted Personal Information,"£1,125.00"
Manchester City Council,Chief Executives,Legal Fees,11-Apr-23,5105866184,Redacted Personal Information,-£525.00
Manchester City Council,Manchester Leisure,Professional fees,11-Apr-23,5105866177,Redacted Personal Information,£750.00
Manchester City Council,Chief Executives,Payments to Sub-Contractors,11-Apr-23,5105866237,Redacted Personal Information,£503.98
Manchester City Council,Chief Executives,Payments to Sub-Contractors,11-Apr-23,5105866232,Redacted Personal Information,£726.15
Manchester City Council,Chief Executives,Counsel Costs,11-Apr-23,1908070307,Redacted Personal Information,£900.00
Manchester City Council,Manchester Leisure,Professional fees,11-Apr-23,5105866271,Redacted Personal Information,"£1,175.00"
Manchester City Council,Chief Executives,Professional fees,12-Apr-23,5105866439,Redacted Personal Information,"£7,300.00"
Manchester City Council,Corporate Services,Works and associated costs for Land and Buildings,12-Apr-23,5105866369,Redacted Personal Information,£750.00
Manchester City Council,Adult Social Care,Supporting People Payments,12-Apr-23,5105866317,Housing 21,"£2,312.00"
Manchester City Council,Adult Social Care,Supporting People Payments,12-Apr-23,5105866318,Housing 21,"£2,312.00"
Manchester City Council,Adult Social Care,Supporting People Payments,12-Apr-23,5105866320,Housing 21,"£2,312.00"
Manchester City Council,Chief Executives,Works and associated costs for Land and Buildings,12-Apr-23,5105866476,Eversheds Llp,"£3,066.00"
Manchester City Council,Regeneration Finance,Training and Development,12-Apr-23,5105866495,Assessment & Qualifications Allianc,"£1,354.70"
Manchester City Council,Manchester Leisure,Professional fees,12-Apr-23,5105866545,Manchester Literature Festival,"£1,999.00"
Manchester City Council,Corporate Services,Works and associated costs for Land and Buildings,12-Apr-23,5105866506,Ove Arup & Partners Ltd,"£15,129.60"
Manchester City Council,Corporate Services,Works and associated costs for Land and Buildings,12-Apr-23,5105866505,Ove Arup & Partners Ltd,"£7,433.34"
Manchester City Council,Corporate Services,Works and associated costs for Land and Buildings,12-Apr-23,5105866503,Ove Arup & Partners Ltd,"£4,978.50"
Manchester City Council,Corporate Services,Works and associated costs for Land and Buildings,12-Apr-23,5105866502,Ove Arup & Partners Ltd,"£3,020.50"
Manchester City Council,Corporate Services,Works and associated costs for Land and Buildings,12-Apr-23,5105866504,Ove Arup & Partners Ltd,"£2,727.01"
Manchester City Council,Corporate Services,Works and associated costs for Land and Buildings,12-Apr-23,5105866513,Ove Arup & Partners Ltd,"£1,166.00"
Manchester City Council,Corporate Services,Works and associated costs for Land and Buildings,12-Apr-23,5105866501,Ove Arup & Partners Ltd,"£1,123.88"
Manchester City Council,Manchester Leisure,Payments to Sub-Contractors,12-Apr-23,5105866447,Osborne Richardson,"£1,029.00"
Manchester City Council,Manchester Leisure,Payments to Sub-Contractors,12-Apr-23,5105866449,Osborne Richardson,£718.00
Manchester City Council,Childrens & Education Services,Payments for services,12-Apr-23,5105866555,The Manchester College,"£1,997,354.67"
Manchester City Council,Childrens & Education Services,Payments for services,12-Apr-23,5105866556,The Manchester College,"£97,900.00"
Manchester City Council,Manchester Leisure,Professional fees,12-Apr-23,5105866371,The Manchester College,"£2,000.00"
Manchester City Council,Environment and Operations,Construction Works,12-Apr-23,5105866363,Bethell Construction Ltd,"£162,955.88"
Manchester City Council,Corporate Services,Storage Costs,12-Apr-23,5105866471,Apex Self Storage Ltd,£590.97
Manchester City Council,Regeneration Finance,Training and Development,12-Apr-23,5105866496,Ncfe,"£3,348.50"
Manchester City Council,Childrens & Education Services,Third party payments to other Local Authorities,12-Apr-23,5105866412,Blessed Thomas Holford School,"£8,002.25"
Manchester City Council,Hospitality + Trading Services,Hire of Machinery,12-Apr-23,5105866561,R & M Developments Ltd,"£1,073.50"
Manchester City Council,Hospitality + Trading Services,Hire of Machinery,12-Apr-23,5105866562,R & M Developments Ltd,"£1,073.50"
Manchester City Council,Hospitality + Trading Services,Hire of Machinery,12-Apr-23,5105866565,R & M Developments Ltd,£606.67
Manchester City Council,Hospitality + Trading Services,Hire of Machinery,12-Apr-23,5105866569,R & M Developments Ltd,£606.67
Manchester City Council,Hospitality + Trading Services,Hire of Machinery,12-Apr-23,5105866563,R & M Developments Ltd,£511.33
Manchester City Council,Hospitality + Trading Services,Hire of Machinery,12-Apr-23,5105866567,R & M Developments Ltd,£511.33
Manchester City Council,Manchester Leisure,Security,12-Apr-23,5105866418,Showsec International Ltd,"£2,183.70"
Manchester City Council,Corporate Services,Works and associated costs for Land and Buildings,12-Apr-23,5105866510,Mace Ltd,"£33,298.00"
Manchester City Council,Corporate Services,Works and associated costs for Land and Buildings,12-Apr-23,5105866510,Mace Ltd,£680.00
Manchester City Council,Corporate Services,Works and associated costs for Land and Buildings,12-Apr-23,5105866512,Mace Ltd,"£11,863.06"
Manchester City Council,Manchester Leisure,Payments to Sub-Contractors,12-Apr-23,5105866536,Barcham Trees Plc,"£10,000.00"
Manchester City Council,Childrens & Education Services,Payments for services,12-Apr-23,5105866393,Reed Employment Plc,"£12,333.77"
Manchester City Council,Environment and Operations,Construction Works,12-Apr-23,5105866286,Galliford Try Construction,"£120,000.00"
Manchester City Council,Highways Services,Private Finance and Public Private partnership initiatives,12-Apr-23,5105866348,Amey Highways Lighting (Manchester),"£479,624.70"
Manchester City Council,Highways Services,Private Finance and Public Private partnership initiatives,12-Apr-23,5105866348,Amey Highways Lighting (Manchester),"£275,168.26"
Manchester City Council,Adult Social Care,Supported Accommodation,12-Apr-23,5105866443,Independent Living Alliance,"£10,025.40"
Manchester City Council,Housing Revenue Account,Council Dwelling Adaptations,12-Apr-23,5105866370,Stannah Lift Services Ltd,"£6,342.00"
Manchester City Council,Adult Social Care,Personal needs of client,12-Apr-23,5105866538,Central Mcr Uni Hospital t/a,"-£5,080.77"
Manchester City Council,Regeneration Finance,Hire of Premises,12-Apr-23,5105866446,Northmoor Community Association,£858.00
Manchester City Council,Regeneration Finance,Professional fees,12-Apr-23,5105866414,Wythenshawe Forum Trust Ltd,"£1,500.00"
Manchester City Council,Environment and Operations,Construction Works,12-Apr-23,5105865355,Transport for Greater Manchester,"£2,350.00"
Manchester City Council,Highways Services,Payments to Sub-Contractors,12-Apr-23,5105866430,Transport for Greater Manchester,"£1,480.00"
Manchester City Council,Adult Social Care,Supporting People Payments,12-Apr-23,5105866456,Richmond Fellowship,"£11,088.03"
Manchester City Council,Childrens & Education Services,Hire of Premises,12-Apr-23,5105866438,Greater Manchester Police Sports &,£802.60
Manchester City Council,Environment and Operations,Construction Works,12-Apr-23,5105866526,Rosgal Ltd,"£98,720.39"
Manchester City Council,Environment and Operations,Construction Works,12-Apr-23,5105866525,Rosgal Ltd,"£48,675.73"
Manchester City Council,Environment and Operations,Construction Works,12-Apr-23,5105866524,Rosgal Ltd,"-£48,675.73"
Manchester City Council,Regeneration Finance,Storage Costs,12-Apr-23,5105866582,H.M. Land Registry,"£2,216.00"
Manchester City Council,Regeneration Finance,Professional fees,12-Apr-23,5105866585,P Mcguinness & Co Ltd,"£1,809.50"
Manchester City Council,Environment and Operations,Construction Works,12-Apr-23,5105866192,GMCA,"£14,810.00"
Manchester City Council,Environment and Operations,Construction Works,12-Apr-23,5105866168,GMCA,"£8,190.00"
Manchester City Council,Environment and Operations,Construction Works,12-Apr-23,5105866195,GMCA,"£2,470.00"
Manchester City Council,General Fund,Levies,12-Apr-23,1908048119,GMCA,"£3,905,500.00"
Manchester City Council,Hospitality + Trading Services,Window Cleaning,12-Apr-23,5105866564,CG Cleaning Ltd,£672.88
Manchester City Council,Corporate Services,Works and associated costs for Land and Buildings,12-Apr-23,5105866509,Faithful & Gould Ltd,"£37,000.00"
Manchester City Council,Adult Social Care,Personal needs of client,12-Apr-23,5105866548,Hoist & Shower Chair Company,"£2,115.00"
Manchester City Council,Adult Social Care,Personal needs of client,12-Apr-23,5105866549,Hoist & Shower Chair Company,"£1,983.75"
Manchester City Council,Highways Services,Professional fees,12-Apr-23,5105866408,Wilde Consultants Ltd,"£1,733.25"
Manchester City Council,Manchester Leisure,Payments to Sub-Contractors,12-Apr-23,5105866304,Groundwork & Leisure Services Ltd,"£1,100.00"
Manchester City Council,Manchester Leisure,Works and associated costs for Land and Buildings,12-Apr-23,5105866306,Groundwork & Leisure Services Ltd,"£3,300.00"
Manchester City Council,Corporate Services,Works and associated costs for Land and Buildings,12-Apr-23,5105866514,Mather & Co Limited,"£3,400.00"
Manchester City Council,Corporate Services,Works and associated costs for Land and Buildings,12-Apr-23,5105866511,Planit,"£3,360.00"
Manchester City Council,Childrens & Education Services,Transport Coach Hire,12-Apr-23,5105865204,Westfield Minibuses,"£163,027.19"
Manchester City Council,Corporate Services,Grant and subscriptions awarded,12-Apr-23,5105866486,Northmoor Together,"£1,647.83"
Manchester City Council,Manchester Leisure,Grant and subscriptions awarded,12-Apr-23,5105866485,Northmoor Together,"£1,200.00"
Manchester City Council,Manchester Leisure,Grant and subscriptions awarded,12-Apr-23,5105866484,Friends of Didsbury Park,£702.00
Manchester City Council,Adult Social Care,Rents,12-Apr-23,5105866436,Wythenshawe Community Housing Group,"£1,374.23"
Manchester City Council,Chief Executives,Hire of Equipment,12-Apr-23,5105866478,Universal Live,£675.00
Manchester City Council,Housing Revenue Account,Council Dwelling Adaptations,12-Apr-23,5105866368,Solargen Energy Ltd,"£81,042.78"
Manchester City Council,Chief Executives,Works and associated costs for Land and Buildings,12-Apr-23,5105866217,Office for Metropolitan Architectur,"£12,006.63"
Manchester City Council,Chief Executives,Grant and subscriptions awarded,12-Apr-23,5105866379,Gartner UK Limited,"£22,575.00"
Manchester City Council,Childrens & Education Services,Transport Coach Hire,12-Apr-23,5105865101,Sumi Travel Ltd.,"£18,707.50"
Manchester City Council,Regeneration Finance,Removal and Storage of Furniture,12-Apr-23,5105866558,Restore PLC,£657.34
Manchester City Council,Adult Social Care,Rents,12-Apr-23,5105866568,District Homes Cic,"£60,088.08"
Manchester City Council,Corporate Services,Professional fees,12-Apr-23,5105866437,Optimum Social Care,£846.30
Manchester City Council,Corporate Services,Works and associated costs for Land and Buildings,12-Apr-23,5105866398,Stellar Network Solutions Ltd,"£2,235.00"
Manchester City Council,Housing Revenue Account,Council Dwelling Adaptations,12-Apr-23,5105866488,A Connolly Limited,"£33,650.38"
Manchester City Council,Childrens & Education Services,Hire of Premises,12-Apr-23,5105866487,Everyone Active,"-£2,851.56"
Manchester City Council,Chief Executives,Legal Fees,12-Apr-23,5105866389,Waddington & Son Solicitors,"£1,739.67"
Manchester City Council,Chief Executives,Legal Fees,12-Apr-23,5105866390,Waddington & Son Solicitors,"£1,156.20"
Manchester City Council,Childrens & Education Services,Contract Cleaning External,12-Apr-23,5105866431,WMB Born2reign Day Nursery,"£4,680.00"
Manchester City Council,Regeneration Finance,Travel,12-Apr-23,5105866523,Purcell Architecture Limited,"£2,720.00"
Manchester City Council,Corporate Services,Works and associated costs for Land and Buildings,12-Apr-23,5105866523,Purcell Architecture Limited,"£35,000.00"
Manchester City Council,Corporate Services,Works and associated costs for Land and Buildings,12-Apr-23,5105866520,Purcell Architecture Limited,"£10,500.00"
Manchester City Council,Corporate Services,Works and associated costs for Land and Buildings,12-Apr-23,5105866522,Purcell Architecture Limited,"£8,420.00"
Manchester City Council,Corporate Services,Works and associated costs for Land and Buildings,12-Apr-23,5105866519,Purcell Architecture Limited,"£6,975.00"
Manchester City Council,Corporate Services,Works and associated costs for Land and Buildings,12-Apr-23,5105866521,Purcell Architecture Limited,"£5,775.00"
Manchester City Council,Corporate Services,Works and associated costs for Land and Buildings,12-Apr-23,5105866518,Purcell Architecture Limited,"£2,118.91"
Manchester City Council,Corporate Services,Works and associated costs for Land and Buildings,12-Apr-23,5105866517,Purcell Architecture Limited,"£1,500.00"
Manchester City Council,Childrens & Education Services,Transport Coach Hire,12-Apr-23,5105866532,RK Travel Ltd,"£4,485.00"
Manchester City Council,Corporate Services,Works and associated costs for Land and Buildings,12-Apr-23,5105866528,Warden Construction Ltd,"£71,656.02"
Manchester City Council,Adult Social Care,Professional fees,12-Apr-23,5105866399,UNIQUE SPECIALIST SERVICES,"£1,377.00"
Manchester City Council,Adult Social Care,Third party payments relating to Voluntary Organisations,12-Apr-23,5105866429,Quays Housing,"£12,577.41"
Manchester City Council,Adult Social Care,Third party payments relating to Voluntary Organisations,12-Apr-23,5105866429,Quays Housing,"£5,000.00"
Manchester City Council,Adult Social Care,Third party payments relating to Voluntary Organisations,12-Apr-23,5105866429,Quays Housing,"£4,712.13"
Manchester City Council,Adult Social Care,Professional fees,12-Apr-23,5105866424,IMPOWER Consulting Limited,"£61,000.00"
Manchester City Council,Adult Social Care,Professional fees,12-Apr-23,5105866425,IMPOWER Consulting Limited,"£1,947.23"
Manchester City Council,Childrens & Education Services,Third party payments to other Local Authorities,12-Apr-23,5105866380,The Laurus Trust,"£1,953.00"
Manchester City Council,Childrens & Education Services,Payments for services,12-Apr-23,5105866391,Staff Resources Ltd,"£2,402.63"
Manchester City Council,Housing General Fund,Works and associated costs for Land and Buildings,12-Apr-23,5105866457,Shared Habitat Limited,"£10,045.00"
Manchester City Council,Housing Revenue Account,Professional fees,12-Apr-23,5105866454,Onward Group Ltd,"£14,368.00"
Manchester City Council,Housing Revenue Account,Works and associated costs for Land and Buildings,12-Apr-23,1908079105,Northern Gateway (FEC) No.10 Limite,"£284,301.54"
Manchester City Council,Adult Social Care,Bed & Breakfast Acc,12-Apr-23,5105866386,247Hotel.Com,"£8,436.67"
Manchester City Council,Corporate Services,Telecoms Maintenance,12-Apr-23,5105866357,Wirral Telecom Ltd,"£1,700.00"
Manchester City Council,Chief Executives,Hire of Equipment,12-Apr-23,5105866373,AVM Create Ltd,"£1,882.28"
Manchester City Council,Manchester Leisure,Grant and subscriptions awarded,12-Apr-23,5105866385,Sustainable Communities Hulme,"£1,500.00"
Manchester City Council,Childrens & Education Services,Professional fees,12-Apr-23,5105865424,The Movez Movement,"£1,348.75"
Manchester City Council,Childrens & Education Services,Professional fees,12-Apr-23,5105866265,The Movez Movement,"£1,348.75"
Manchester City Council,Childrens & Education Services,Professional fees,12-Apr-23,5105866455,The Movez Movement,"£1,348.75"
Manchester City Council,Childrens & Education Services,Payments for services,12-Apr-23,5105866554,SENsational Tutors Ltd,"£2,087.50"
Manchester City Council,Highways Services,Professional fees,12-Apr-23,5105866342,Enviroflow Management Ltd,"£49,004.33"
Manchester City Council,Highways Services,Professional fees,12-Apr-23,5105866343,Enviroflow Management Ltd,"£7,860.00"
Manchester City Council,Childrens & Education Services,Home Care ,12-Apr-23,5105866537,Emotional and Trauma Support,"£1,650.00"
Manchester City Council,Regeneration Finance,General Payments not otherwise categorised,12-Apr-23,1908074861,Property Made to Order,"£1,250.00"
Manchester City Council,Adult Social Care,Bed & Breakfast Acc,12-Apr-23,5105866388,Redacted Personal Information,"£22,178.00"
Manchester City Council,Manchester Leisure,Professional fees,12-Apr-23,5105866366,Redacted Personal Information,£600.00
Manchester City Council,Manchester Leisure,Professional fees,12-Apr-23,5105866578,Redacted Personal Information,£740.00
Manchester City Council,Manchester Leisure,Professional fees,12-Apr-23,5105866367,Redacted Personal Information,"£1,200.00"
Manchester City Council,Manchester Leisure,Professional fees,12-Apr-23,5105866580,Redacted Personal Information,£510.00
Manchester City Council,Childrens & Education Services,Transport Coach Hire,12-Apr-23,5105866419,Redacted Personal Information,"£22,858.62"
Manchester City Council,Chief Executives,Payments to Sub-Contractors,12-Apr-23,5105866166,Redacted Personal Information,"£1,607.35"
Manchester City Council,Chief Executives,Payments to Sub-Contractors,12-Apr-23,5105866469,Redacted Personal Information,£652.50
Manchester City Council,Chief Executives,Payments to Sub-Contractors,12-Apr-23,5105866468,Redacted Personal Information,-£652.50
Manchester City Council,Chief Executives,Counsel Costs,13-Apr-23,1908079319,Redacted Personal Information,£650.00
Manchester City Council,Manchester Leisure,Responsive Repairs Work,13-Apr-23,1908054630,Redacted Personal Information,£700.00
Manchester City Council,Housing General Fund,Building Works,13-Apr-23,1908079333,Redacted Personal Information,"£24,581.46"
Manchester City Council,Chief Executives,Counsel Costs,13-Apr-23,1908076823,Redacted Personal Information,£783.33
Manchester City Council,Manchester Leisure,Responsive Repairs Work,13-Apr-23,1908072383,Redacted Personal Information,£500.00
Manchester City Council,Adult Social Care,Housing Rents Debit,13-Apr-23,1908076819,Redacted Personal Information,"£3,560.00"
Manchester City Council,Chief Executives,Counsel Costs,13-Apr-23,1908078684,Redacted Personal Information,"£1,750.00"
Manchester City Council,Chief Executives,Counsel Costs,13-Apr-23,1908079318,Redacted Personal Information,"£7,825.00"
Manchester City Council,Manchester Leisure,Responsive Repairs Work,13-Apr-23,1908063317,Redacted Personal Information,£500.00
Manchester City Council,Adult Social Care,Personal needs of client,13-Apr-23,5105866775,James Leckey Design Ltd,"£2,656.60"
Manchester City Council,Housing Revenue Account,Council Dwelling Adaptations,13-Apr-23,5105866827,DLP Services (Northern) Ltd,"£6,264.18"
Manchester City Council,Corporate Services,Surveys Fees other,13-Apr-23,5105866794,DLP Services (Northern) Ltd,£908.50
Manchester City Council,Highways Services,Purchase of stores for re-distribution,13-Apr-23,5105866774,Instarmac Group Ltd,"£4,294.08"
Manchester City Council,Housing General Fund,Works and associated costs for Land and Buildings,13-Apr-23,5105866835,Wates Construction Ltd,"£145,623.21"
Manchester City Council,Housing General Fund,Works and associated costs for Land and Buildings,13-Apr-23,5105866835,Wates Construction Ltd,"£7,619.41"
Manchester City Council,Adult Social Care,Furniture,13-Apr-23,5105866803,Back Care Solutions Ltd,"£1,084.95"
Manchester City Council,Adult Social Care,Furniture,13-Apr-23,5105866804,Back Care Solutions Ltd,"-£1,084.95"
Manchester City Council,Adult Social Care,Third party payments relating to Voluntary Organisations,13-Apr-23,5105866705,Age Concern Manchester,"£14,500.00"
Manchester City Council,Adult Social Care,Third party payments relating to Voluntary Organisations,13-Apr-23,5105866706,Age Concern Manchester,"£7,500.00"
Manchester City Council,Adult Social Care,Third party payments relating to Voluntary Organisations,13-Apr-23,5105866733,Age Concern Manchester,"£1,055.00"
Manchester City Council,Adult Social Care,Third party payments relating to Voluntary Organisations,13-Apr-23,5105866732,Age Concern Manchester,"£1,024.00"
Manchester City Council,Adult Social Care,Third party payments relating to Voluntary Organisations,13-Apr-23,5105866731,Age Concern Manchester,£999.00
Manchester City Council,Adult Social Care,Third party payments relating to Voluntary Organisations,13-Apr-23,5105866735,Age Concern Manchester,£524.00
Manchester City Council,Chief Executives,Hire of Equipment,13-Apr-23,5105866753,Tube UK Ltd,£979.60
Manchester City Council,Hospitality + Trading Services,Hire of Machinery,13-Apr-23,5105866611,R & M Developments Ltd,£606.67
Manchester City Council,Hospitality + Trading Services,Hire of Machinery,13-Apr-23,5105866613,R & M Developments Ltd,£541.67
Manchester City Council,Hospitality + Trading Services,Hire of Machinery,13-Apr-23,5105866570,R & M Developments Ltd,£511.33
Manchester City Council,Hospitality + Trading Services,Hire of Machinery,13-Apr-23,5105866612,R & M Developments Ltd,£511.33
Manchester City Council,Hospitality + Trading Services,Hire of Machinery,13-Apr-23,5105866614,R & M Developments Ltd,£511.33
Manchester City Council,Childrens & Education Services,Carer Support Payments ,13-Apr-23,5105865686,Mosscare Housing Ltd,"£60,700.00"
Manchester City Council,Childrens & Education Services,Carer Support Payments ,13-Apr-23,5105866594,Mosscare Housing Ltd,"-£60,700.00"
Manchester City Council,Housing Revenue Account,Council Dwelling Adaptations,13-Apr-23,5105866815,Rexel UK Ltd,"£6,315.14"
Manchester City Council,Adult Social Care,Professional fees,13-Apr-23,5105866678,JLA Ltd,£625.00
Manchester City Council,Manchester Leisure,Works and associated costs for Land and Buildings,13-Apr-23,5105866766,Eagle Containers Ltd,"£3,450.00"
Manchester City Council,Childrens & Education Services,Training and Development,13-Apr-23,5105866807,Findel Education Ltd,"£1,029.81"
Manchester City Council,Manchester Leisure,Payments to Sub-Contractors,13-Apr-23,5105866741,Arboricultural Services Treework,"£4,300.00"
Manchester City Council,Manchester Leisure,Payments to Sub-Contractors,13-Apr-23,5105866742,Arboricultural Services Treework,"£1,950.00"
Manchester City Council,Chief Executives,Counsel Costs,13-Apr-23,1908073811,No 5 Chambers Ltd,£500.00
Manchester City Council,Adult Social Care,Payments for services,13-Apr-23,5105866666,Creative Support Ltd,"£2,908.40"
Manchester City Council,Adult Social Care,Payments for services,13-Apr-23,5105866669,Creative Support Ltd,"£2,889.60"
Manchester City Council,Manchester Leisure,Grant and subscriptions awarded,13-Apr-23,5105866769,M13 Youth Project,"£3,860.00"
Manchester City Council,Manchester Leisure,Grant and subscriptions awarded,13-Apr-23,5105866635,M13 Youth Project,"£1,200.00"
Manchester City Council,Adult Social Care,Rents,13-Apr-23,5105866785,Places for People Living +,"£2,286.96"
Manchester City Council,Manchester Leisure,Professional fees,13-Apr-23,5105866798,Wythenshawe Forum Trust Ltd,"£68,675.00"
Manchester City Council,Manchester Leisure,Hire of Premises,13-Apr-23,5105865445,Quaker Trading Ltd,£550.00
Manchester City Council,Manchester Leisure,Professional fees,13-Apr-23,5105866607,Salford City Council,"£5,000.00"
Manchester City Council,Corporate Services,Professional fees,13-Apr-23,5105867018,Turner & Townsend Cost,"-£5,956.80"
Manchester City Council,Adult Social Care,Extra Care Sheltd HP,13-Apr-23,5105866559,Premier Care  Ltd,"£32,903.12"
Manchester City Council,Adult Social Care,Extra Care Sheltd HP,13-Apr-23,5105866560,Premier Care  Ltd,"£23,889.76"
Manchester City Council,Manchester Leisure,Grant and subscriptions awarded,13-Apr-23,5105866801,University Of Manchester,£603.00
Manchester City Council,Manchester Leisure,Grant Payments,13-Apr-23,5105866672,University Of Manchester,"£1,355.38"
Manchester City Council,Manchester Leisure,Works and associated costs for Land and Buildings,13-Apr-23,5105865557,Kier Construction North and,"£1,252,564.98"
Manchester City Council,Chief Executives,I T Provision,13-Apr-23,5105866656,Insight Direct (Uk) Ltd,"£86,112.04"
Manchester City Council,Chief Executives,I T Provision,13-Apr-23,5105866628,Insight Direct (Uk) Ltd,£653.00
Manchester City Council,Manchester Leisure,I T Provision,13-Apr-23,5105866776,Insight Direct (Uk) Ltd,"-£1,190.20"
Manchester City Council,Housing Revenue Account,Council Dwelling Adaptations,13-Apr-23,5105866833,Pts Plumbing Trade Supplies,"£3,421.44"
Manchester City Council,Housing Revenue Account,Council Dwelling Adaptations,13-Apr-23,5105866836,Pts Plumbing Trade Supplies,£701.57
Manchester City Council,Housing Revenue Account,Council Dwelling Adaptations,13-Apr-23,5105866834,Pts Plumbing Trade Supplies,£557.49
Manchester City Council,Adult Social Care,Compensation Payments,13-Apr-23,1908073812,Manchester City Council 7-52300211,"£1,900.00"
Manchester City Council,Regeneration Finance,Grant Payments,13-Apr-23,5105866638,Millenium Quarter Trust Admin Acct,"£1,366.00"
Manchester City Council,Environment and Operations,Construction Works,13-Apr-23,5105866196,GMCA,"£1,200.00"
Manchester City Council,Corporate Services,Travel Season TLS,13-Apr-23,5105865965,Stagecoach Manchester,£635.00
Manchester City Council,Adult Social Care,Equipment,13-Apr-23,5105866673,Invacare Limited,"£11,297.00"
Manchester City Council,Adult Social Care,Equipment,13-Apr-23,5105866765,Invacare Limited,£516.00
Manchester City Council,Adult Social Care,Training and Development,13-Apr-23,5105867020,T-Three Public Sector Consulting,"-£1,250.00"
Manchester City Council,Regeneration Finance,Third party payments relating to Voluntary Organisations,13-Apr-23,5105866609,Proper Job Theatre company,"£10,356.00"
Manchester City Council,Corporate Services,Fees,13-Apr-23,1908074813,Newlyn Plc,"£11,788.55"
Manchester City Council,Corporate Services,Fees,13-Apr-23,1908074813,Newlyn Plc,"-£11,788.55"
Manchester City Council,Regeneration Finance,Training and Development,13-Apr-23,5105866800,Open Awards,£975.00
Manchester City Council,Chief Executives,Counsel Costs,13-Apr-23,1908073809,18 St John Street Chambers,"£1,070.00"
Manchester City Council,Chief Executives,Counsel Costs,13-Apr-23,1908074814,18 St John Street Chambers,£650.00
Manchester City Council,Manchester Leisure,Grant and subscriptions awarded,13-Apr-23,5105866768,Tim Parry Jonathan Ball Foundation,"£1,632.00"
Manchester City Council,Hospitality + Trading Services,Funeral and coroner related services,13-Apr-23,5105866702,Zagota Creations Limited,"£1,150.00"
Manchester City Council,Corporate Services,Fees,13-Apr-23,1908073804,Bristow & Sutor,"£7,078.35"
Manchester City Council,Corporate Services,Fees,13-Apr-23,1908073804,Bristow & Sutor,"-£7,078.35"
Manchester City Council,Chief Executives,Hire of Equipment,13-Apr-23,5105866802,Pakflatt (UK) Ltd,"£7,040.00"
Manchester City Council,Environment and Operations,Construction Works,13-Apr-23,5105866630,Wilde Consultants Ltd,"£9,339.75"
Manchester City Council,Highways Services,Professional fees,13-Apr-23,5105866406,Wilde Consultants Ltd,"£2,705.26"
Manchester City Council,Corporate Services,Vehicle Costs,13-Apr-23,1908079154,Cyclescheme Ltd,"£6,712.08"
Manchester City Council,Corporate Services,Vehicle Costs,13-Apr-23,1908079152,Cyclescheme Ltd,"£3,014.17"
Manchester City Council,Chief Executives,Advertising,13-Apr-23,5105866838,Kingfisher Media Ltd,"£1,190.00"
Manchester City Council,Chief Executives,Advertising,13-Apr-23,5105866839,Kingfisher Media Ltd,£595.00
Manchester City Council,Highways Services,Payments to Sub-Contractors,13-Apr-23,5105866445,Steer Davies & Geave Limited,"£5,776.89"
Manchester City Council,Highways Services,Payments to Sub-Contractors,13-Apr-23,5105866608,Steer Davies & Geave Limited,"£4,611.28"
Manchester City Council,Adult Social Care,Third party payments relating to Voluntary Organisations,13-Apr-23,5105866777,DISC Ltd,"£44,018.00"
Manchester City Council,Manchester Leisure,Grant and subscriptions awarded,13-Apr-23,5105866829,N-Gage Project,"£25,000.00"
Manchester City Council,Regeneration Finance,I T Provision,13-Apr-23,5105866679,Locata (Housing Services) Ltd,"£6,117.75"
Manchester City Council,Regeneration Finance,I T Provision,13-Apr-23,5105866680,Locata (Housing Services) Ltd,"£1,300.00"
Manchester City Council,Childrens Services,Works and associated costs for Land and Buildings,13-Apr-23,5105865689,Conlon Construction Ltd,"£206,197.18"
Manchester City Council,Childrens Services,Works and associated costs for Land and Buildings,13-Apr-23,5105866648,Conlon Construction Ltd,£620.22
Manchester City Council,Adult Social Care,Personal needs of client,13-Apr-23,5105866783,Care & Independence Ltd,£595.00
Manchester City Council,Regeneration Finance,Counsel Costs,13-Apr-23,5105866707,Landmark Chambers,"£5,000.00"
Manchester City Council,Chief Executives,Grant and subscriptions awarded,13-Apr-23,5105866778,Waters Edge Arts Ltd,"£3,750.00"
Manchester City Council,Adult Social Care,I T Provision,13-Apr-23,5105866739,Percy Westhead & Company,"£8,460.00"
Manchester City Council,Manchester Leisure,Grant and subscriptions awarded,13-Apr-23,5105866824,Whalley Range Cricket Club,"£2,175.00"
Manchester City Council,Manchester Leisure,Testing Fees,13-Apr-23,5105866806,County Scientific Services,"£2,351.00"
Manchester City Council,Manchester Leisure,Professional fees,13-Apr-23,5105866747,Belle Vue Productions Ltd,£950.00
Manchester City Council,Adult Social Care,Professional fees,13-Apr-23,5105866675,Catalyst Psychology CIC,"£1,220.00"
Manchester City Council,Chief Executives,Professional fees,13-Apr-23,1908073810,Alpha Biolaboratories Limited,£505.00
Manchester City Council,Chief Executives,I T Provision,13-Apr-23,5105866553,Softcat,"£61,860.00"
Manchester City Council,Highways Services,Professional fees,13-Apr-23,5105866551,Biffa Municipal Limited,"£122,096.00"
Manchester City Council,Highways Services,Professional fees,13-Apr-23,5105866552,Biffa Municipal Limited,"-£122,096.00"
Manchester City Council,Chief Executives,Professional fees,13-Apr-23,1908073820,Fraud Advisory Services Ltd,£683.24
Manchester City Council,Childrens & Education Services,Professional fees,13-Apr-23,5105866716,Forensic Testing Service Ltd,"£1,588.00"
Manchester City Council,Housing Revenue Account,Vehicle Plant Furniture and Equipment,13-Apr-23,5105866124,The Networking People (TNP) Ltd,"£1,671.31"
Manchester City Council,Environment and Operations,Construction Works,13-Apr-23,5105866599,Balfour Beatty Living Places Ltd,£789.47
Manchester City Council,Manchester Leisure,Payments to Sub-Contractors,13-Apr-23,5105866738,Greenfingers Landscape Ltd,"£10,750.00"
Manchester City Council,Childrens & Education Services,Payments for services,13-Apr-23,5105866643,National Offender Mgt Services,"£21,560.00"
Manchester City Council,Childrens & Education Services,Payments for services,13-Apr-23,5105866663,National Offender Mgt Services,"£21,560.00"
Manchester City Council,Childrens & Education Services,Payments for services,13-Apr-23,5105866667,National Offender Mgt Services,"£20,524.00"
Manchester City Council,Childrens & Education Services,Payments for services,13-Apr-23,5105866650,National Offender Mgt Services,"£9,517.00"
Manchester City Council,Childrens & Education Services,Payments for services,13-Apr-23,5105866662,National Offender Mgt Services,"£9,517.00"
Manchester City Council,Childrens & Education Services,Payments for services,13-Apr-23,5105866644,National Offender Mgt Services,"£8,596.00"
Manchester City Council,Childrens & Education Services,Payments for services,13-Apr-23,5105866647,National Offender Mgt Services,"£8,596.00"
Manchester City Council,Childrens & Education Services,Payments for services,13-Apr-23,5105866664,National Offender Mgt Services,"£8,596.00"
Manchester City Council,Childrens & Education Services,Payments for services,13-Apr-23,5105866668,National Offender Mgt Services,"£8,596.00"
Manchester City Council,Childrens & Education Services,Payments for services,13-Apr-23,5105866670,National Offender Mgt Services,"£8,596.00"
Manchester City Council,Childrens & Education Services,Payments for services,13-Apr-23,5105866681,National Offender Mgt Services,"£8,596.00"
Manchester City Council,Childrens & Education Services,Payments for services,13-Apr-23,5105866645,National Offender Mgt Services,"£6,754.00"
Manchester City Council,Childrens & Education Services,Payments for services,13-Apr-23,5105866642,National Offender Mgt Services,"£6,447.00"
Manchester City Council,Childrens & Education Services,Payments for services,13-Apr-23,5105866683,National Offender Mgt Services,"£6,447.00"
Manchester City Council,Childrens & Education Services,Payments for services,13-Apr-23,5105866686,National Offender Mgt Services,"£4,605.00"
Manchester City Council,Childrens & Education Services,Payments for services,13-Apr-23,5105866684,National Offender Mgt Services,"£4,298.00"
Manchester City Council,Childrens & Education Services,Payments for services,13-Apr-23,5105866649,National Offender Mgt Services,"£2,149.00"
Manchester City Council,Childrens & Education Services,Payments for services,13-Apr-23,5105866646,National Offender Mgt Services,"£1,842.00"
Manchester City Council,Childrens & Education Services,Payments for services,13-Apr-23,5105866682,National Offender Mgt Services,"£1,540.00"
Manchester City Council,Childrens & Education Services,Payments for services,13-Apr-23,5105866641,National Offender Mgt Services,"£1,535.00"
Manchester City Council,Childrens & Education Services,Payments for services,13-Apr-23,5105866685,National Offender Mgt Services,"£1,535.00"
Manchester City Council,Childrens & Education Services,Payments for services,13-Apr-23,5105866687,National Offender Mgt Services,£921.00
Manchester City Council,Chief Executives,CRB Fees,13-Apr-23,5105866810,Complete Background Screening Ltd,"£1,245.00"
Manchester City Council,Chief Executives,CRB Fees,13-Apr-23,5105866837,Complete Background Screening Ltd,£942.00
Manchester City Council,Hospitality + Trading Services,Vehicle Fuel Costs,13-Apr-23,5105866749,Standard Fuels Oils,"£16,084.20"
Manchester City Council,Hospitality + Trading Services,Vehicle Fuel Costs,13-Apr-23,5105866760,Standard Fuels Oils,"£12,188.66"
Manchester City Council,Corporate Services,WPS Awards,13-Apr-23,5105866719,Furniture Resource Centre Ltd,"-£1,121.00"
Manchester City Council,Housing Revenue Account,Council Dwelling Adaptations,13-Apr-23,5105866676,Procare Shower & Bathroom Centre Lt,"£4,130.24"
Manchester City Council,Regeneration Finance,Legal Fees,13-Apr-23,5105866751,OPen  (Optimised Environments Ltd),"£15,784.00"
Manchester City Council,Regeneration Finance,Legal Fees,13-Apr-23,5105866752,OPen  (Optimised Environments Ltd),"£15,784.00"
Manchester City Council,Manchester Leisure,Grant and subscriptions awarded,13-Apr-23,5105866811,The Common Sense Network,"£5,000.00"
Manchester City Council,Manchester Leisure,Professional fees,13-Apr-23,5105866631,Big People Music Ltd,"-£2,000.00"
Manchester City Council,Adult Social Care,Subsistence and Conference Expenses,13-Apr-23,5105866759,Immigration Social Work Services,"£1,160.00"
Manchester City Council,Corporate Services,Works and associated costs for Land and Buildings,13-Apr-23,5105866583,WSP UK Limited,"£60,304.00"
Manchester City Council,Corporate Services,Works and associated costs for Land and Buildings,13-Apr-23,5105866579,WSP UK Limited,"£33,406.00"
Manchester City Council,Corporate Services,Works and associated costs for Land and Buildings,13-Apr-23,5105866577,WSP UK Limited,"£20,644.00"
Manchester City Council,Manchester Leisure,Grant and subscriptions awarded,13-Apr-23,5105866622,Cheetham Cricket Club,"£3,000.00"
Manchester City Council,Adult Social Care,Bed & Breakfast Acc,13-Apr-23,5105866744,Fairways Lodge,"£10,700.00"
Manchester City Council,Manchester Leisure,Contract Cleaning External,13-Apr-23,5105866397,CPD Property Services,£750.00
Manchester City Council,Childrens & Education Services,Professional fees,13-Apr-23,5105866703,Term2term Ltd,"£4,275.00"
Manchester City Council,Childrens & Education Services,Legal Fees,13-Apr-23,5105866718,DEANS COURT CHAMBERS,"£4,500.00"
Manchester City Council,Chief Executives,Counsel Costs,13-Apr-23,1908077280,DEANS COURT CHAMBERS,£960.00
Manchester City Council,Childrens & Education Services,Home Care ,13-Apr-23,5105866756,WALKING TOGETHER,"£2,400.00"
Manchester City Council,Adult Social Care,Professional fees,13-Apr-23,5105866634,Pinnacle Building and Surveying,£550.00
Manchester City Council,Childrens & Education Services,Grant Payments,13-Apr-23,1908079156,Paypoint,"£7,334.60"
Manchester City Council,Regeneration Finance,General Office expenses,13-Apr-23,5105866790,Bruntwood (Heron House),"£11,595.68"
Manchester City Council,Chief Executives,Hire of Equipment,13-Apr-23,5105866674,Scan Computers International,"£7,827.86"
Manchester City Council,Manchester Leisure,Professional fees,13-Apr-23,5105866704,Meg Beamish,£640.00
Manchester City Council,Childrens & Education Services,Carer Support Payments ,13-Apr-23,5105866688,Care Solutions Recruitment,"£9,793.96"
Manchester City Council,Childrens & Education Services,Home Care ,13-Apr-23,5105866720,Gateway Psychology Ltd,"£1,000.00"
Manchester City Council,Manchester Leisure,Payments to Sub-Contractors,13-Apr-23,5105866717,Special Branch Tree Surgeons Ltd,"£9,000.00"
Manchester City Council,Environment and Operations,Works and associated costs for Land and Buildings,13-Apr-23,5105866637,Nordic Products and Services,"£5,397.00"
Manchester City Council,Adult Social Care,Rents,13-Apr-23,5105866640,Rtech Group Limited,"£3,279.18"
Manchester City Council,Adult Social Care,Rents,13-Apr-23,5105866639,Rtech Group Limited,"£1,458.33"
Manchester City Council,Childrens & Education Services,Building Materials for direct delivery,13-Apr-23,5105866691,TECHNIHEAT PLANT SERVICES LTD,"£11,550.00"
Manchester City Council,Childrens & Education Services,Compensation Payments,13-Apr-23,1908079988,Morrish Solicitors LLP,"£20,000.00"
Manchester City Council,Childrens & Education Services,Legal Fees,13-Apr-23,1908079988,Morrish Solicitors LLP,"£11,198.40"
Manchester City Council,Chief Executives,Legal Fees,13-Apr-23,1908079124,Ridley & Hall Solicitors,"£5,539.58"
Manchester City Council,Regeneration Finance,Professional fees,13-Apr-23,1908075166,Whitehill Direct Limited,"£2,250.00"
Manchester City Council,Adult Social Care,Bed & Breakfast Acc,13-Apr-23,5105866826,Redacted Personal Information,"£37,765.00"
Manchester City Council,Chief Executives,Payments to Sub-Contractors,13-Apr-23,5105866793,Redacted Personal Information,£754.40
Manchester City Council,Chief Executives,Counsel Costs,13-Apr-23,1908073816,Redacted Personal Information,£650.00
Manchester City Council,Chief Executives,Counsel Costs,13-Apr-23,1908073806,Redacted Personal Information,£875.00
Manchester City Council,Chief Executives,Counsel Costs,13-Apr-23,1908073817,Redacted Personal Information,£875.00
Manchester City Council,Manchester Leisure,Professional fees,14-Apr-23,1908079777,Redacted Personal Information,"£1,400.00"
Manchester City Council,Housing General Fund,Building Works,14-Apr-23,1908070437,Redacted Personal Information,"£5,669.51"
Manchester City Council,Adult Social Care,Rents,14-Apr-23,1908080712,Redacted Personal Information,"£2,200.00"
Manchester City Council,Regeneration Finance,Cleaning Equipment,14-Apr-23,5105866376,Edmundson Electrical Ltd,£681.66
Manchester City Council,Regeneration Finance,Cleaning Equipment,14-Apr-23,5105867034,Edmundson Electrical Ltd,-£681.66
Manchester City Council,Adult Social Care,Equipment,14-Apr-23,5105866592,Smitcare Ltd,"£4,875.00"
Manchester City Council,Adult Social Care,Equipment,14-Apr-23,5105866589,Smitcare Ltd,"£3,274.50"
Manchester City Council,Adult Social Care,Equipment,14-Apr-23,5105866590,Smitcare Ltd,"£2,325.00"
Manchester City Council,Adult Social Care,Equipment,14-Apr-23,5105866593,Smitcare Ltd,"£2,215.50"
Manchester City Council,Adult Social Care,Equipment,14-Apr-23,5105866591,Smitcare Ltd,"£1,477.00"
Manchester City Council,Manchester Leisure,Goods purchased for resale in Council outlets,14-Apr-23,5105866909,Canns Down Press Ltd,£869.91
Manchester City Council,Highways Services,Purchase of stores for re-distribution,14-Apr-23,5105866584,Marshalls Mono Ltd,"£17,133.15"
Manchester City Council,Regeneration Finance,Professional fees,14-Apr-23,5105866852,Local Partnerships LLP,"£2,182.18"
Manchester City Council,Hospitality + Trading Services,Hire of Equipment,14-Apr-23,5105866910,Briggs Equipment UK Limited,"£3,000.00"
Manchester City Council,Hospitality + Trading Services,Hire of Equipment,14-Apr-23,5105866907,M-R-S Communications Ltd,£664.56
Manchester City Council,Corporate Services,Fees,14-Apr-23,1908074847,Marston Group Limited,"£4,396.25"
Manchester City Council,Corporate Services,Fees,14-Apr-23,1908074847,Marston Group Limited,"-£4,396.25"
Manchester City Council,Regeneration Finance,Gas,14-Apr-23,5105866849,Calor Gas Ltd,£689.25
Manchester City Council,Regeneration Finance,Professional fees,14-Apr-23,5105866860,Mace Ltd,"-£9,936.00"
Manchester City Council,Chief Executives,Agency staff provision,14-Apr-23,5105867031,Adecco Uk Ltd,"£1,685.40"
Manchester City Council,Childrens & Education Services,Carer Support Payments ,14-Apr-23,5105866206,Mosscare Housing Ltd,"£60,700.09"
Manchester City Council,Childrens & Education Services,Carer Support Payments ,14-Apr-23,5105866595,Mosscare Housing Ltd,"£60,700.09"
Manchester City Council,Manchester Leisure,Payments to Sub-Contractors,14-Apr-23,5105866921,Rigby Taylor Ltd,"£1,350.00"
Manchester City Council,Childrens & Education Services,Transport Coach Hire,14-Apr-23,5105866856,M Travel,"£69,368.00"
Manchester City Council,Environment and Operations,Construction Works,14-Apr-23,5105866862,J.Hopkins (Contractors) Ltd.,"£15,913.82"
Manchester City Council,Environment and Operations,Construction Works,14-Apr-23,5105866891,J.Hopkins (Contractors) Ltd.,"£1,775.03"
Manchester City Council,Manchester Leisure,Compensation Payments,14-Apr-23,1908080711,Peasegoods,"£3,300.85"
Manchester City Council,Adult Social Care,Payments for services,14-Apr-23,5105866914,Big Life Centres,"£1,892.50"
Manchester City Council,Adult Social Care,Third party payments to Health Authority,14-Apr-23,5105867100,BHA for Equality,"£8,000.00"
Manchester City Council,Chief Executives,Counsel Costs,14-Apr-23,5105866887,No 5 Chambers Ltd,"£1,000.00"
Manchester City Council,Adult Social Care,Payments for services,14-Apr-23,5105867083,Creative Support Ltd,"£19,915.75"
Manchester City Council,Adult Social Care,Payments for services,14-Apr-23,5105867114,Creative Support Ltd,"£19,915.75"
Manchester City Council,Adult Social Care,Equipment,14-Apr-23,5105867050,Morris & Alexander Ltd,"£1,979.20"
Manchester City Council,Childrens & Education Services,General Payments not otherwise categorised,14-Apr-23,5105867129,Rochdale Mbc,"£23,642.00"
Manchester City Council,Regeneration Finance,Third party payments relating to Voluntary Organisations,14-Apr-23,5105866936,Pure Innovations Ltd,"£41,808.00"
Manchester City Council,Childrens & Education Services,General Payments not otherwise categorised,14-Apr-23,5105865646,Stockport Metropolitan Borough,"£59,623.32"
Manchester City Council,Childrens & Education Services,Third party payments to other Local Authorities,14-Apr-23,5105865297,Stockport Metropolitan Borough,"-£6,298.29"
Manchester City Council,Manchester Leisure,Grant and subscriptions awarded,14-Apr-23,5105866805,4CT Limited,"£21,250.00"
Manchester City Council,Manchester Leisure,Grant and subscriptions awarded,14-Apr-23,5105865685,4CT Limited,"£3,621.00"
Manchester City Council,Manchester Leisure,Grant and subscriptions awarded,14-Apr-23,5105865684,4CT Limited,"£2,940.00"
Manchester City Council,Manchester Leisure,Grant and subscriptions awarded,14-Apr-23,5105867002,Oswald Road Primary School,"£1,000.00"
Manchester City Council,Manchester Leisure,Grant and subscriptions awarded,14-Apr-23,5105867004,Oswald Road Primary School,£630.00
Manchester City Council,Manchester Leisure,Compensation Payments,14-Apr-23,1908073815,Express Solicitors,"£1,800.00"
Manchester City Council,Hospitality + Trading Services,Vehicle Repairs,14-Apr-23,5105867071,LDS Motor Bodies Ltd,£675.28
Manchester City Council,Adult Social Care,Supporting People Payments,14-Apr-23,5105866863,Child Action Northwest,"£3,545.42"
Manchester City Council,Childrens & Education Services,Supporting People Payments,14-Apr-23,5105866863,Child Action Northwest,"£2,114.86"
Manchester City Council,Manchester Leisure,Compensation Payments,14-Apr-23,1908070456,Department For Work & Pensions,"£6,298.00"
Manchester City Council,Insurance Fund,Insurance,14-Apr-23,1908070456,Department For Work & Pensions,"£1,597.39"
Manchester City Council,Chief Executives,Works and associated costs for Land and Buildings,14-Apr-23,5105865556,Price Waterhouse Coopers LLP,"£2,500.00"
Manchester City Council,Highways Services,Training-Day Release,14-Apr-23,5105865877,LGV4U Ltd,"£10,984.19"
Manchester City Council,Highways Services,Training-Day Release,14-Apr-23,5105866935,LGV4U Ltd,"-£10,984.19"
Manchester City Council,General Fund,Levies,14-Apr-23,#,GMCA,"£3,905,500.00"
Manchester City Council,Childrens & Education Services,Grant Payments,14-Apr-23,5105867098,FFT Education Ltd,"£4,896.86"
Manchester City Council,Manchester Leisure,Grant and subscriptions awarded,14-Apr-23,5105867084,Brunswick Parish Church,"£2,365.00"
Manchester City Council,Corporate Services,Works and associated costs for Land and Buildings,14-Apr-23,5105866943,Morgan Sindall C & I Ltd,"£980,002.50"
Manchester City Council,Corporate Services,Works and associated costs for Land and Buildings,14-Apr-23,5105866941,Morgan Sindall C & I Ltd,"-£980,002.50"
Manchester City Council,Chief Executives,Counsel Costs,14-Apr-23,1908073802,18 St John Street Chambers,"£2,550.00"
Manchester City Council,Hospitality + Trading Services,Refuse Collection,14-Apr-23,5105867132,GG Compactors Ltd,£989.00
Manchester City Council,Adult Social Care,Rents,14-Apr-23,5105867041,Barrat Gray USE 30031380,"-£1,150.00"
Manchester City Council,Adult Social Care,Rents,14-Apr-23,5105867042,Barrat Gray USE 30031380,"-£1,150.00"
Manchester City Council,Chief Executives,Legal Fees,14-Apr-23,5105866993,Weightmans LLP Solicitors,"£2,900.50"
Manchester City Council,Chief Executives,Legal Fees,14-Apr-23,5105867089,Weightmans LLP Solicitors,"£2,460.00"
Manchester City Council,Childrens & Education Services,Third party payments to other Local Authorities,14-Apr-23,5105866925,Worthington Primary School,"£1,953.00"
Manchester City Council,Childrens & Education Services,Professional fees,14-Apr-23,5105867153,One Education Ltd,"£4,000.00"
Manchester City Council,Corporate Services,Works and associated costs for Land and Buildings,14-Apr-23,5105866905,Janice Tullock Associates Ltd,"£1,125.00"
Manchester City Council,Corporate Services,Fees,14-Apr-23,5105866840,Pannone Corporate LLP,"£16,031.46"
Manchester City Council,Corporate Services,Fees,14-Apr-23,5105866840,Pannone Corporate LLP,"£6,864.54"
Manchester City Council,Manchester Leisure,Grant and subscriptions awarded,14-Apr-23,5105866904,Wythenshawe Community Housing Group,"£35,000.00"
Manchester City Council,Adult Social Care,Third party payments relating to Voluntary Organisations,14-Apr-23,5105866758,Wythenshawe Community Housing Group,£500.00
Manchester City Council,Manchester Leisure,Grant and subscriptions awarded,14-Apr-23,5105867030,Fallowfield Library & Comm Centre,"£5,904.75"
Manchester City Council,Manchester Leisure,Refuse Collection,14-Apr-23,5105865742,Biffa Municipal Limited,"£65,487.26"
Manchester City Council,Manchester Leisure,Refuse Collection,14-Apr-23,5105865742,Biffa Municipal Limited,"£13,049.61"
Manchester City Council,Manchester Leisure,Long Term Debtors,14-Apr-23,1908080719,Love Withington Baths,"£177,123.73"
Manchester City Council,Adult Social Care,Rents,14-Apr-23,5105866919,K L Properties,"£15,475.21"
Manchester City Council,Adult Social Care,Rents,14-Apr-23,5105866900,Housing Social Ltd,"£4,720.00"
Manchester City Council,Adult Social Care,Rents,14-Apr-23,5105866906,Eeven Homes Ltd.,"£17,916.00"
Manchester City Council,Regeneration Finance,I T Provision,14-Apr-23,5105866991,Vitalize Consultancy,"£2,000.00"
Manchester City Council,Chief Executives,Legal Fees,14-Apr-23,5105867081,Waddington & Son Solicitors,"£1,121.00"
Manchester City Council,Childrens & Education Services,Agency staff provision,14-Apr-23,5105867130,Manchester Uni NHS FT Charity,"£33,576.30"
Manchester City Council,Adult Social Care,Bed & Breakfast Acc,14-Apr-23,5105866912,Hala Guest House,"£5,250.00"
Manchester City Council,Corporate Services,Agency staff provision,14-Apr-23,5105867000,Osbourne Thomas Ltd,"£2,551.67"
Manchester City Council,Regeneration Finance,Professional fees,14-Apr-23,5105867099,Metis Real Estate,"£10,000.00"
Manchester City Council,Housing General Fund,Building Works,14-Apr-23,1908080718,Muse Developments Ltd,"£249,999.00"
Manchester City Council,Chief Executives,Payments to Sub-Contractors,14-Apr-23,5105866873,GAMACHU GUTTO,"£2,468.88"
Manchester City Council,Adult Social Care,Professional fees,14-Apr-23,5105867063,UNIQUE SPECIALIST SERVICES,"£1,377.00"
Manchester City Council,Regeneration Finance,Security,14-Apr-23,5105867058,MITIE SECURITY LIMITED,"£119,745.37"
Manchester City Council,Regeneration Finance,Security,14-Apr-23,5105867067,MITIE SECURITY LIMITED,"£119,154.55"
Manchester City Council,Regeneration Finance,Security,14-Apr-23,5105867065,MITIE SECURITY LIMITED,"£119,132.83"
Manchester City Council,Regeneration Finance,Security,14-Apr-23,5105867066,MITIE SECURITY LIMITED,"£119,054.48"
Manchester City Council,Regeneration Finance,Security,14-Apr-23,5105867064,MITIE SECURITY LIMITED,"£118,926.91"
Manchester City Council,Regeneration Finance,Security,14-Apr-23,5105867056,MITIE SECURITY LIMITED,"£118,819.43"
Manchester City Council,Regeneration Finance,Security,14-Apr-23,5105867059,MITIE SECURITY LIMITED,"£12,375.84"
Manchester City Council,Regeneration Finance,Security,14-Apr-23,5105867062,MITIE SECURITY LIMITED,"£2,136.88"
Manchester City Council,Regeneration Finance,Security,14-Apr-23,5105867057,MITIE SECURITY LIMITED,"£1,945.37"
Manchester City Council,Regeneration Finance,Security,14-Apr-23,5105867060,MITIE SECURITY LIMITED,"£1,270.56"
Manchester City Council,Chief Executives,Agency staff provision,14-Apr-23,5105867082,Isherwood Legal Limited,"£1,420.00"
Manchester City Council,Manchester Leisure,Professional fees,14-Apr-23,5105866859,Zane Abdo,£501.55
Manchester City Council,Corporate Services,Counsel Costs,14-Apr-23,5105866886,DEANS COURT CHAMBERS,"£9,000.00"
Manchester City Council,Libraries and Theatres,Vehicle Plant Furniture and Equipment,14-Apr-23,5105865440,Fusion LX,"£22,317.13"
Manchester City Council,Adult Social Care,Rents,14-Apr-23,5105866890,Rtech Group Limited,"£4,345.84"
Manchester City Council,Adult Social Care,Rents,14-Apr-23,5105866888,Rtech Group Limited,"£3,516.67"
Manchester City Council,Childrens & Education Services,Third party payments relating to Voluntary Organisations,14-Apr-23,5105866894,Key Creative Psychotherapy Services,"£7,000.00"
Manchester City Council,Highways Services,Compensation Payments,14-Apr-23,1908080708,NATIONAL ACCIDENT LAW,"£5,490.00"
Manchester City Council,Adult Social Care,Rents,14-Apr-23,1908080715,KK RICH ESTATES LIMITED,"£2,420.00"
Manchester City Council,Adult Social Care,Rents,14-Apr-23,1908080715,KK RICH ESTATES LIMITED,"£1,650.00"
Manchester City Council,Adult Social Care,Rents,14-Apr-23,1908080712,Redacted Personal Information,"£1,350.00"
Manchester City Council,Adult Social Care,Rents,14-Apr-23,1908080720,Rennsolution Ltd,"£8,397.36"
Manchester City Council,Adult Social Care,Rents,14-Apr-23,1908080709,Rennsolution Ltd,"£8,397.00"
Manchester City Council,Adult Social Care,Rents,14-Apr-23,1700148525,Rennsolution Ltd,"-£8,397.00"
Manchester City Council,Adult Social Care,Rents,14-Apr-23,1908080714,The Director C & B Properties Limit,"£1,576.00"
Manchester City Council,Adult Social Care,Rents,14-Apr-23,1908080714,The Director C & B Properties Limit,£620.00
Manchester City Council,Manchester Leisure,Equipment,14-Apr-23,1908080003,Boots Hearingcare Limited,"£6,273.01"
Manchester City Council,Highways Services,Legal Fees,14-Apr-23,1908080708,NATIONAL ACCIDENT LAW,"£4,360.80"
Manchester City Council,Childrens & Education Services,Day Care Payments,14-Apr-23,5105867009,Redacted Personal Information,"£1,320.00"
Manchester City Council,Adult Social Care,Bed & Breakfast Acc,14-Apr-23,5105866911,Redacted Personal Information,"£9,140.00"
Manchester City Council,Manchester Leisure,Professional fees,14-Apr-23,5105866865,Redacted Personal Information,"£1,000.00"
Manchester City Council,Chief Executives,Payments to Sub-Contractors,14-Apr-23,5105866980,Redacted Personal Information,£967.96
Manchester City Council,Chief Executives,Payments to Sub-Contractors,14-Apr-23,5105866877,Redacted Personal Information,£712.45
Manchester City Council,Chief Executives,Payments to Sub-Contractors,14-Apr-23,5105866947,Redacted Personal Information,"£1,702.20"
Manchester City Council,Chief Executives,Payments to Sub-Contractors,14-Apr-23,5105866978,Redacted Personal Information,"£1,286.53"
Manchester City Council,Chief Executives,Payments to Sub-Contractors,14-Apr-23,5105866944,Redacted Personal Information,£643.50
Manchester City Council,Chief Executives,Payments to Sub-Contractors,14-Apr-23,5105866952,Redacted Personal Information,£658.15
Manchester City Council,Chief Executives,Payments to Sub-Contractors,14-Apr-23,5105866874,Redacted Personal Information,£633.50
Manchester City Council,Chief Executives,Payments to Sub-Contractors,14-Apr-23,5105867112,Redacted Personal Information,£709.05
Manchester City Council,Chief Executives,Payments to Sub-Contractors,14-Apr-23,5105866987,Redacted Personal Information,"£1,574.82"
Manchester City Council,Chief Executives,Payments to Sub-Contractors,14-Apr-23,5105866960,Redacted Personal Information,£861.95
Manchester City Council,Adult Social Care,Bed & Breakfast Acc,14-Apr-23,5105866913,Redacted Personal Information,"£4,875.00"
Manchester City Council,Chief Executives,Payments to Sub-Contractors,14-Apr-23,5105866932,Redacted Personal Information,£522.00
Manchester City Council,Chief Executives,Signers/Interpreters,14-Apr-23,5105866902,Redacted Personal Information,"£2,133.70"
Manchester City Council,Chief Executives,Payments to Sub-Contractors,14-Apr-23,5105867078,Redacted Personal Information,£900.30
Manchester City Council,Chief Executives,Payments to Sub-Contractors,14-Apr-23,5105867102,T/A Janus,"£1,598.65"
Manchester City Council,Manchester Leisure,Counsel Costs,17-Apr-23,1908075183,Redacted Personal Information,£750.00
Manchester City Council,Childrens & Education Services,Foster Payments,17-Apr-23,1908081351,Redacted Personal Information,"£1,640.00"
Manchester City Council,Manchester Leisure,Internal Repairs and Maintenance for buildings,17-Apr-23,5105867214,Failsworth Electrical Ltd,"£2,845.00"
Manchester City Council,Regeneration Finance,Grant Payments,17-Apr-23,5105867325,District Surveyors Associ. Ltd,"£3,404.12"
Manchester City Council,Childrens & Education Services,Payments for services,17-Apr-23,5105867316,Belmont School Ltd,"£26,000.01"
Manchester City Council,Corporate Services,Agency staff provision,17-Apr-23,5105867169,Michael Page International,£736.00
Manchester City Council,Corporate Services,Agency staff provision,17-Apr-23,5105867158,Michael Page International,£672.00
Manchester City Council,Corporate Services,Agency staff provision,17-Apr-23,5105867172,Michael Page International,£672.00
Manchester City Council,Adult Social Care,Rents,17-Apr-23,5105867137,Anchor Trust,"£6,205.39"
Manchester City Council,Adult Social Care,Rents,17-Apr-23,5105867136,Anchor Trust,"£6,063.03"
Manchester City Council,Adult Social Care,Rents,17-Apr-23,5105867135,Anchor Trust,"£6,028.56"
Manchester City Council,Corporate Services,Fees,17-Apr-23,1908074842,Marston Group Limited,"£14,588.45"
Manchester City Council,Corporate Services,Fees,17-Apr-23,1908074842,Marston Group Limited,"-£14,588.45"
Manchester City Council,Corporate Services,Works and associated costs for Land and Buildings,17-Apr-23,5105867404,Apex Self Storage Ltd,"£2,662.04"
Manchester City Council,Corporate Services,Works and associated costs for Land and Buildings,17-Apr-23,5105867502,Apex Self Storage Ltd,"-£2,662.04"
Manchester City Council,Hospitality + Trading Services,Hire of Machinery,17-Apr-23,5105867268,R & M Developments Ltd,"£1,073.50"
Manchester City Council,Hospitality + Trading Services,Hire of Machinery,17-Apr-23,5105867269,R & M Developments Ltd,"£1,073.50"
Manchester City Council,Manchester Leisure,Payments to Sub-Contractors,17-Apr-23,5105867310,Barcham Trees Plc,"£5,000.00"
Manchester City Council,Childrens & Education Services,Professional fees,17-Apr-23,5105867308,AECOM Limited,"£11,508.00"
Manchester City Council,Childrens & Education Services,Payments for services,17-Apr-23,5105867309,Reed Employment Plc,"£13,602.69"
Manchester City Council,Chief Executives,Works and associated costs for Land and Buildings,17-Apr-23,5105866997,Laing O'Rourke Construction Ltd,"£347,662.00"
Manchester City Council,Childrens & Education Services,Payments for services,17-Apr-23,5105867319,Barnardo's North West,"£3,150.00"
Manchester City Council,Manchester Leisure,Payments to Sub-Contractors,17-Apr-23,5105867300,Rigby Taylor Ltd,"£3,718.00"
Manchester City Council,Childrens & Education Services,Hire of Premises,17-Apr-23,5105867190,Moss Side Millennium Powerhouse Ltd,"£2,916.67"
Manchester City Council,Regeneration Finance,Grounds Maintenance,17-Apr-23,5105867351,Arboricultural Services Treework,"£1,800.00"
Manchester City Council,Adult Social Care,Supporting People Payments,17-Apr-23,5105867299,Creative Support Ltd,"£142,763.24"
Manchester City Council,Adult Social Care,Supported Accommodation,17-Apr-23,5105867238,Independent Living Alliance,"£10,025.40"
Manchester City Council,Adult Social Care,Supported Accommodation,17-Apr-23,5105867341,Independent Living Alliance,"£10,025.40"
Manchester City Council,Chief Executives,I T Provision,17-Apr-23,5105867148,Lexis Nexis Axxia,"£22,813.25"
Manchester City Council,Childrens & Education Services,Private Finance and Public Private partnership initiatives,17-Apr-23,5105865601,NU3PS,"£84,160.46"
Manchester City Council,Adult Social Care,Third party payments relating to Voluntary Organisations,17-Apr-23,5105867234,Greater Manchester Mental Health,"£9,061.00"
Manchester City Council,Adult Social Care,Third party payments relating to Voluntary Organisations,17-Apr-23,5105867236,Greater Manchester Mental Health,"£1,770.24"
Manchester City Council,Adult Social Care,Third party payments to Health Authority,17-Apr-23,5105867200,Greater Manchester Mental Health,"£19,923.52"
Manchester City Council,Regeneration Finance,Electricity,17-Apr-23,5105867231,Wythenshawe Forum Trust Ltd,"£20,764.71"
Manchester City Council,Manchester Leisure,Compensation Payments,17-Apr-23,1908078667,Express Solicitors,"£6,872.00"
Manchester City Council,Adult Social Care,Extra Care Sheltd HP,17-Apr-23,5105867367,Premier Care  Ltd,"£54,080.13"
Manchester City Council,Adult Social Care,Third party payments relating to Voluntary Organisations,17-Apr-23,5105867199,Manchester Action On Street Health,"£15,375.83"
Manchester City Council,Highways Services,Payments to Sub-Contractors,17-Apr-23,5105865848,Rosgal Ltd,"£10,920.00"
Manchester City Council,Highways Services,Payments to Sub-Contractors,17-Apr-23,5105865826,Rosgal Ltd,"£8,580.00"
Manchester City Council,Highways Services,Payments to Sub-Contractors,17-Apr-23,5105866427,Rosgal Ltd,£940.00
Manchester City Council,Highways Services,Payments to Sub-Contractors,17-Apr-23,5105865823,Rosgal Ltd,£765.00
Manchester City Council,Highways Services,Payments to Sub-Contractors,17-Apr-23,5105865821,Rosgal Ltd,£500.00
Manchester City Council,Chief Executives,Legal Fees,17-Apr-23,1908078666,Bromleys Solicitors LLP,£500.00
Manchester City Council,Housing Revenue Account,Court Fees,17-Apr-23,1700148527,Accountant General of the Senior,"-£8,000.00"
Manchester City Council,Manchester Leisure,Goods purchased for resale in Council outlets,17-Apr-23,5105867249,Cornflower Ltd,"£1,088.00"
Manchester City Council,Environment and Operations,Construction Works,17-Apr-23,5105867171,GMCA,"£3,575.03"
Manchester City Council,Environment and Operations,Construction Works,17-Apr-23,5105867173,GMCA,"£9,794.68"
Manchester City Council,Regeneration Finance,Grant and subscriptions awarded,17-Apr-23,5105867178,GMCA,"£25,000.00"
Manchester City Council,Adult Social Care,Payments for services,17-Apr-23,5105867164,GMCA,"£14,459.00"
Manchester City Council,Childrens Services,Works and associated costs for Land and Buildings,17-Apr-23,5105865131,GMCA,"£28,172.58"
Manchester City Council,Manchester Leisure,Professional fees,17-Apr-23,5105867476,Eve Trakway,-£864.46
Manchester City Council,Adult Social Care,Works and associated costs for Land and Buildings,17-Apr-23,5105866245,Morgan Sindall C & I Ltd,"£83,612.16"
Manchester City Council,Adult Social Care,Personal needs of client,17-Apr-23,5105866530,Just Checking Ltd,"£52,067.58"
Manchester City Council,Adult Social Care,Personal needs of client,17-Apr-23,5105866529,Just Checking Ltd,"£45,109.00"
Manchester City Council,Chief Executives,Counsel Costs,17-Apr-23,1908079994,18 St John Street Chambers,£950.00
Manchester City Council,Corporate Services,I T Provision,17-Apr-23,5105867183,Pmoonline Limited,"£1,760.00"
Manchester City Council,Chief Executives,Legal Fees,17-Apr-23,5105867186,Russell & Russell Solicitors LLP,"£5,649.63"
Manchester City Council,Adult Social Care,Rents,17-Apr-23,5105867141,Accommodation Links Ltd,"£100,958.00"
Manchester City Council,Highways Services,Payments to Sub-Contractors,17-Apr-23,5105866185,Northern Marking Limited,"£3,339.87"
Manchester City Council,Highways Services,Payments to Sub-Contractors,17-Apr-23,5105866186,Northern Marking Limited,"£1,169.11"
Manchester City Council,Chief Executives,Legal Fees,17-Apr-23,5105867215,Weightmans LLP Solicitors,"£3,642.24"
Manchester City Council,Chief Executives,Legal Fees,17-Apr-23,5105867215,Weightmans LLP Solicitors,"£1,177.27"
Manchester City Council,Childrens & Education Services,Training and Development,17-Apr-23,5105867333,Vision Aid Technologies,£590.00
Manchester City Council,Childrens Services,Building Works,17-Apr-23,5105867220,Dixons Brooklands Academy,"£24,000.00"
Manchester City Council,Manchester Leisure,Goods purchased for resale in Council outlets,17-Apr-23,5105867230,Art Angels Publishing Ltd,£734.16
Manchester City Council,Childrens & Education Services,Transport Coach Hire,17-Apr-23,5105867179,Communitytransportservices.co.uk,"£107,087.81"
Manchester City Council,Childrens & Education Services,Transport Coach Hire,17-Apr-23,5105867170,Communitytransportservices.co.uk,"£70,779.54"
Manchester City Council,Childrens & Education Services,Transport Coach Hire,17-Apr-23,5105867168,Communitytransportservices.co.uk,£780.00
Manchester City Council,Childrens & Education Services,Subsistence and Conference Expenses,17-Apr-23,5105867330,Inclusive Choice,£650.00
Manchester City Council,Chief Executives,Counsel Costs,17-Apr-23,1908074840,Kenworthy's Chambers,£550.00
Manchester City Council,Manchester Leisure,Goods purchased for resale in Council outlets,17-Apr-23,5105867241,Lagom Design Limited,"£1,031.60"
Manchester City Council,Manchester Leisure,Payments to Contractors,17-Apr-23,5105866926,Greenwich Leisure Limited,"£151,935.00"
Manchester City Council,Adult Social Care,Rents,17-Apr-23,5105867219,Wythenshawe Community Housing Group,"£3,149.77"
Manchester City Council,Adult Social Care,Rents,17-Apr-23,5105867217,Wythenshawe Community Housing Group,"£1,183.00"
Manchester City Council,Corporate Services,Works and associated costs for Land and Buildings,17-Apr-23,5105867280,EQUANS Regeneration Limited,"-£131,842.82"
Manchester City Council,Regeneration Finance,Agency staff provision,17-Apr-23,5105867471,GM Business Support Ltd,"-£25,000.00"
Manchester City Council,Childrens & Education Services,Payments for services,17-Apr-23,5105867348,Link Mediation Services,£675.00
Manchester City Council,Manchester Leisure,Professional fees,17-Apr-23,5105866603,Biffa Municipal Limited,"£8,909.19"
Manchester City Council,Manchester Leisure,Refuse Collection,17-Apr-23,5105866489,Biffa Municipal Limited,"£23,638.28"
Manchester City Council,Hospitality + Trading Services,Refuse Collection,17-Apr-23,5105866490,Biffa Municipal Limited,"£13,826.42"
Manchester City Council,Manchester Leisure,Goods purchased for resale in Council outlets,17-Apr-23,5105867242,The School of Life,"£1,828.34"
Manchester City Council,Manchester Leisure,Goods purchased for resale in Council outlets,17-Apr-23,5105867262,Manchester Books Ltd,£678.00
Manchester City Council,Childrens & Education Services,Professional fees,17-Apr-23,5105867337,Arnoldsolutions,"£2,375.00"
Manchester City Council,Manchester Leisure,Goods purchased for resale in Council outlets,17-Apr-23,5105867246,Petra Boase Ltd,£725.40
Manchester City Council,Highways Services,Purchase of stores for re-distribution,17-Apr-23,5105867193,Fabrikat (Nottingham) Limited,"£2,239.50"
Manchester City Council,Chief Executives,Professional fees,17-Apr-23,5105867263,NTT DATA Business Solutions Limited,"£2,062.50"
Manchester City Council,Chief Executives,Professional fees,17-Apr-23,5105867264,NTT DATA Business Solutions Limited,"£2,062.50"
Manchester City Council,Adult Social Care,Rents,17-Apr-23,5105867253,Barret Gray Rentals,"£1,996.56"
Manchester City Council,Adult Social Care,Rents,17-Apr-23,5105867254,Barret Gray Rentals,"£1,150.00"
Manchester City Council,Adult Social Care,Rents,17-Apr-23,5105867255,Barret Gray Rentals,"£1,150.00"
Manchester City Council,Adult Social Care,Rents,17-Apr-23,5105867256,Barret Gray Rentals,"£1,150.00"
Manchester City Council,Corporate Services,Grant and subscriptions awarded,17-Apr-23,5105867138,The Bread and Butter Thing,"-£121,864.78"
Manchester City Council,Chief Executives,Counsel Costs,17-Apr-23,1908079326,Central Chambers,"£3,000.00"
Manchester City Council,Highways Services,Vehicle Fuel Costs,17-Apr-23,5105867221,Standard Fuels Oils,"£1,069.83"
Manchester City Council,Hospitality + Trading Services,Vehicle Fuel Costs,17-Apr-23,5105867278,Standard Fuels Oils,"-£18,435.87"
Manchester City Council,Chief Executives,Legal Fees,17-Apr-23,5105867005,Waddington & Son Solicitors,"£2,882.70"
Manchester City Council,Chief Executives,Legal Fees,17-Apr-23,5105867161,Waddington & Son Solicitors,£787.50
Manchester City Council,Chief Executives,Legal Fees,17-Apr-23,5105867143,Waddington & Son Solicitors,"-£2,882.70"
Manchester City Council,Corporate Services,WPS Awards,17-Apr-23,5105867302,Furniture Resource Centre Ltd,£880.58
Manchester City Council,Chief Executives,Professional fees,17-Apr-23,1908076834,MEWA LLP,£897.75
Manchester City Council,Housing Revenue Account,Council Dwelling Adaptations,17-Apr-23,5105867273,Procare Shower & Bathroom Centre Lt,"£4,918.03"
Manchester City Council,Housing Revenue Account,Council Dwelling Adaptations,17-Apr-23,5105867260,Procare Shower & Bathroom Centre Lt,"£4,377.45"
Manchester City Council,Housing Revenue Account,Council Dwelling Adaptations,17-Apr-23,5105867260,Procare Shower & Bathroom Centre Lt,"£1,264.99"
Manchester City Council,Housing Revenue Account,Council Dwelling Adaptations,17-Apr-23,5105867258,Procare Shower & Bathroom Centre Lt,"£1,051.57"
Manchester City Council,Housing Revenue Account,Council Dwelling Adaptations,17-Apr-23,5105867272,Procare Shower & Bathroom Centre Lt,£985.05
Manchester City Council,Housing Revenue Account,Council Dwelling Adaptations,17-Apr-23,5105867259,Procare Shower & Bathroom Centre Lt,"-£1,020.58"
Manchester City Council,Corporate Services,Works and associated costs for Land and Buildings,17-Apr-23,5105867279,R Development Ltd,"-£11,594.47"
Manchester City Council,Adult Social Care,Bed & Breakfast Acc,17-Apr-23,5105867339,Medlock House Ltd,"£10,241.00"
Manchester City Council,Regeneration Finance,Legal Fees,17-Apr-23,5105867229,OPen  (Optimised Environments Ltd),"£6,312.80"
Manchester City Council,Regeneration Finance,Legal Fees,17-Apr-23,5105867229,OPen  (Optimised Environments Ltd),"£1,579.20"
Manchester City Council,Chief Executives,Agency staff provision,17-Apr-23,5105867216,Isherwood Legal Limited,£660.00
Manchester City Council,Childrens & Education Services,Transport Coach Hire,17-Apr-23,5105867277,CW Travel,"£26,675.00"
Manchester City Council,Childrens & Education Services,Transport Coach Hire,17-Apr-23,5105867276,CW Travel,"-£26,675.00"
Manchester City Council,Adult Social Care,Professional fees,17-Apr-23,5105867150,NE1 Procurement Services Limited,"£15,000.00"
Manchester City Council,Childrens & Education Services,Payments for services,17-Apr-23,5105867350,4syte Funding Limited,£507.63
Manchester City Council,Childrens & Education Services,Payments for services,17-Apr-23,5105867363,4syte Funding Limited,£507.63
Manchester City Council,Childrens & Education Services,Payments for services,17-Apr-23,5105867365,4syte Funding Limited,£507.63
Manchester City Council,Chief Executives,Professional fees,17-Apr-23,5105867298,TPXimpact Limited,"£8,000.00"
Manchester City Council,Adult Social Care,Rents,17-Apr-23,5105867147,Manchester Bumblebee Ltd,"£144,807.71"
Manchester City Council,Adult Social Care,Third party payments relating to Voluntary Organisations,17-Apr-23,5105867180,Melrose Apartments Management Ltd,£965.16
Manchester City Council,Manchester Leisure,External repairs and maintenance for buildings,17-Apr-23,5105867227,Norman Ashworth Limited,"£4,545.00"
Manchester City Council,Manchester Leisure,External repairs and maintenance for buildings,17-Apr-23,5105867226,Norman Ashworth Limited,"£2,500.00"
Manchester City Council,Manchester Leisure,Counsel Costs,17-Apr-23,1908070011,Trinity Chambers,£900.00
Manchester City Council,Corporate Services,Professional fees,17-Apr-23,1908070300,Trinity Chambers,"£1,447.00"
Manchester City Council,Childrens & Education Services,Home Care ,17-Apr-23,5105867192,WALKING TOGETHER,"£1,200.00"
Manchester City Council,Environment and Operations,Construction Works,17-Apr-23,5105866378,Ventbrook,"£6,695.00"
Manchester City Council,Manchester Leisure,Professional fees,17-Apr-23,1908069995,Pinnacle Building and Surveying,£550.00
Manchester City Council,Corporate Services,Professional fees,17-Apr-23,1908073813,Pinnacle Building and Surveying,£550.00
Manchester City Council,Corporate Services,External repairs and maintenance for buildings,17-Apr-23,5105867366,Twinfix Limited,"£1,500.00"
Manchester City Council,Childrens & Education Services,Payments for services,17-Apr-23,5105867343,Vision for Education Limited,£708.41
Manchester City Council,Manchester Leisure,Compensation Payments,17-Apr-23,1908081357,Driscoll Kingston & Co Ltd – Client,"£12,500.00"
Manchester City Council,Adult Social Care,Rents,17-Apr-23,1908081362,Chinonso Izugbokwe,"£4,455.22"
Manchester City Council,Adult Social Care,Rents,17-Apr-23,1908081359,Dwellings Lettings & Property Manag,£725.00
Manchester City Council,Adult Social Care,Rents,17-Apr-23,1908081360,Gregorz Properties Ltd,"£2,750.00"
Manchester City Council,Adult Social Care,Rents,17-Apr-23,1908081360,Gregorz Properties Ltd,"£1,700.00"
Manchester City Council,Adult Social Care,Rents,17-Apr-23,1908081350,Redacted Personal Information,"£1,550.00"
Manchester City Council,Adult Social Care,Rents,17-Apr-23,1908081350,Redacted Personal Information,"£1,200.00"
Manchester City Council,Corporate Services,Equipment,17-Apr-23,1908079336,Anson Community Grocer,"£2,053.87"
Manchester City Council,Corporate Services,Equipment,17-Apr-23,1908079334,Emmies Kitchen,"£1,427.58"
Manchester City Council,Manchester Leisure,Signers/Interpreters,17-Apr-23,1908081364,High Enforcement Group,"£14,705.03"
Manchester City Council,Chief Executives,Counsel Costs,17-Apr-23,1908079993,Central Chambers,"£1,000.00"
Manchester City Council,Chief Executives,Counsel Costs,17-Apr-23,1908079973,Kenworthy’s Chambers,£710.00
Manchester City Council,Chief Executives,Counsel Costs,17-Apr-23,1908079995,Temple Garden Chambers,£750.00
Manchester City Council,Manchester Leisure,Outdoor Recreation,17-Apr-23,1908079972,Friends of Cringle Park and Field,"£1,110.46"
Manchester City Council,Manchester Leisure,Professional fees,17-Apr-23,1908065237,Total Legal Solutions,£775.00
Manchester City Council,Manchester Leisure,Professional fees,17-Apr-23,1908070290,Total Legal Solutions,£775.00
Manchester City Council,Manchester Leisure,Counsel Costs,17-Apr-23,1908078668,Redacted Personal Information,£550.00
Manchester City Council,Childrens & Education Services,Transport Coach Hire,17-Apr-23,5105867334,Redacted Personal Information,"£7,379.50"
Manchester City Council,Chief Executives,Payments to Sub-Contractors,17-Apr-23,5105867203,Redacted Personal Information,"£2,487.01"
Manchester City Council,Chief Executives,Payments to Sub-Contractors,17-Apr-23,5105867007,Redacted Personal Information,£553.80
Manchester City Council,Chief Executives,Payments to Sub-Contractors,17-Apr-23,5105867204,Redacted Personal Information,£813.95
Manchester City Council,Chief Executives,Counsel Costs,17-Apr-23,1908079317,Redacted Personal Information,"£1,150.00"
Manchester City Council,Chief Executives,Counsel Costs,17-Apr-23,1908078679,Redacted Personal Information,"£5,700.00"
Manchester City Council,Chief Executives,Counsel Costs,17-Apr-23,1908079981,Redacted Personal Information,£650.00
Manchester City Council,Chief Executives,Counsel Costs,17-Apr-23,1908078670,Redacted Personal Information,£500.00
Manchester City Council,Childrens & Education Services,Professional fees,17-Apr-23,5105867317,Redacted Personal Information,"£3,912.50"
Manchester City Council,Chief Executives,Payments to Sub-Contractors,17-Apr-23,5105867187,Redacted Personal Information,£615.00
Manchester City Council,Childrens & Education Services,Payments for services,17-Apr-23,5105867318,Redacted Personal Information,"£5,845.00"
Manchester City Council,Childrens & Education Services,Professional fees,18-Apr-23,5105867285,Redacted Personal Information,£900.00
Manchester City Council,Adult Social Care,Rents,18-Apr-23,1908081631,Redacted Personal Information,"£1,800.00"
Manchester City Council,Regeneration Finance,Professional fees,18-Apr-23,5105867454,Ekos Consulting (Uk) Ltd,"£6,510.00"
Manchester City Council,Regeneration Finance,Postage,18-Apr-23,5105867559,Royal Mail Group Plc,£870.00
Manchester City Council,Childrens & Education Services,Hire of Premises,18-Apr-23,5105867535,Benchill Community Centre,"£1,225.00"
Manchester City Council,Manchester Leisure,Grant and subscriptions awarded,18-Apr-23,5105867633,Wythenshawe Community Initiative,£500.00
Manchester City Council,Adult Social Care,Equipment,18-Apr-23,5105867474,Mangar International Ltd/Winncare,"£6,300.00"
Manchester City Council,Highways Services,Professional fees,18-Apr-23,5105867543,Mott Macdonald Uk Limited,"£11,733.60"
Manchester City Council,Manchester Leisure,ICT Sup & Maintnance,18-Apr-23,5105867671,Equisys Timemaster Ltd,"£2,674.31"
Manchester City Council,Hospitality + Trading Services,Building Materials for direct delivery,18-Apr-23,5105866606,Killgerm Chemicals Ltd,"£25,259.56"
Manchester City Council,Adult Social Care,Payments for services,18-Apr-23,5105867599,ADFERIAD RECOVERY,"£5,062.50"
Manchester City Council,Adult Social Care,Payments for services,18-Apr-23,5105867601,ADFERIAD RECOVERY,"£4,725.00"
Manchester City Council,Childrens & Education Services,Payments for services,18-Apr-23,5105867662,Belmont School Ltd,"-£1,875.00"
Manchester City Council,Childrens & Education Services,Payments for services,18-Apr-23,5105867663,Belmont School Ltd,"-£3,054.94"
Manchester City Council,Childrens & Education Services,Payments for services,18-Apr-23,5105867661,Belmont School Ltd,"-£8,891.42"
Manchester City Council,Corporate Services,Training and Development,18-Apr-23,5105867480,Cipfa,"£2,100.00"
Manchester City Council,Corporate Services,Professional fees,18-Apr-23,5105866601,S.I.Sealy Associates Ltd,"£4,176.00"
Manchester City Council,Manchester Leisure,Electricity,18-Apr-23,5105867479,Switch2 Energey Limited,"£1,992.35"
Manchester City Council,Manchester Leisure,Electricity,18-Apr-23,5105867477,Switch2 Energey Limited,"£1,031.67"
Manchester City Council,Regeneration Finance,Gas,18-Apr-23,5105867685,Calor Gas Ltd,£813.00
Manchester City Council,Highways Services,Payments to Sub-Contractors,18-Apr-23,5105867531,Utilities Design & Planning Ltd,"£4,800.00"
Manchester City Council,Highways Services,Payments to Sub-Contractors,18-Apr-23,5105867383,Utilities Design & Planning Ltd,"£2,000.00"
Manchester City Council,Highways Services,Payments to Sub-Contractors,18-Apr-23,5105867385,Utilities Design & Planning Ltd,"£2,000.00"
Manchester City Council,Regeneration Finance,Professional fees,18-Apr-23,5105866864,Mace Ltd,"£9,936.00"
Manchester City Council,Regeneration Finance,Professional fees,18-Apr-23,5105867569,Mace Ltd,"-£9,936.00"
Manchester City Council,Adult Social Care,Training and Development,18-Apr-23,5105867794,University Of Central Lancashire,"-£3,639.00"
Manchester City Council,Chief Executives,Works and associated costs for Land and Buildings,18-Apr-23,5105866998,Laing O'Rourke Construction Ltd,"£615,953.00"
Manchester City Council,Chief Executives,Works and associated costs for Land and Buildings,18-Apr-23,5105867648,Laing O'Rourke Construction Ltd,"-£615,953.00"
Manchester City Council,Chief Executives,Works and associated costs for Land and Buildings,18-Apr-23,5105866998,Laing O'Rourke Construction Ltd,"£4,624,962.00"
Manchester City Council,Chief Executives,Works and associated costs for Land and Buildings,18-Apr-23,5105867648,Laing O'Rourke Construction Ltd,"-£4,624,962.00"
Manchester City Council,Childrens & Education Services,Rents,18-Apr-23,5105867665,Commercial Real Estates Management,"-£1,152.00"
Manchester City Council,Housing Revenue Account,Council Dwelling Adaptations,18-Apr-23,5105867468,Emanuel Whittaker Ltd,"£315,422.65"
Manchester City Council,Housing Revenue Account,Council Dwelling Adaptations,18-Apr-23,5105867467,Emanuel Whittaker Ltd,"£71,196.72"
Manchester City Council,Housing Revenue Account,Council Dwelling Adaptations,18-Apr-23,5105867467,Emanuel Whittaker Ltd,"£40,096.24"
Manchester City Council,Manchester Leisure,External repairs and maintenance for buildings,18-Apr-23,5105867765,Groundwork Landscapes Ltd,"-£1,725.00"
Manchester City Council,Manchester Leisure,Payments to Sub-Contractors,18-Apr-23,5105867545,Groundwork Landscapes Ltd,"£5,455.00"
Manchester City Council,Adult Social Care,Equipment,18-Apr-23,5105867382,NRS Healthcare,"£2,493.00"
Manchester City Council,Adult Social Care,Equipment,18-Apr-23,5105867384,NRS Healthcare,"£1,137.00"
Manchester City Council,Highways Services,Building Materials for direct delivery,18-Apr-23,5105867390,TARMAC,"£1,216.33"
Manchester City Council,Adult Social Care,Supporting People Payments,18-Apr-23,5105867571,Great Places Housing Association,"£1,994.40"
Manchester City Council,Adult Social Care,Supporting People Payments,18-Apr-23,5105867470,Great Places Housing Association,"£1,715.98"
Manchester City Council,Manchester Leisure,Compensation Payments,18-Apr-23,1908081632,Antony Hodari Holding Ltd,"£2,500.00"
Manchester City Council,Housing Revenue Account,Council Dwelling Adaptations,18-Apr-23,5105867799,Stannah Lift Services Ltd,"-£2,299.00"
Manchester City Council,Adult Social Care,Security,18-Apr-23,5105867587,Greater Manchester Mental Health,"£3,389.00"
Manchester City Council,Chief Executives,Charges for Services,18-Apr-23,1908081639,Tree Of Life Centre Wythenshawe,"£2,430.00"
Manchester City Council,Corporate Services,Grant Payments,18-Apr-23,5105867444,Barnsley M.B.C.,"£3,000.00"
Manchester City Council,Chief Executives,Grant and subscriptions awarded,18-Apr-23,5105867584,Community Arts North West,"£6,250.00"
Manchester City Council,Environment and Operations,Construction Works,18-Apr-23,5105867675,Transport for Greater Manchester,"£1,884.58"
Manchester City Council,Environment and Operations,Construction Works,18-Apr-23,5105867426,Transport for Greater Manchester,"£1,884.28"
Manchester City Council,Environment and Operations,Construction Works,18-Apr-23,5105867673,Transport for Greater Manchester,"-£1,884.28"
Manchester City Council,Highways Services,I T Provision,18-Apr-23,5105867428,Transport for Greater Manchester,"£1,158.00"
Manchester City Council,Manchester Leisure,Grant and subscriptions awarded,18-Apr-23,5105867536,Whalley Range Forum,"£3,000.00"
Manchester City Council,Adult Social Care,Grant and subscriptions awarded,18-Apr-23,5105867752,Manchester People First,"-£13,234.19"
Manchester City Council,Adult Social Care,Third party payments relating to Voluntary Organisations,18-Apr-23,5105867751,Manchester People First,-£883.46
Manchester City Council,Housing Revenue Account,Private Finance and Public Private partnership initiatives,18-Apr-23,5105867463,Grove Village Ltd,"£594,666.42"
Manchester City Council,Adult Social Care,"Consumable items eg Toilet rolls, soap etc",18-Apr-23,5105867356,Camilla Carpets Ltd,£500.00
Manchester City Council,Adult Social Care,Professional fees,18-Apr-23,5105867764,Camilla Carpets Ltd,-£805.00
Manchester City Council,Adult Social Care,Rents,18-Apr-23,5105867416,Jigsaw Homes North,"£2,759.90"
Manchester City Council,Highways Services,Professional fees,18-Apr-23,5105867779,A T G Access Ltd,"-£1,240.00"
Manchester City Council,Chief Executives,Advertising,18-Apr-23,5105867450,Best Asian Media Ltd,"£1,950.00"
Manchester City Council,Manchester Leisure,Hire of Machinery,18-Apr-23,5105867656,Bradshaw Lawnmover Engineers,"£1,365.00"
